Date Spend Occurred,Department Incurring Spend,Beneficiary Name,Summary of Purpose of Spend,Gross Amount,Merchant Category,,
01/04/2021,Free Early Educ 3&4,100 Acrewood Preschool,Third Party Payments-Other Agencies,"12,676.03",Playgroup,,
01/04/2021,Free Early Educ 3&4,Aberdour School,Third Party Payments-Other Agencies,"23,589.31",Schools,,
01/04/2021,Free Early Educ 3&4,Abinger Common Nursery,Third Party Payments-Other Agencies,"10,738.94",Nursery,,
01/04/2021,Free Early Educ 3&4,Acorn Nursery School,Third Party Payments-Other Agencies,"21,537.36",Nurseries,,
01/04/2021,Free Early Educ 3&4,Acorns Nursery School,Third Party Payments-Other Agencies,"16,045.09",Nurseries,,
01/04/2021,Free Early Educ 3&4,Addlestone Pre School,Third Party Payments-Other Agencies,"11,962.37",Schools,,
01/04/2021,Free Early Educ 3&4,Redacted Personal Data ,Third Party Payments-Other Agencies,441.79,Individual - NEC,,
01/04/2021,Free Early Educ 3&4,Amesbury School,Third Party Payments-Other Agencies,"9,906.34",Nurseries,,
01/04/2021,Free Early Educ 3&4,Ashburton House Day Nursery,Third Party Payments-Other Agencies,"15,550.51",Nursery,,
01/04/2021,Free Early Educ 3&4,Ashford & St Peters NHS Trust,Third Party Payments-Other Agencies,"21,165.23",Healthcare (Part Org,,
01/04/2021,Free Early Educ 3&4,Ashford & St Peters NHS Trust,Third Party Payments-Other Agencies,"25,949.96",Healthcare (Part Org,,
01/04/2021,Free Early Educ 3&4,Asquith Catherham Pre School,Third Party Payments-Other Agencies,"19,879.93",Nurseries,,
01/04/2021,Free Early Educ 3&4,Asquith Epsom Day Nursery,Third Party Payments-Other Agencies,"28,733.70",Schools,,
01/04/2021,Free Early Educ 3&4,Asquith Nurseries Ltd,Third Party Payments-Other Agencies,"18,641.18",Nurseries,,
01/04/2021,Free Early Educ 3&4,Bagshot Community Pre-School,Third Party Payments-Other Agencies,"15,910.03",Schools,,
01/04/2021,Free Early Educ 3&4,Bagshot Nursery School,Third Party Payments-Other Agencies,"6,850.61",Nurseries,,
01/04/2021,Free Early Educ 3&4,Bambini Nursery,Third Party Payments-Other Agencies,"6,139.78",Nurseries,,
01/04/2021,Free Early Educ 3&4,Bambini Nursery,Third Party Payments-Other Agencies,"15,094.56",Nurseries,,
01/04/2021,Free Early Educ 3&4,Banstead Bunnies Pre-School,Third Party Payments-Other Agencies,"16,973.59",Nursery,,
01/04/2021,Free Early Educ 3&4,Banstead Preparatory School,Third Party Payments-Other Agencies,"18,555.26",Playgroup,,
01/04/2021,Free Early Educ 3&4,Barfield School,Third Party Payments-Other Agencies,"25,541.78",SEND Agncy Placement,,
01/04/2021,Free Early Educ 3&4,Barn Kids Ltd,Third Party Payments-Other Agencies,"24,243.34",Health Visiting,,
01/04/2021,Free Early Educ 3&4,Barnett Wood Preschool,Third Party Payments-Other Agencies,"23,157.26",Schools,,
01/04/2021,Free Early Educ 3&4,Barrow Hills School,Third Party Payments-Other Agencies,"6,626.88",Schools,,
01/04/2021,Free Early Educ 3&4,Beacon Hill Nursery School,Third Party Payments-Other Agencies,"12,251.23",Nursery,,
01/04/2021,Free Early Educ 3&4,Bear & Bunny Nursery Ltd,Third Party Payments-Other Agencies,"42,432.76",Nurseries,,
01/04/2021,Free Early Educ 3&4,Bear Hugs,Third Party Payments-Other Agencies,"11,563.06",Nursery,,
01/04/2021,Free Early Educ 3&4,Bell House Nursery,Third Party Payments-Other Agencies,"29,035.08",Nursery,,
01/04/2021,Free Early Educ 3&4,Belmont Prep School,Third Party Payments-Other Agencies,"6,530.59",Schools,,
01/04/2021,Free Early Educ 3&4,Betchworth & Buckland Childrens Nur,Third Party Payments-Other Agencies,"9,178.51",Nurseries,,
01/04/2021,Free Early Educ 3&4,Bizz Kidz Ltd,Third Party Payments-Other Agencies,"18,620.40",Nursery,,
01/04/2021,Free Early Educ 3&4,BizzKidz Ashford,Third Party Payments-Other Agencies,"8,283.60",Nurseries,,
01/04/2021,Free Early Educ 3&4,Blackdown Pre-School,Third Party Payments-Other Agencies,"13,344.38",Schools,,
01/04/2021,Free Early Educ 3&4,Blossom Montessori School & Pre Sch,Third Party Payments-Other Agencies,"21,279.65",Schools,,
01/04/2021,Free Early Educ 3&4,Blossom Pre School,Third Party Payments-Other Agencies,"12,756.74",Nursery,,
01/04/2021,Free Early Educ 3&4,Blue Willow Nursery School,Third Party Payments-Other Agencies,"6,550.42",Nurseries,,
01/04/2021,Free Early Educ 3&4,Bluebell Nursery,Third Party Payments-Other Agencies,"4,977.10",Nursery,,
01/04/2021,Free Early Educ 3&4,Bobtails Pre School,Third Party Payments-Other Agencies,"20,838.56",Nurseries,,
01/04/2021,Free Early Educ 3&4,Bobtails Preschool,Third Party Payments-Other Agencies,"19,797.10",Educ Finance Serv,,
01/04/2021,Free Early Educ 3&4,Brambly House Montessori School,Third Party Payments-Other Agencies,"9,481.54",Schools,,
01/04/2021,Free Early Educ 2 yr,Brambly House Montessori School,Third Party Payments-Other Agencies,"1,330.27",Schools,,
01/04/2021,Free Early Educ 3&4,Brambly House Montessori School,Third Party Payments-Other Agencies,"23,177.09",Schools,,
01/04/2021,Free Early Educ 3&4,Briars Cabin Nursery,Third Party Payments-Other Agencies,"11,084.45",Grants - Community,,
01/04/2021,Free Early Educ 3&4,Briars Nursery,Third Party Payments-Other Agencies,"7,858.80",Nurseries,,
01/04/2021,Free Early Educ 3&4,Bright Horizon Guildford Boxgrove D,Third Party Payments-Other Agencies,"34,775.18",Nurseries,,
01/04/2021,Free Early Educ 3&4,Bright Horizons Banstead Day Nurser,Third Party Payments-Other Agencies,"28,439.29",Nurseries,,
01/04/2021,Free Early Educ 3&4,Bright Horizons Day Nursery,Third Party Payments-Other Agencies,"21,395.36",Nursery,,
01/04/2021,Free Early Educ 3&4,Bright Horizons Dorking Day Nursery,Third Party Payments-Other Agencies,"28,408.81",Nursery,,
01/04/2021,Free Early Educ 3&4,Bright Horizons Epsom Day Nursery &,Third Party Payments-Other Agencies,"11,875.65",Nursery,,
01/04/2021,Free Early Educ 3&4,Bright Horizons Farnham Day Nursery,Third Party Payments-Other Agencies,"24,373.18",Nurseries,,
01/04/2021,Free Early Educ 3&4,Bright Horizons Frimley Green,Third Party Payments-Other Agencies,"35,504.64",Nursery,,
01/04/2021,Free Early Educ 3&4,Bright Horizons Godalming Day Nurse,Third Party Payments-Other Agencies,"14,779.30",Nursery,,
01/04/2021,Free Early Educ 3&4,Bright Horizons Hinchley Wood Day,Third Party Payments-Other Agencies,"24,241.95",Nursery,,
01/04/2021,Free Early Educ 3&4,Bright Horizons Leatherhead Day Nur,Third Party Payments-Other Agencies,"14,402.73",Educ Finance Serv,,
01/04/2021,Free Early Educ 3&4,Bright Horizons Old Woking Day Nurs,Third Party Payments-Other Agencies,"10,822.69",Nurseries,,
01/04/2021,Free Early Educ 3&4,Bright Horizons Reigate Day Nursery,Third Party Payments-Other Agencies,"34,176.52",Nursery,,
01/04/2021,Free Early Educ 3&4,Bright Horizons Reigate Day Nursery,Third Party Payments-Other Agencies,"23,744.28",Family Support,,
01/04/2021,Free Early Educ 3&4,Bright Horizons Royal Earlswood Day,Third Party Payments-Other Agencies,"18,215.37",Schools,,
01/04/2021,Free Early Educ 3&4,Bright Horizons Teddies Woking Day,Third Party Payments-Other Agencies,"20,836.61",Nursery,,
01/04/2021,Free Early Educ 3&4,Bright Horizons Weybridge Day Nurse,Third Party Payments-Other Agencies,"29,447.56",Nurseries,,
01/04/2021,Free Early Educ 3&4,Bright Horizons Woking Day Nursery,Third Party Payments-Other Agencies,"28,815.85",Nursery,,
01/04/2021,Free Early Educ 3&4,Bright Sparks Montessori School,Third Party Payments-Other Agencies,"18,450.48",Schools,,
01/04/2021,Free Early Educ 3&4,Bright Stars Day Nursery Ltd,Third Party Payments-Other Agencies,"17,602.13",Nurseries,,
01/04/2021,Free Early Educ 3&4,Brockham Green Day Nursery,Third Party Payments-Other Agencies,"9,931.82",Nurseries,,
01/04/2021,Free Early Educ 3&4,Brook Nursery School,Third Party Payments-Other Agencies,"13,110.74",Nursery,,
01/04/2021,Free Early Educ 3&4,Buckles & Bows Pre School Nursery,Third Party Payments-Other Agencies,"18,917.05",Nurseries,,
01/04/2021,Free Early Educ 3&4,Buffer Bear Ltd,Third Party Payments-Other Agencies,"21,751.06",Nurseries,,
01/04/2021,Free Early Educ 3&4,Building Blocks Pre School & Daycar,Third Party Payments-Other Agencies,"27,953.09",Day Services,,
01/04/2021,Free Early Educ 3&4,Burgh Wood Montessori Nursery Schoo,Third Party Payments-Other Agencies,"16,255.68",SEN Specialist Supp,,
01/04/2021,Free Early Educ 3&4,Burwood Pre School,Third Party Payments-Other Agencies,"14,434.70",Nursery,,
01/04/2021,Free Early Educ 3&4,Bus Stop Pre School,Third Party Payments-Other Agencies,"9,201.17",Schools,,
01/04/2021,Free Early Educ 3&4,Busy Bees at Cheam,Third Party Payments-Other Agencies,"26,463.68",Grants - Community,,
01/04/2021,Free Early Educ 3&4,Busy Bees at Dorking Chichester Roa,Third Party Payments-Other Agencies,"14,627.74",Nursery,,
01/04/2021,Free Early Educ 3&4,Busy Bees at Dorking Westcott Road,Third Party Payments-Other Agencies,"12,887.02",Nursery,,
01/04/2021,Free Early Educ 3&4,Busy Bees at Guildford Hanover,Third Party Payments-Other Agencies,"25,359.20",Nurseries,,
01/04/2021,Free Early Educ 3&4,Busy Bees at Haslemere,Third Party Payments-Other Agencies,"30,495.29",Nursery,,
01/04/2021,Free Early Educ 3&4,Busy Bees at Reigate,Third Party Payments-Other Agencies,"27,813.98",Grants - Community,,
01/04/2021,Free Early Educ 3&4,Busy Bees At West Byfleet,Third Party Payments-Other Agencies,"27,593.68",Nursery,,
01/04/2021,Free Early Educ 3&4,Busy Bees Day Nursery at Godalming,Third Party Payments-Other Agencies,"28,441.55",Dom Care - Adults,,
01/04/2021,Free Early Educ 3&4,Busy Bees Day Nursery at Woking,Third Party Payments-Other Agencies,"35,822.08",Nursery,,
01/04/2021,Free Early Educ 3&4,Busy Bees Day Nursery at Woking Noa,Third Party Payments-Other Agencies,"18,215.14",Nurseries,,
01/04/2021,Free Early Educ 3&4,Busy Bees Godalming,Third Party Payments-Other Agencies,"49,126.87",Nursery,,
01/04/2021,Free Early Educ 3&4,Busy Bees Nurseries Ltd,Third Party Payments-Other Agencies,"22,691.06",Grants - Community,,
01/04/2021,Free Early Educ 3&4,Busy Bees Nursery,Third Party Payments-Other Agencies,"9,954.48",Nurseries,,
01/04/2021,Free Early Educ 3&4,Butterflies Nursery School,Third Party Payments-Other Agencies,"6,927.07",Nurseries,,
01/04/2021,Free Early Educ 3&4,Butterflies Pre School,Third Party Payments-Other Agencies,"3,797.71",Nursery,,
01/04/2021,Free Early Educ 3&4,Butterfly Nursery School,Third Party Payments-Other Agencies,"8,577.67",Nurseries,,
01/04/2021,Free Early Educ 3&4,Capel Pre School,Third Party Payments-Other Agencies,"17,661.77",Schools,,
01/04/2021,Free Early Educ 3&4,Caring Day Care at Guildford,Third Party Payments-Other Agencies,"20,115.04",Nurseries,,
01/04/2021,Free Early Educ 3&4,Caring Daycare at Camberley,Third Party Payments-Other Agencies,"40,473.50",Dom Care - Adults,,
01/04/2021,Free Early Educ 3&4,Carols Day Nursery,Third Party Payments-Other Agencies,"3,213.76",Nurseries,,
01/04/2021,Free Early Educ 3&4,Castle Nursery & Preschool,Third Party Payments-Other Agencies,"18,927.16",Schools,,
01/04/2021,Free Early Educ 3&4,Castle Nursery & Preschool,Third Party Payments-Other Agencies,"31,643.75",Nurseries,,
01/04/2021,Free Early Educ 3&4,Castle Nursery & Preschool,Third Party Payments-Other Agencies,"14,839.22",Nurseries,,
01/04/2021,Free Early Educ 3&4,Caterham Hill Congregational Church,Third Party Payments-Other Agencies,"4,264.99",Grants - Community,,
01/04/2021,Free Early Educ 3&4,Caterham Hill Congregational Church,Third Party Payments-Other Agencies,"16,493.57",Grants - Community,,
01/04/2021,Free Early Educ 2 yr,Caterham Hill Congregational Church,Third Party Payments-Other Agencies,"1,287.36",Grants - Community,,
01/04/2021,Free Early Educ 3&4,Caterham The Laurels Day Nursery &,Third Party Payments-Other Agencies,"37,869.34",Nurseries,,
01/04/2021,Free Early Educ 3&4,Caterpillars Childcare,Third Party Payments-Other Agencies,"18,101.58",Nursery,,
01/04/2021,Free Early Educ 3&4,Caterpillars Nursery at St Johns,Third Party Payments-Other Agencies,"15,219.17",Nurseries,,
01/04/2021,Free Early Educ 3&4,Caterpillars Nursery School,Third Party Payments-Other Agencies,"6,050.57",Nurseries,,
01/04/2021,Free Early Educ 3&4,Caterpillars Pre School Walton Ltd,Third Party Payments-Other Agencies,"9,940.32",Nurseries,,
01/04/2021,Free Early Educ 3&4,Catherine Earwicker Childminding,Third Party Payments-Other Agencies,628.70,Educ Finance Serv,,
01/04/2021,Free Early Educ 3&4,Catherine Earwicker Childminding,Third Party Payments-Other Agencies,"1,019.52",Educ Finance Serv,,
01/04/2021,Free Early Educ 3&4,Challengers Pre-school Guildford,Third Party Payments-Other Agencies,"12,191.76",Grants-Member Allocs,,
01/04/2021,Free Early Educ 3&4,Charlwood Playgroup,Third Party Payments-Other Agencies,"9,863.86",Nurseries,,
01/04/2021,Free Early Educ 3&4,Chatterbox Nursery,Third Party Payments-Other Agencies,"2,429.86",Nurseries,,
01/04/2021,Free Early Educ 3&4,Cherry Tree Nursery & Preschool,Third Party Payments-Other Agencies,"3,148.84",Nursery,,
01/04/2021,Free Early Educ 3&4,Cherrybrook Nursery,Third Party Payments-Other Agencies,"27,354.29",Nurseries,,
01/04/2021,Free Early Educ 3&4,Cherryfield Nursery,Third Party Payments-Other Agencies,"19,079.18",Nurseries,,
01/04/2021,Free Early Educ 3&4,Cherrylands Nursery,Third Party Payments-Other Agencies,"9,515.52",Nurseries,,
01/04/2021,Free Early Educ 3&4,Cherrystone Nursery,Third Party Payments-Other Agencies,"21,905.52",Nurseries,,
01/04/2021,Free Early Educ 3&4,Cherryvale Nursery,Third Party Payments-Other Agencies,"30,693.22",Nurseries,,
01/04/2021,Free Early Educ 3&4,Cherrywood Nursery,Third Party Payments-Other Agencies,"4,425.00",Nurseries,,
01/04/2021,Free Early Educ 3&4,Cherrywood Nursery,Third Party Payments-Other Agencies,"18,487.30",Nurseries,,
01/04/2021,Free Early Educ 3&4,Chiddingfold Village Nursery School,Third Party Payments-Other Agencies,"15,519.36",Nurseries,,
01/04/2021,Free Early Educ 3&4,Children's Workshop,Third Party Payments-Other Agencies,"28,450.70",Nursery,,
01/04/2021,Free Early Educ 3&4,Child's Play Pre-School,Third Party Payments-Other Agencies,"18,196.31",Subscriptions,,
01/04/2021,Free Early Educ 3&4,Chill Out of School,Third Party Payments-Other Agencies,"5,522.40",Health Visiting,,
01/04/2021,Free Early Educ 3&4,Chinthurst School,Third Party Payments-Other Agencies,"10,696.46",Schools,,
01/04/2021,Free Early Educ 3&4,Chipstead Pre-School,Third Party Payments-Other Agencies,"14,109.02",Schools,,
01/04/2021,Free Early Educ 3&4,Christopher Robin Day Nurseries,Third Party Payments-Other Agencies,"22,726.80",Nurseries,,
01/04/2021,Free Early Educ 3&4,Christopher Robin Day Nurseries,Third Party Payments-Other Agencies,"13,935.31",Nurseries,,
01/04/2021,Free Early Educ 3&4,Christopher Robin Day Nursery Burph,Third Party Payments-Other Agencies,"20,581.56",Nursery,,
01/04/2021,Free Early Educ 3&4,Christopher Robin Day Nursery Cranl,Third Party Payments-Other Agencies,"17,953.46",Nursery,,
01/04/2021,Free Early Educ 3&4,Christopher Robin Day Nursery Wood,Third Party Payments-Other Agencies,"13,100.83",Nursery,,
01/04/2021,Free Early Educ 2 yr,Christopher Robin Nursery,Third Party Payments-Other Agencies,665.14,Nurseries,,
01/04/2021,Free Early Educ 3&4,Christopher Robin Nursery,Third Party Payments-Other Agencies,"10,008.29",Nurseries,,
01/04/2021,Free Early Educ 3&4,Christopher Robin Nursery,Third Party Payments-Other Agencies,"3,160.51",Nurseries,,
01/04/2021,Free Early Educ 3&4,Churt Community Pre School,Third Party Payments-Other Agencies,"6,456.96",Nursery,,
01/04/2021,HQ PYMNT OF INS CLMS,Claims Management - OTV BACS,Ins Claims Other Insured Paid,651.60,NULL,,
01/04/2021,Free Early Educ 3&4,Claremont Fan Court Foundation Ltd,Third Party Payments-Other Agencies,"19,379.38",Central Government,,
01/04/2021,Free Early Educ 3&4,Claudia Bethell,Third Party Payments-Other Agencies,526.75,Nursery,,
01/04/2021,Free Early Educ 3&4,Claygate Montessori School,Third Party Payments-Other Agencies,"8,048.54",Schools,,
01/04/2021,Free Early Educ 3&4,Coach House Nursery Copthorne Prep,Third Party Payments-Other Agencies,"19,158.48",Nursery,,
01/04/2021,Free Early Educ 3&4,Cobham Montessori School Ltd,Third Party Payments-Other Agencies,"6,782.64",Nurseries,,
01/04/2021,Free Early Educ 3&4,Coworth - Flexlands School,Third Party Payments-Other Agencies,"11,041.97",Schools,,
01/04/2021,Free Early Educ 3&4,Cranleigh Nursery School,Third Party Payments-Other Agencies,"3,079.80",Nurseries,,
01/04/2021,Free Early Educ 3&4,Crescent Nursery School,Third Party Payments-Other Agencies,"17,901.07",Nurseries,,
01/04/2021,Free Early Educ 3&4,Cruwys Cherubs,Third Party Payments-Other Agencies,"13,881.76",Health Visiting,,
01/04/2021,Free Early Educ 3&4,Curious Explorers,Third Party Payments-Other Agencies,"23,247.01",Nurseries,,
01/04/2021,Free Early Educ 3&4,Cygnets Nursery,Third Party Payments-Other Agencies,"19,158.48",Nursery,,
01/04/2021,Free Early Educ 3&4,Daisy Chain Montessori School,Third Party Payments-Other Agencies,"32,596.94",Schools,,
01/04/2021,Free Early Educ 3&4,Daisychain Pre School,Third Party Payments-Other Agencies,"12,787.90",Nursery,,
01/04/2021,Free Early Educ 3&4,Danes Hill Pre Prepatory School,Third Party Payments-Other Agencies,"36,841.49",Schools,,
01/04/2021,Free Early Educ 2 yr,Dawnys Day Care,Third Party Payments-Other Agencies,"2,571.14",Nursery,,
01/04/2021,Free Early Educ 3&4,Dawnys Day Care,Third Party Payments-Other Agencies,"30,038.15",Nursery,,
01/04/2021,Free Early Educ 3&4,Dawnys Day Care,Third Party Payments-Other Agencies,"3,922.32",Nursery,,
01/04/2021,Free Early Educ 3&4,Disability Challengers Ltd,Third Party Payments-Other Agencies,"12,741.14",Grants-Member Allocs,,
01/04/2021,Free Early Educ 3&4,Redacted Personal Data ,Third Party Payments-Other Agencies,"1,053.50",Nurseries,,
01/04/2021,Free Early Educ 3&4,Redacted Personal Data ,Third Party Payments-Other Agencies,"1,053.50",Nurseries,,
01/04/2021,Free Early Educ 3&4,Dormansland Pre school Ltd,Third Party Payments-Other Agencies,"6,522.10",Nursery,,
01/04/2021,Free Early Educ 3&4,Downsend Pre-Prep Ashtead,Third Party Payments-Other Agencies,"15,326.78",Schools,,
01/04/2021,Free Early Educ 3&4,Downsend Pre-Prep Epsom,Third Party Payments-Other Agencies,"13,507.22",Schools,,
01/04/2021,Free Early Educ 3&4,Downsend Pre-Prep Leatherhead,Third Party Payments-Other Agencies,"19,345.39",Schools,,
01/04/2021,Free Early Educ 3&4,Downside Nursery School,Third Party Payments-Other Agencies,"14,808.53",Nurseries,,
01/04/2021,Free Early Educ 3&4,Ducklings Pre-School,Third Party Payments-Other Agencies,"15,346.61",Schools,,
01/04/2021,Free Early Educ 3&4,Duke of Kent School,Third Party Payments-Other Agencies,"5,938.70",Schools,,
01/04/2021,Free Early Educ 3&4,East Horley Playgroup Ltd,Third Party Payments-Other Agencies,"14,629.40",Nursery,,
01/04/2021,Free Early Educ 3&4,Edgeborough School,Third Party Payments-Other Agencies,"16,694.64",Schools,,
01/04/2021,Free Early Educ 3&4,Elm Tree Pre School Ltd,Third Party Payments-Other Agencies,"14,579.14",Nurseries,,
01/04/2021,Free Early Educ 3&4,Elmdon Nursery School,Third Party Payments-Other Agencies,"11,183.57",Nurseries,,
01/04/2021,Free Early Educ 3&4,Emmas Childcare Services,Third Party Payments-Other Agencies,526.75,CIN Pathfinder,,
01/04/2021,Free Early Educ 3&4,Emmas Childcare Services,Third Party Payments-Other Agencies,526.75,CIN Pathfinder,,
01/04/2021,Free Early Educ 3&4,Englefield Green Montessori School,Third Party Payments-Other Agencies,"6,884.59",Nursery,,
01/04/2021,Free Early Educ 3&4,Englefield Green Nursery & Preschoo,Third Party Payments-Other Agencies,"15,024.95",Nursery,,
01/04/2021,FLT 1A LIB STONELEGH,Epsom & Ewell Borough Council,Rates,364.84,Grants-Member Allocs,,
01/04/2021,ELECTIONS & BY-ELEC,Epsom & Ewell Borough Council,Venue Costs (including Hire of Rooms),"121,914.00",Grants-Member Allocs,,
01/04/2021,Free Early Educ 3&4,Epsom Downs Playgroup,Third Party Payments-Other Agencies,"11,053.86",Nurseries,,
01/04/2021,Free Early Educ 3&4,Epsom Methodist Nursery,Third Party Payments-Other Agencies,"13,401.02",Nurseries,,
01/04/2021,Free Early Educ 3&4,Epsom Playhouse Pre School,Third Party Payments-Other Agencies,"12,803.47",Nurseries,,
01/04/2021,Free Early Educ 3&4,Essendene Lodge School,Third Party Payments-Other Agencies,"8,759.38",Schools,,
01/04/2021,Free Early Educ 3&4,Ewell Castle School,Third Party Payments-Other Agencies,"9,354.10",Schools,,
01/04/2021,Free Early Educ 3&4,Farnham Montessori School,Third Party Payments-Other Agencies,"11,732.98",Schools,,
01/04/2021,Free Early Educ 3&4,Farthings Nursery Ltd,Third Party Payments-Other Agencies,"7,261.25",Individual - NEC,,
01/04/2021,Free Early Educ 3&4,Redacted Personal Data ,Third Party Payments-Other Agencies,526.75,Nursery,,
01/04/2021,Free Early Educ 3&4,Felton Fleet School Trust Ltd,Third Party Payments-Other Agencies,"13,576.61",Schools,,
01/04/2021,Free Early Educ 3&4,Fennies @ Albert Road,Third Party Payments-Other Agencies,"15,275.81",Nursery,,
01/04/2021,Free Early Educ 3&4,Fennies @ Albert Road,Third Party Payments-Other Agencies,"10,535.04",Nursery,,
01/04/2021,Free Early Educ 2 yr,Fennies @ Albert Road,Third Party Payments-Other Agencies,665.14,Nursery,,
01/04/2021,Free Early Educ 3&4,Fennies @ Woodham House Woking,Third Party Payments-Other Agencies,"17,382.82",Nursery,,
01/04/2021,Free Early Educ 3&4,Fennies @ Woodham House Woking,Third Party Payments-Other Agencies,"25,810.85",Nursery,,
01/04/2021,Free Early Educ 2 yr,Fennies @ Woodham House Woking,Third Party Payments-Other Agencies,665.14,Nursery,,
01/04/2021,Free Early Educ 3&4,Fennies Day Nurseries Ltd,Third Party Payments-Other Agencies,"3,160.51",Educ Finance Serv,,
01/04/2021,Free Early Educ 3&4,Fennies Day Nurseries Ltd,Third Party Payments-Other Agencies,"6,321.02",Educ Finance Serv,,
01/04/2021,Free Early Educ 3&4,Fennies Day Nursery - Epsom,Third Party Payments-Other Agencies,"8,428.03",Nursery,,
01/04/2021,Free Early Educ 2 yr,Fennies Day Nursery - Epsom,Third Party Payments-Other Agencies,"1,330.27",Nursery,,
01/04/2021,Free Early Educ 3&4,Fennies Day Nursery - Epsom,Third Party Payments-Other Agencies,"17,382.82",Nursery,,
01/04/2021,Free Early Educ 3&4,Fetcham Village Pre-School,Third Party Payments-Other Agencies,"20,682.10",Schools,,
01/04/2021,Free Early Educ 3&4,First Steps Nursery Ltd,Third Party Payments-Other Agencies,"19,351.73",Nurseries,,
01/04/2021,Free Early Educ 3&4,Fitzsimmons Place Nursery,Third Party Payments-Other Agencies,"28,040.00",Nurseries,,
01/04/2021,Free Early Educ 3&4,Flying Start Day Nursery Barnsmead,Third Party Payments-Other Agencies,"15,904.51",Nurseries,,
01/04/2021,Free Early Educ 3&4,Flying Start Day Nursery Moorlands,Third Party Payments-Other Agencies,"15,794.06",Nurseries,,
01/04/2021,Free Early Educ 3&4,Flying Start Pre-school,Third Party Payments-Other Agencies,"16,642.25",Nursery,,
01/04/2021,Free Early Educ 3&4,Footprints Day Nursery,Third Party Payments-Other Agencies,"12,973.39",Nurseries,,
01/04/2021,Free Early Educ 3&4,Footprints Day Nursery Staines Ltd,Third Party Payments-Other Agencies,"5,581.87",Nurseries,,
01/04/2021,Free Early Educ 3&4,Footprints Montessori Day Nursery,Third Party Payments-Other Agencies,"24,046.51",Nurseries,,
01/04/2021,Free Early Educ 3&4,Footprints Pre School,Third Party Payments-Other Agencies,"19,436.02",Nurseries,,
01/04/2021,Free Early Educ 3&4,Foundations Community Pre-School,Third Party Payments-Other Agencies,"23,083.63",Nursery,,
01/04/2021,Free Early Educ 3&4,Foundations Community Pre-School Lt,Third Party Payments-Other Agencies,"12,827.54",Nursery,,
01/04/2021,Free Early Educ 3&4,Fox Cubs Forest Nursery,Third Party Payments-Other Agencies,"19,822.42",Playgroup,,
01/04/2021,Free Early Educ 3&4,Frensham Heights School & Nursery,Third Party Payments-Other Agencies,"1,588.75",Schools,,
01/04/2021,Free Early Educ 3&4,Friends Forest Nursery,Third Party Payments-Other Agencies,"13,541.60",Nurseries,,
01/04/2021,Free Early Educ 3&4,Friends Forest Nursery Ltd Shere,Third Party Payments-Other Agencies,"12,195.95",CIN Pathfinder,,
01/04/2021,Free Early Educ 3&4,Frimley Green Pre School,Third Party Payments-Other Agencies,"12,300.79",Nurseries,,
01/04/2021,Free Early Educ 3&4,Frimley Health NHS Foundation Trust,Third Party Payments-Other Agencies,"25,687.80",Sexual Health,,
01/04/2021,Free Early Educ 3&4,Frimley Nest Day Nursery Ltd,Third Party Payments-Other Agencies,"6,871.45",Educ Finance Serv,,
01/04/2021,Free Early Educ 3&4,Glenesk School,Third Party Payments-Other Agencies,"18,521.28",Schools,,
01/04/2021,Free Early Educ 3&4,Golden Owls Day Nursery,Third Party Payments-Other Agencies,"23,222.40",Nurseries,,
01/04/2021,Free Early Educ 3&4,Grayswood Nursery School,Third Party Payments-Other Agencies,"14,395.76",Nursery,,
01/04/2021,Free Early Educ 3&4,Greenfield School,Third Party Payments-Other Agencies,"20,680.96",Schools,,
01/04/2021,Free Early Educ 3&4,Greenways Nursery School,Third Party Payments-Other Agencies,"5,675.33",Nurseries,,
01/04/2021,8 GOSDEN COMMON,Guildford Borough Council - Council,Rates,251.48,Local Government,,
01/04/2021,Free Early Educ 3&4,Guildford Childcare Ltd - Narnia,Third Party Payments-Other Agencies,"5,428.94",Nursery,,
01/04/2021,Free Early Educ 3&4,Guildford Montessori Nursery School,Third Party Payments-Other Agencies,"15,666.62",Nurseries,,
01/04/2021,Free Early Educ 3&4,Hall Grove School Ltd,Third Party Payments-Other Agencies,"13,058.35",Schools,,
01/04/2021,Free Early Educ 3&4,Halstead Preparatory School,Third Party Payments-Other Agencies,"9,881.56",Schools,,
01/04/2021,Free Early Educ 3&4,Hambledon Nursery School Ltd,Third Party Payments-Other Agencies,"21,149.38",Nurseries,,
01/04/2021,Free Early Educ 3&4,Happy Days Preschool,Third Party Payments-Other Agencies,623.04,Nursery,,
01/04/2021,Free Early Educ 3&4,Happy Days Preschool,Third Party Payments-Other Agencies,"3,738.24",Nursery,,
01/04/2021,Free Early Educ 3&4,Happy Days Pre-school,Third Party Payments-Other Agencies,"8,312.63",Nursery,,
01/04/2021,Free Early Educ 3&4,Happy Days Preschool Oatlands,Third Party Payments-Other Agencies,934.56,Nursery,,
01/04/2021,Free Early Educ 3&4,Happy Days Preschool Oatlands,Third Party Payments-Other Agencies,"1,869.12",Nursery,,
01/04/2021,Free Early Educ 3&4,Happy Feet Pre School,Third Party Payments-Other Agencies,"9,161.52",Nursery,,
01/04/2021,Free Early Educ 3&4,Happy Stars Pre School,Third Party Payments-Other Agencies,"6,963.89",Grants-Member Allocs,,
01/04/2021,Free Early Educ 3&4,Happy Tots Pre-School,Third Party Payments-Other Agencies,"18,671.38",Schools,,
01/04/2021,Free Early Educ 3&4,Hazeltots Pre School,Third Party Payments-Other Agencies,"19,308.58",Staff Training,,
01/04/2021,Free Early Educ 3&4,Heatherside Pre-School,Third Party Payments-Other Agencies,"10,738.94",Grants-Member Allocs,,
01/04/2021,Free Early Educ 3&4,Heatherside Pre-School,Third Party Payments-Other Agencies,"12,574.08",Grants-Member Allocs,,
01/04/2021,Free Early Educ 3&4,Hightrees Nursery Ltd,Third Party Payments-Other Agencies,"15,343.78",Nursery,,
01/04/2021,Free Early Educ 3&4,Hoe Bridge School Ltd,Third Party Payments-Other Agencies,"22,665.63",Schools,,
01/04/2021,Free Early Educ 3&4,Holy Trinity Pre School Ltd,Third Party Payments-Other Agencies,"12,815.51",Schools,,
01/04/2021,Free Early Educ 3&4,Home from Home Chiildrens Daycare,Third Party Payments-Other Agencies,"2,894.36",Educ Finance Serv,,
01/04/2021,Free Early Educ 3&4,Home From Home Childrens Day Care L,Third Party Payments-Other Agencies,"22,115.40",Nursery,,
01/04/2021,Free Early Educ 3&4,Honeypots Pre School Walton,Third Party Payments-Other Agencies,"10,161.22",Schools,,
01/04/2021,Free Early Educ 3&4,Honeypots Pre School Weybridge,Third Party Payments-Other Agencies,"8,292.10",Schools,,
01/04/2021,Free Early Educ 3&4,Hopscotch Montessori Nursery,Third Party Payments-Other Agencies,"2,496.41",Playgroup,,
01/04/2021,Free Early Educ 3&4,Horley Community Pre School,Third Party Payments-Other Agencies,"16,354.80",Nursery,,
01/04/2021,Free Early Educ 3&4,Horley Community Preschool -Stawson,Third Party Payments-Other Agencies,"15,309.79",School Support Serv,,
01/04/2021,Free Early Educ 3&4,Horley Row Community Pre School,Third Party Payments-Other Agencies,"15,299.17",Nurseries,,
01/04/2021,Free Early Educ 3&4,Horseshoe Community Pre School,Third Party Payments-Other Agencies,"8,563.97",Schools,,
01/04/2021,Free Early Educ 3&4,Horseshoe Day Nursery,Third Party Payments-Other Agencies,"21,717.67",Nurseries,,
01/04/2021,Free Early Educ 3&4,Huggetts Day Nursery & Preschool,Third Party Payments-Other Agencies,"8,967.07",Nurseries,,
01/04/2021,Free Early Educ 3&4,Hurst Green Busy Bees Playgroup,Third Party Payments-Other Agencies,"6,088.80",Nurseries,,
01/04/2021,Free Early Educ 3&4,Jack & Jill Nursery Group,Third Party Payments-Other Agencies,"23,746.32",Nurseries,,
01/04/2021,Free Early Educ 3&4,Jack & Jill Pre School,Third Party Payments-Other Agencies,"10,264.58",Schools,,
01/04/2021,Free Early Educ 3&4,Jackanory Pre-School,Third Party Payments-Other Agencies,"17,218.56",Schools,,
01/04/2021,Free Early Educ 3&4,Jigsaw Playgroup,Third Party Payments-Other Agencies,"13,491.65",Nurseries,,
01/04/2021,Free Early Educ 3&4,Joanne Garbett Childcare,Third Party Payments-Other Agencies,509.76,Family Support,,
01/04/2021,Free Early Educ 3&4,Joanne Garbett Childcare,Third Party Payments-Other Agencies,509.76,Family Support,,
01/04/2021,Free Early Educ 3&4,Jollies House Ltd,Third Party Payments-Other Agencies,"12,253.27",Nurseries,,
01/04/2021,Free Early Educ 3&4,Jollies House Ltd,Third Party Payments-Other Agencies,"17,073.56",Nurseries,,
01/04/2021,Free Early Educ 3&4,Kateys Nursery & Pre-School,Third Party Payments-Other Agencies,"3,160.51",Nursery,,
01/04/2021,Free Early Educ 3&4,Kateys Nursery & Pre-School,Third Party Payments-Other Agencies,"5,794.27",Nursery,,
01/04/2021,Free Early Educ 3&4,Kiddi Caru Day Nursery,Third Party Payments-Other Agencies,"36,792.95",Nursery,,
01/04/2021,Free Early Educ 3&4,Kids Club 2001,Third Party Payments-Other Agencies,"3,922.32",Nurseries,,
01/04/2021,Free Early Educ 3&4,Kids Inc Nurseries,Third Party Payments-Other Agencies,"10,535.04",Nurseries,,
01/04/2021,Free Early Educ 3&4,Kids Inc Nurseries,Third Party Payments-Other Agencies,"10,789.92",Nurseries,,
01/04/2021,Free Early Educ 3&4,Kings Pre School Tots,Third Party Payments-Other Agencies,"24,033.06",Nursery,,
01/04/2021,Free Early Educ 3&4,Kiwi's Ltd,Third Party Payments-Other Agencies,"5,233.54",Health Visiting,,
01/04/2021,STARHURST SCHOOL,Mole Valley District Council - Tax,Rates,490.38,Local Government,,
01/04/2021,UNIFIED ACADEMY,Mole Valley District Council - Tax,Rates,312.06,Local Government,,
01/04/2021,PERM SURP LAND,Mole Valley District Council - Tax,Rates,490.38,Local Government,,
01/04/2021,SUNYRIDGE KNLL FM LA,Mole Valley District Council - Tax,Rates,691.20,Local Government,,
01/04/2021,Free Early Educ 3&4,Null,Third Party Payments-Other Agencies,373.82,Educ Finance Serv,,
01/04/2021,Free Early Educ 3&4,Null,Third Party Payments-Other Agencies,526.75,Educ Finance Serv,,
01/04/2021,Free Early Educ 3&4,Null,Third Party Payments-Other Agencies,441.79,Individual - NEC,,
01/04/2021,Free Early Educ 3&4,Null,Third Party Payments-Other Agencies,526.75,Individual - NEC,,
01/04/2021,Free Early Educ 2 yr,Null,Third Party Payments-Other Agencies,643.68,Individual - NEC,,
01/04/2021,Free Early Educ 3&4,Null,Third Party Payments-Other Agencies,509.76,Individual - NEC,,
01/04/2021,Free Early Educ 3&4,Null,Third Party Payments-Other Agencies,"2,107.01",Nurseries,,
01/04/2021,Free Early Educ 3&4,Null,Third Party Payments-Other Agencies,"2,107.01",Nurseries,,
01/04/2021,Free Early Educ 3&4,Null,Third Party Payments-Other Agencies,526.75,Individual - NEC,,
01/04/2021,Free Early Educ 3&4,Null,Third Party Payments-Other Agencies,396.48,Nursery,,
01/04/2021,Free Early Educ 3&4,Null,Third Party Payments-Other Agencies,"1,040.76",Nursery,,
01/04/2021,SW TRANSPORT,Redacted Personal data,Non-Staff Related Transport Costs,270.00,Childrens Indiv Tran,,
01/04/2021,SW TRANSPORT,Redacted Personal data,Non-Staff Related Transport Costs,270.00,Childrens Indiv Tran,,
01/04/2021,SE TRANSPORT,Redacted Personal Data,Non-Staff Related Transport Costs,420.00,Childrens Indiv Tran,,
01/04/2021,SE TRANSPORT,Redacted Personal Data,Non-Staff Related Transport Costs,270.00,Childrens Indiv Tran,,
01/04/2021,SW TRANSPORT,Redacted Personal Data,Non-Staff Related Transport Costs,420.00,Childrens Indiv Tran,,
01/04/2021,SE TRANSPORT,Redacted Personal Data,Non-Staff Related Transport Costs,270.00,Childrens Indiv Tran,,
01/04/2021,SW TRANSPORT,Redacted Personal Data,Non-Staff Related Transport Costs,420.00,Childrens Indiv Tran,,
01/04/2021,SE TRANSPORT,Redacted Personal Data,Non-Staff Related Transport Costs,420.00,Childrens Indiv Tran,,
01/04/2021,Free Early Educ 3&4,Redacted Personal Data,Third Party Payments-Other Agencies,594.72,Nursery,,
01/04/2021,Free Early Educ 3&4,Redacted Personal Data,Third Party Payments-Other Agencies,"1,682.21",Nursery,,
01/04/2021,Free Early Educ 3&4,Redacted Personal Data,Third Party Payments-Other Agencies,"8,394.05",Individual - NEC,,
01/04/2021,Free Early Educ 3&4,Redacted Personal Data,Third Party Payments-Other Agencies,591.89,Nursery,,
01/04/2021,Free Early Educ 3&4,Redacted Personal Data,Third Party Payments-Other Agencies,591.89,Nursery,,
01/04/2021,Free Early Educ 3&4,Redacted Personal Data,Third Party Payments-Other Agencies,"6,999.46",Nursery,,
01/04/2021,Free Early Educ 3&4,Redacted Personal Data,Third Party Payments-Other Agencies,"4,740.77",Nurseries,,
01/04/2021,Free Early Educ 3&4,Redacted Personal Data,Third Party Payments-Other Agencies,"5,267.52",Nurseries,,
01/04/2021,Free Early Educ 3&4,Redacted Personal Data,Third Party Payments-Other Agencies,"1,053.50",Educ Finance Serv,,
01/04/2021,Free Early Educ 3&4,Redacted Personal Data,Third Party Payments-Other Agencies,991.20,Educ Finance Serv,,
01/04/2021,Free Early Educ 3&4,Redacted Personal Data,Third Party Payments-Other Agencies,475.78,Playgroup,,
01/04/2021,Free Early Educ 3&4,Redacted Personal Data,Third Party Payments-Other Agencies,"1,210.68",Playgroup,,
01/04/2021,Free Early Educ 3&4,Redacted Personal Data,Third Party Payments-Other Agencies,526.75,Nursery,,
01/04/2021,Free Early Educ 3&4,Redacted Personal Data,Third Party Payments-Other Agencies,526.75,Nursery,,
01/04/2021,Free Early Educ 3&4,Redacted Personal Data,Third Party Payments-Other Agencies,526.75,Nursery,,
01/04/2021,Free Early Educ 3&4,Redacted Personal data,Third Party Payments-Other Agencies,354.00,Educ Finance Serv,,
01/04/2021,Free Early Educ 2 yr,Redacted Personal data,Third Party Payments-Other Agencies,532.11,Nursery,,
01/04/2021,Free Early Educ 3&4,Redacted Personal data,Third Party Payments-Other Agencies,"3,120.86",CIN Pathfinder,,
01/04/2021,Free Early Educ 3&4,Redacted Personal data,Third Party Payments-Other Agencies,"2,690.40",CIN Pathfinder,,
01/04/2021,Free Early Educ 3&4,Redacted Personal data,Third Party Payments-Other Agencies,"1,053.50",Non Trade,,
01/04/2021,Free Early Educ 3&4,Redacted Personal data,Third Party Payments-Other Agencies,716.50,Nursery,,
01/04/2021,Free Early Educ 3&4,Redacted Personal data,Third Party Payments-Other Agencies,798.62,Nursery,,
01/04/2021,Free Early Educ 3&4,Redacted Personal data,Third Party Payments-Other Agencies,264.79,Nursery,,
01/04/2021,Free Early Educ 3&4,Redacted Personal data,Third Party Payments-Other Agencies,264.79,Nursery,,
01/04/2021,Free Early Educ 3&4,Redacted Personal data,Third Party Payments-Other Agencies,526.75,Nurseries,,
01/04/2021,Free Early Educ 3&4,Redacted Personal data,Third Party Payments-Other Agencies,"1,371.54",Nursery,,
01/04/2021,Free Early Educ 3&4,Redacted Personal data,Third Party Payments-Other Agencies,"2,057.31",Nursery,,
01/04/2021,Free Early Educ 3&4,Redacted Personal data,Third Party Payments-Other Agencies,855.26,Nursery,,
01/04/2021,Free Early Educ 3&4,Redacted Personal data,Third Party Payments-Other Agencies,254.88,Nursery,,
01/04/2021,Free Early Educ 3&4,Redacted Personal data,Third Party Payments-Other Agencies,294.53,Nurseries,,
01/04/2021,Free Early Educ 3&4,Redacted Personal data,Third Party Payments-Other Agencies,"2,378.88",Nursery,,
01/04/2021,Free Early Educ 3&4,Redacted Personal data,Third Party Payments-Other Agencies,"2,107.01",Individual - NEC,,
01/04/2021,Free Early Educ 3&4,Redacted Personal data,Third Party Payments-Other Agencies,969.96,Nursery,,
01/04/2021,Free Early Educ 3&4,Redacted Personal data,Third Party Payments-Other Agencies,526.75,Nursery,,
01/04/2021,Free Early Educ 3&4,Redacted Personal data,Third Party Payments-Other Agencies,560.74,Nursery,,
01/04/2021,Free Early Educ 3&4,Redacted Personal data,Third Party Payments-Other Agencies,815.62,Nursery,,
01/04/2021,Free Early Educ 3&4,Redacted Personal data,Third Party Payments-Other Agencies,526.75,Playgroup,,
01/04/2021,Free Early Educ 3&4,Redacted Personal data,Third Party Payments-Other Agencies,526.75,Playgroup,,
01/04/2021,Free Early Educ 3&4,Redacted Personal data,Third Party Payments-Other Agencies,526.75,Nursery,,
01/04/2021,Free Early Educ 3&4,Redacted Personal data,Third Party Payments-Other Agencies,526.75,Nursery,,
01/04/2021,COM BUSINESS SUPPORT,Redacted Personal data,Third Party Payments-Private Individuals,"5,000.00",Professional Irreg,,
01/04/2021,Free Early Educ 3&4,Redacted Personal data,Third Party Payments-Other Agencies,"1,053.50",Nursery,,
01/04/2021,Free Early Educ 3&4,Redacted Personal data,Third Party Payments-Other Agencies,373.82,Educ Finance Serv,,
01/04/2021,Free Early Educ 3&4,Redacted Personal data,Third Party Payments-Other Agencies,526.75,Educ Finance Serv,,
01/04/2021,Free Early Educ 3&4,Redacted Personal data,Third Party Payments-Other Agencies,"1,478.30",Nursery,,
01/04/2021,Free Early Educ 3&4,Redacted Personal data,Third Party Payments-Other Agencies,416.30,Nursery,,
01/04/2021,Free Early Educ 3&4,Redacted Personal data,Third Party Payments-Other Agencies,526.75,Nursery,,
01/04/2021,Free Early Educ 3&4,Redacted Personal data,Third Party Payments-Other Agencies,"1,019.52",Individual - NEC,,
01/04/2021,Free Early Educ 3&4,Redacted Personal data,Third Party Payments-Other Agencies,832.61,Individual - NEC,,
01/04/2021,Free Early Educ 3&4,Redacted Personal data,Third Party Payments-Other Agencies,526.75,Invoicing Plan Req.,,
01/04/2021,Free Early Educ 3&4,Redacted Personal data,Third Party Payments-Other Agencies,526.75,Invoicing Plan Req.,,
01/04/2021,Free Early Educ 3&4,Redacted Personal data,Third Party Payments-Other Agencies,883.58,Individual - NEC,,
01/04/2021,Free Early Educ 3&4,Redacted Personal data,Third Party Payments-Other Agencies,"1,053.50",Individual - NEC,,
01/04/2021,Free Early Educ 3&4,Redacted Personal data,Third Party Payments-Other Agencies,628.70,Individual - NEC,,
01/04/2021,Free Early Educ 2 yr,Redacted Personal data,Third Party Payments-Other Agencies,665.14,Nursery,,
01/04/2021,Free Early Educ 3&4,Redacted Personal data,Third Party Payments-Other Agencies,"1,580.26",Nursery,,
01/04/2021,Free Early Educ 3&4,Redacted Personal data,Third Party Payments-Other Agencies,526.75,Nursery,,
01/04/2021,Free Early Educ 3&4,Redacted Personal data,Third Party Payments-Other Agencies,351.17,Nursery,,
01/04/2021,Free Early Educ 3&4,Redacted Personal data,Third Party Payments-Other Agencies,526.75,Nursery,,
01/04/2021,Free Early Educ 3&4,Redacted Personal data,Third Party Payments-Other Agencies,611.71,Nursery,,
01/04/2021,Free Early Educ 3&4,Redacted Personal data,Third Party Payments-Other Agencies,611.71,Nursery,,
01/04/2021,Free Early Educ 2 yr,Redacted Personal data,Third Party Payments-Other Agencies,665.14,Nursery,,
01/04/2021,Free Early Educ 3&4,Redacted Personal data,Third Party Payments-Other Agencies,526.75,Nursery,,
01/04/2021,Free Early Educ 3&4,Redacted Personal data,Third Party Payments-Other Agencies,863.76,Nursery,,
01/04/2021,Free Early Educ 3&4,Redacted Personal data,Third Party Payments-Other Agencies,"1,149.79",Nursery,,
01/04/2021,Free Early Educ 3&4,Redacted Personal data,Third Party Payments-Other Agencies,529.58,Nursery,,
01/04/2021,Free Early Educ 3&4,Redacted Personal data,Third Party Payments-Other Agencies,"1,053.50",Nursery,,
01/04/2021,Free Early Educ 3&4,Redacted Personal data,Third Party Payments-Other Agencies,600.38,Individual - NEC,,
01/04/2021,Free Early Educ 3&4,Redacted Personal data,Third Party Payments-Other Agencies,600.38,Individual - NEC,,
01/04/2021,Free Early Educ 3&4,Redacted Personal data,Third Party Payments-Other Agencies,526.75,Individual - NEC,,
01/04/2021,Free Early Educ 3&4,Redacted Personal data,Third Party Payments-Other Agencies,526.75,Individual - NEC,,
01/04/2021,Free Early Educ 3&4,Redacted Personal data,Third Party Payments-Other Agencies,"1,053.50",CIN Pathfinder,,
01/04/2021,Free Early Educ 3&4,Redacted Personal data,Third Party Payments-Other Agencies,"1,474.91",CIN Pathfinder,,
01/04/2021,Free Early Educ 3&4,Redacted Personal data,Third Party Payments-Other Agencies,526.75,Nursery,,
01/04/2021,Free Early Educ 3&4,Redacted Personal data,Third Party Payments-Other Agencies,526.75,Nursery,,
01/04/2021,Free Early Educ 2 yr,Redacted Personal data,Third Party Payments-Other Agencies,665.14,Nursery,,
01/04/2021,Free Early Educ 3&4,Redacted Personal data,Third Party Payments-Other Agencies,526.75,Nursery,,
01/04/2021,Free Early Educ 3&4,Redacted Personal data,Third Party Payments-Other Agencies,526.75,Nursery,,
01/04/2021,Free Early Educ 3&4,Redacted Personal data,Third Party Payments-Other Agencies,419.14,Individual - NEC,,
01/04/2021,Free Early Educ 3&4,Redacted Personal data,Third Party Payments-Other Agencies,"1,053.50",Nursery,,
01/04/2021,Free Early Educ 3&4,Redacted Personal data,Third Party Payments-Other Agencies,"1,053.50",Nursery,,
01/04/2021,1 ELMWOOD RD REDHILL,Reigate & Banstead Borough Council,Rates,255.58,Local Government,,
01/04/2021,WHITE COT 34 KGTN RD,Spelthorne Borough Council,Rates,373.46,Grants-Member Allocs,,
01/04/2021,WASTE - PLANNING,Spelthorne Borough Council,Rates,441.35,Grants-Member Allocs,,
01/04/2021,PINEHURST,Surrey Heath Borough Council - Tax,Rates,376.70,Local Government,,
01/04/2021,Orchard,Tandridge District Council,Rates,374.08,Local Government,,
01/04/2021,STYCHENS LANE BLETCH,Tandridge District Council,Rates,511.10,Local Government,,
01/04/2021,ASHTEAD YOUTH CENTRE,Wilks Head & Eve,Rates,329.00,Individual - NEC,,
01/04/2021,BAGSHOT DEPOT,Wilks Head & Eve,Rates,"2,727.00",Individual - NEC,,
01/04/2021,FRANCE HILL HOUSE,Wilks Head & Eve,Rates,"2,393.00",Individual - NEC,,
01/04/2021,FRIMLEY GREEN YC,Wilks Head & Eve,Rates,428.75,Individual - NEC,,
01/04/2021,CAMBERLEY FIRE STN,Wilks Head & Eve,Rates,"3,865.00",Individual - NEC,,
01/04/2021,FRIMLEY GRN LIB,Wilks Head & Eve,Rates,724.50,Individual - NEC,,
01/04/2021,OLD DEAN YC CAMBERLE,Wilks Head & Eve,Rates,304.60,Individual - NEC,,
01/04/2021,ST FRANCIS CTH PRY C,Wilks Head & Eve,Rates,469.20,Individual - NEC,,
01/04/2021,ST JOHNS CEJ CATERHM,Wilks Head & Eve,Rates,835.40,Individual - NEC,,
01/04/2021,MOLE VALLEY FAM CNTR,Wilks Head & Eve,Rates,"1,219.75",Individual - NEC,,
01/04/2021,ST LAWRENCE CE E MOL,Wilks Head & Eve,Rates,935.00,Individual - NEC,,
01/04/2021,EGHAM YOUTH CENTRE,Wilks Head & Eve,Rates,377.00,Individual - NEC,,
01/04/2021,EGHAM LIB,Wilks Head & Eve,Rates,"1,016.50",Individual - NEC,,
01/04/2021,MANORCROFT PRY,Wilks Head & Eve,Rates,"3,072.00",Individual - NEC,,
01/04/2021,EWELL GROVE PRIMARY,Wilks Head & Eve,Rates,"1,615.25",Individual - NEC,,
01/04/2021,FOCUS YOUTH CENTRE,Wilks Head & Eve,Rates,484.25,Individual - NEC,,
01/04/2021,STAMFORD GREEN PRY,Wilks Head & Eve,Rates,"4,441.00",Individual - NEC,,
01/04/2021,STONELEIGH LIB,Wilks Head & Eve,Rates,979.50,Individual - NEC,,
01/04/2021,CRANMERE PRY ESHER,Wilks Head & Eve,Rates,"6,105.00",Individual - NEC,,
01/04/2021,ESHER FIRE STATION,Wilks Head & Eve,Rates,"2,585.00",Individual - NEC,,
01/04/2021,BADSHOT LEA VILL INF,Wilks Head & Eve,Rates,"1,426.75",Individual - NEC,,
01/04/2021,FARNHAM LIB,Wilks Head & Eve,Rates,"2,535.00",Individual - NEC,,
01/04/2021,MOSS LANE SCHOOL,Wilks Head & Eve,Rates,894.50,Individual - NEC,,
01/04/2021,ASH MANOR SCHOOL,Wilks Head & Eve,Rates,"10,777.00",Individual - NEC,,
01/04/2021,BRAMLEY LIB,Wilks Head & Eve,Rates,861.25,Individual - NEC,,
01/04/2021,GUILDFORD CHILDS CTR,Wilks Head & Eve,Rates,"3,584.00",Individual - NEC,,
01/04/2021,MERROW CEI,Wilks Head & Eve,Rates,"1,360.25",Individual - NEC,,
01/04/2021,ONSLOW INF,Wilks Head & Eve,Rates,"1,548.75",Individual - NEC,,
01/04/2021,PARK HOUSE SHALFORD,Wilks Head & Eve,Rates,"2,201.00",Individual - NEC,,
01/04/2021,WEST HOUSE COMPLEX,Wilks Head & Eve,Rates,"6,567.00",Individual - NEC,,
01/04/2021,DR DATA CTR UNIT 10,Wilks Head & Eve,Rates,"2,599.00",Individual - NEC,,
01/04/2021,WONERSH&SHAM GN CEP,Wilks Head & Eve,Rates,266.80,Individual - NEC,,
01/04/2021,SHOTTERMILL INF,Wilks Head & Eve,Rates,"1,652.25",Individual - NEC,,
01/04/2021,CHARLWOOD VILL INF,Wilks Head & Eve,Rates,532.25,Individual - NEC,,
01/04/2021,ROYAL KENT CEP,Wilks Head & Eve,Rates,"2,099.50",Individual - NEC,,
01/04/2021,ST ANDREWS CATH LHD,Wilks Head & Eve,Rates,"1,536.00",Individual - NEC,,
01/04/2021,BOOKHAM LIB (NEW),Wilks Head & Eve,Rates,462.00,Individual - NEC,,
01/04/2021,THE BRIDGE,Wilks Head & Eve,Rates,340.80,Individual - NEC,,
01/04/2021,THE MANSION L'HEAD,Wilks Head & Eve,Rates,"1,153.25",Individual - NEC,,
01/04/2021,THE MANSION L'HEAD,Wilks Head & Eve,Rates,"1,789.00",Individual - NEC,,
01/04/2021,DORMANSLAND PRY,Wilks Head & Eve,Rates,"2,099.50",Individual - NEC,,
01/04/2021,LINGFIELD PRY,Wilks Head & Eve,Rates,"3,712.00",Individual - NEC,,
01/04/2021,HOLLAND JUN,Wilks Head & Eve,Rates,"2,240.00",Individual - NEC,,
01/04/2021,SHEPPERTON YOUTH CTR,Wilks Head & Eve,Rates,334.90,Individual - NEC,,
01/04/2021,ST NICHOLAS CEP SHEP,Wilks Head & Eve,Rates,775.20,Individual - NEC,,
01/04/2021,NE SHORT STAY SCH,Wilks Head & Eve,Rates,522.07,Individual - NEC,,
01/04/2021,STAINES YTH SPTS CTR,Wilks Head & Eve,Rates,635.75,Individual - NEC,,
01/04/2021,THE AVENUE SUNBURY,Wilks Head & Eve,Rates,"1,426.75",Individual - NEC,,
01/04/2021,ST IGNATIUS RCP,Wilks Head & Eve,Rates,632.80,Individual - NEC,,
01/04/2021,DITTONS LIB,Wilks Head & Eve,Rates,757.75,Individual - NEC,,
01/04/2021,ST PAULS CATH PRY TD,Wilks Head & Eve,Rates,750.20,Individual - NEC,,
01/04/2021,THAMES DITTON JUN,Wilks Head & Eve,Rates,899.40,Individual - NEC,,
01/04/2021,BELL FARM -PRIMARY,Wilks Head & Eve,Rates,"3,417.00",Individual - NEC,,
01/04/2021,WALTON YOUTH CENTRE,Wilks Head & Eve,Rates,432.50,Individual - NEC,,
01/04/2021,ASHFORD CEP,Wilks Head & Eve,Rates,568.80,Individual - NEC,,
01/04/2021,ASHFORD PARK PRY,Wilks Head & Eve,Rates,"4,864.00",Individual - NEC,,
01/04/2021,ASHFORD LIB,Wilks Head & Eve,Rates,"1,482.25",Individual - NEC,,
01/04/2021,ST MICHAEL RCP ASHFD,Wilks Head & Eve,Rates,643.40,Individual - NEC,,
01/04/2021,BARNETT WOOD INF,Wilks Head & Eve,Rates,"1,101.50",Individual - NEC,,
01/04/2021,ASHTEAD LIB,Wilks Head & Eve,Rates,621.00,Individual - NEC,,
01/04/2021,ST GILES CEI ASHTD,Wilks Head & Eve,Rates,269.60,Individual - NEC,,
01/04/2021,BAGSHOT INF,Wilks Head & Eve,Rates,"1,770.50",Individual - NEC,,
01/04/2021,HEATHER RIDGE INF,Wilks Head & Eve,Rates,"1,925.75",Individual - NEC,,
01/04/2021,CATERHAM VALLEY LBRY,Wilks Head & Eve,Rates,"1,722.50",Individual - NEC,,
01/04/2021,PERM SURP LAND,Wilks Head & Eve,Rates,462.00,Individual - NEC,,
01/04/2021,CHERTSEY NURSERY,Wilks Head & Eve,Rates,"3,929.00",Individual - NEC,,
01/04/2021,WARLINGHAM LIB,Wilks Head & Eve,Rates,353.40,Individual - NEC,,
01/04/2021,HURST PARK PRY,Wilks Head & Eve,Rates,"5,760.00",Individual - NEC,,
01/04/2021,RYLSTON WEYBRIDGE,Wilks Head & Eve,Rates,"2,688.00",Individual - NEC,,
01/04/2021,PUBLIC LIB OFFS WEYB,Wilks Head & Eve,Rates,"2,983.00",Individual - NEC,,
01/04/2021,BISLEY CEP,Wilks Head & Eve,Rates,437.40,Individual - NEC,,
01/04/2021,LAKERS YC WOKING,Wilks Head & Eve,Rates,407.30,Individual - NEC,,
01/04/2021,WOKING CORONER CT,Wilks Head & Eve,Rates,"10,073.00",Individual - NEC,,
01/04/2021,QUADRANT CT WOKING,Wilks Head & Eve,Rates,"43,097.00",Individual - NEC,,
01/04/2021,PERM SURPLUS NON-RES,Wilks Head & Eve,Rates,"2,304.00",Individual - NEC,,
01/04/2021,BOOKHAM YOUTH CENTRE,Wilks Head & Eve,Rates,366.20,Individual - NEC,,
01/04/2021,SUNBURY & SHEP SS,Wilks Head & Eve,Rates,"1,760.00",Individual - NEC,,
01/04/2021,LYNE & LONG CROSS CE,Wilks Head & Eve,Rates,540.40,Individual - NEC,,
01/04/2021,CRANLEIGH CE VC PRIM,Wilks Head & Eve,Rates,355.40,Individual - NEC,,
01/04/2021,GLEBELANDS,Wilks Head & Eve,Rates,"8,615.00",Individual - NEC,,
01/04/2021,CRANLEIGH LIB,Wilks Head & Eve,Rates,"1,012.75",Individual - NEC,,
01/04/2021,DORKING FIRE STATION,Wilks Head & Eve,Rates,"1,962.75",Individual - NEC,,
01/04/2021,ST MARTINS CEP DORK,Wilks Head & Eve,Rates,"2,099.50",Individual - NEC,,
01/04/2021,THE DORKING CENTRE,Wilks Head & Eve,Rates,340.80,Individual - NEC,,
01/04/2021,MALTHOUSE YC D'KING,Wilks Head & Eve,Rates,414.00,Individual - NEC,,
01/04/2021,FELBRIDGE PRY,Wilks Head & Eve,Rates,"2,521.00",Individual - NEC,,
01/04/2021,THORPE LEA PRY,Wilks Head & Eve,Rates,"1,929.50",Individual - NEC,,
01/04/2021,SOUTHFIELD PARK,Wilks Head & Eve,Rates,"3,175.00",Individual - NEC,,
01/04/2021,ST MARTINS SCHS(FED),Wilks Head & Eve,Rates,380.40,Individual - NEC,,
01/04/2021,CLAYGATE PRY,Wilks Head & Eve,Rates,775.20,Individual - NEC,,
01/04/2021,FARNHAM FIRE STATION,Wilks Head & Eve,Rates,"3,737.00",Individual - NEC,,
01/04/2021,ST PAULS CEI TONG,Wilks Head & Eve,Rates,"1,064.50",Individual - NEC,,
01/04/2021,BUSBRIDGE CEJ,Wilks Head & Eve,Rates,394.80,Individual - NEC,,
01/04/2021,GODALMING SSC,Wilks Head & Eve,Rates,"1,511.75",Individual - NEC,,
01/04/2021,FARNCOMBE CEI,Wilks Head & Eve,Rates,"1,086.75",Individual - NEC,,
01/04/2021,ST EDMUNDS CATH PRY,Wilks Head & Eve,Rates,419.40,Individual - NEC,,
01/04/2021,GUILDFORD AEI,Wilks Head & Eve,Rates,"2,535.00",Individual - NEC,,
01/04/2021,ASH GRANGE PRY,Wilks Head & Eve,Rates,"2,201.00",Individual - NEC,,
01/04/2021,GOMSHALL FIRE STN,Wilks Head & Eve,Rates,"1,083.00",Individual - NEC,,
01/04/2021,ARTINGTON HOUSE,Wilks Head & Eve,Rates,"2,010.75",Individual - NEC,,
01/04/2021,ST JOSEPHS CTH PRY G,Wilks Head & Eve,Rates,"1,753.00",Individual - NEC,,
01/04/2021,14 THE PINES,Wilks Head & Eve,Rates,"3,417.00",Individual - NEC,,
01/04/2021,TILLINGBOURNE JUN,Wilks Head & Eve,Rates,"2,944.00",Individual - NEC,,
01/04/2021,WALSH CEJ ASH,Wilks Head & Eve,Rates,"3,175.00",Individual - NEC,,
01/04/2021,WORPLESDON PRY,Wilks Head & Eve,Rates,"4,736.00",Individual - NEC,,
01/04/2021,GRAYSWOOD CE PRIMARY,Wilks Head & Eve,Rates,444.60,Individual - NEC,,
01/04/2021,HASLEMERE LIB,Wilks Head & Eve,Rates,772.50,Individual - NEC,,
01/04/2021,ST BARTHOLOMEWS CEP,Wilks Head & Eve,Rates,707.40,Individual - NEC,,
01/04/2021,BEACON HILL COMM,Wilks Head & Eve,Rates,"2,240.00",Individual - NEC,,
01/04/2021,DAWNAY SCHOOL,Wilks Head & Eve,Rates,"2,215.00",Individual - NEC,,
01/04/2021,FAIRMOUNT HOUSE,Wilks Head & Eve,Rates,"22,400.00",Individual - NEC,,
01/04/2021,HORSLEY LIB,Wilks Head & Eve,Rates,809.50,Individual - NEC,,
01/04/2021,ST PETERS CATH PRY L,Wilks Head & Eve,Rates,394.80,Individual - NEC,,
01/04/2021,THE MANSION L'HEAD,Wilks Head & Eve,Rates,"3,289.00",Individual - NEC,,
01/04/2021,OXTED LIB,Wilks Head & Eve,Rates,"2,215.00",Individual - NEC,,
01/04/2021,OXTED LIB,Wilks Head & Eve,Rates,"1,083.00",Individual - NEC,,
01/04/2021,OXTED FIRE STATION,Wilks Head & Eve,Rates,"1,168.00",Individual - NEC,,
01/04/2021,FMR BLETCHINGLY AEI,Wilks Head & Eve,Rates,720.75,Individual - NEC,,
01/04/2021,NORTH DOWNS PRY,Wilks Head & Eve,Rates,484.25,Individual - NEC,,
01/04/2021,SHEPPERTON LIB,Wilks Head & Eve,Rates,447.25,Individual - NEC,,
01/04/2021,61 STAINES HIGH ST,Wilks Head & Eve,Rates,615.00,Individual - NEC,,
01/04/2021,BUCKLAND PRIMARY SCH,Wilks Head & Eve,Rates,"3,264.00",Individual - NEC,,
01/04/2021,FAIRWAYS,Wilks Head & Eve,Rates,"3,111.00",Individual - NEC,,
01/04/2021,HYTHE SCHOOL,Wilks Head & Eve,Rates,"4,096.00",Individual - NEC,,
01/04/2021,KNWL GRN STAINES LOC,Wilks Head & Eve,Rates,"2,029.25",Individual - NEC,,
01/04/2021,Beauclerc Chenneston,Wilks Head & Eve,Rates,"1,186.50",Individual - NEC,,
01/04/2021,THAMES DITTON INF,Wilks Head & Eve,Rates,412.40,Individual - NEC,,
01/04/2021,TRUMPS GREEN INF,Wilks Head & Eve,Rates,"1,652.25",Individual - NEC,,
01/04/2021,NE SHORT STAY SCH,Wilks Head & Eve,Rates,"1,064.50",Individual - NEC,,
01/04/2021,WALTON-ON-T LIB(NEW),Wilks Head & Eve,Rates,"4,185.00",Individual - NEC,,
01/04/2021,ONGAR PLACE PRIMARY,Wilks Head & Eve,Rates,"2,066.25",Individual - NEC,,
01/04/2021,WEST BYFLEET JUN,Wilks Head & Eve,Rates,"1,910.74",Individual - NEC,,
01/04/2021,ST JAMES CEP WEYB,Wilks Head & Eve,Rates,"4,160.00",Individual - NEC,,
01/04/2021,PUBLIC LIB OFFS WEYB,Wilks Head & Eve,Rates,743.00,Individual - NEC,,
01/04/2021,ADDLESTONE LIB (NEW),Wilks Head & Eve,Rates,"1,426.75",Individual - NEC,,
01/04/2021,BAGSHOT DEPOT,Wilks Head & Eve,Rates,377.80,Individual - NEC,,
01/04/2021,NORTH DOWNS PRY,Wilks Head & Eve,Rates,"2,265.00",Individual - NEC,,
01/04/2021,NORTH DOWNS PRY,Wilks Head & Eve,Rates,479.50,Individual - NEC,,
01/04/2021,FRIMLEY CE SCHOOL,Wilks Head & Eve,Rates,"2,816.00",Individual - NEC,,
01/04/2021,STEPGATES COMM SCH,Wilks Head & Eve,Rates,"1,718.75",Individual - NEC,,
01/04/2021,CRANLEIGH FIRE STN,Wilks Head & Eve,Rates,806.75,Individual - NEC,,
01/04/2021,GATWICK DIAMOND PH 1,Wilks Head & Eve,Rates,"11,623.00",Individual - NEC,,
01/04/2021,DRILL HALL DORKING,Wilks Head & Eve,Rates,"1,803.75",Individual - NEC,,
01/04/2021,DORKING LIB (NEW),Wilks Head & Eve,Rates,"3,623.00",Individual - NEC,,
01/04/2021,WOKING LIB,Wilks Head & Eve,Rates,"7,385.00",Individual - NEC,,
01/04/2021,SURREY HISTORY CTR,Wilks Head & Eve,Rates,"21,337.00",Individual - NEC,,
01/04/2021,VALLEY END CEI,Wilks Head & Eve,Rates,"1,615.25",Individual - NEC,,
01/04/2021,ASHLEY PARK HOUSE,Wilks Head & Eve,Rates,"2,944.00",Individual - NEC,,
01/04/2021,FORDBRIDGE FIRE STN,Wilks Head & Eve,Rates,"6,656.00",Individual - NEC,,
01/04/2021,POWELL-CORDEROY PRY,Wilks Head & Eve,Rates,"2,521.00",Individual - NEC,,
01/04/2021,ORCHARD SCHOOL,Wilks Head & Eve,Rates,451.40,Individual - NEC,,
01/04/2021,MOLESEY LIB,Wilks Head & Eve,Rates,824.25,Individual - NEC,,
01/04/2021,KINGFISHER HOUSE,Wilks Head & Eve,Rates,"1,593.00",Individual - NEC,,
01/04/2021,ST CUTHBERTS CATH PR,Wilks Head & Eve,Rates,408.80,Individual - NEC,,
01/04/2021,THORPE CE PRIMARY,Wilks Head & Eve,Rates,440.80,Individual - NEC,,
01/04/2021,EPSOM FIRE STATION,Wilks Head & Eve,Rates,"3,225.00",Individual - NEC,,
01/04/2021,MEAD INF,Wilks Head & Eve,Rates,"2,905.00",Individual - NEC,,
01/04/2021,RIVERVIEW CEP,Wilks Head & Eve,Rates,384.00,Individual - NEC,,
01/04/2021,WEST PARK FARMHOUSE,Wilks Head & Eve,Rates,513.75,Individual - NEC,,
01/04/2021,ESHER GREEN ESHER,Wilks Head & Eve,Rates,961.00,Individual - NEC,,
01/04/2021,FOLLY HILL INF,Wilks Head & Eve,Rates,927.75,Individual - NEC,,
01/04/2021,ST PETERS CEP WRECC,Wilks Head & Eve,Rates,885.87,Individual - NEC,,
01/04/2021,WILLIAM COBBETT JUN,Wilks Head & Eve,Rates,"5,376.00",Individual - NEC,,
01/04/2021,GODALMING SSC,Wilks Head & Eve,Rates,"1,220.55",Individual - NEC,,
01/04/2021,CHANDLER CEJ,Wilks Head & Eve,Rates,615.00,Individual - NEC,,
01/04/2021,GODALMING FIRE STN,Wilks Head & Eve,Rates,879.75,Individual - NEC,,
01/04/2021,MILFORD SCHOOL,Wilks Head & Eve,Rates,288.00,Individual - NEC,,
01/04/2021,ST MARYS CEI SHACKFD,Wilks Head & Eve,Rates,414.00,Individual - NEC,,
01/04/2021,ASH SSC ASH LIBRARY,Wilks Head & Eve,Rates,"1,585.75",Individual - NEC,,
01/04/2021,WEST HOUSE COMPLEX,Wilks Head & Eve,Rates,"1,016.50",Individual - NEC,,
01/04/2021,DISCOVERY CTR GFORD,Wilks Head & Eve,Rates,255.80,Individual - NEC,,
01/04/2021,ASH SSC ASH LIBRARY,Wilks Head & Eve,Rates,621.00,Individual - NEC,,
01/04/2021,WEST HOUSE COMPLEX,Wilks Head & Eve,Rates,"9,511.00",Individual - NEC,,
01/04/2021,COUNTY HALL,Wilks Head & Eve,Rates,"1,245.00",Individual - NEC,,
01/04/2021,OAKFIELD JUN,Wilks Head & Eve,Rates,"2,471.00",Individual - NEC,,
01/04/2021,ST FAITHS FC,Wilks Head & Eve,Rates,"1,670.75",Individual - NEC,,
01/04/2021,LIMPSFIELD CEI,Wilks Head & Eve,Rates,298.80,Individual - NEC,,
01/04/2021,61 STAINES HIGH ST,Wilks Head & Eve,Rates,"1,063.00",Individual - NEC,,
01/04/2021,61 STAINES HIGH ST,Wilks Head & Eve,Rates,358.91,Individual - NEC,,
01/04/2021,LALEHAM CEP,Wilks Head & Eve,Rates,537.00,Individual - NEC,,
01/04/2021,STANWELL LIB (NEW),Wilks Head & Eve,Rates,536.00,Individual - NEC,,
01/04/2021,TOWN FARM PRY,Wilks Head & Eve,Rates,760.80,Individual - NEC,,
01/04/2021,SUNBURY-ON-T LIB,Wilks Head & Eve,Rates,"1,460.00",Individual - NEC,,
01/04/2021,LONG DITTON INF,Wilks Head & Eve,Rates,284.60,Individual - NEC,,
01/04/2021,ST ANNS HEATH JUN,Wilks Head & Eve,Rates,"2,521.00",Individual - NEC,,
01/04/2021,BURHILL PRIMARY SCH,Wilks Head & Eve,Rates,"1,181.16",Individual - NEC,,
01/04/2021,GROVELANDS PRI&NUR,Wilks Head & Eve,Rates,"3,033.00",Individual - NEC,,
01/04/2021,FMR FIRE ELM GROVE,Wilks Head & Eve,Rates,412.40,Individual - NEC,,
01/04/2021,HENRIETTA PARKER CTR,Wilks Head & Eve,Rates,"3,072.00",Individual - NEC,,
01/04/2021,GRANGE CI,Wilks Head & Eve,Rates,"1,874.00",Individual - NEC,,
01/04/2021,CHERTSEY FIRE STN,Wilks Head & Eve,Rates,"3,840.00",Individual - NEC,,
01/04/2021,WEST BYFLEET JUN,Wilks Head & Eve,Rates,"2,876.26",Individual - NEC,,
01/04/2021,PUBLIC LIB OFFS WEYB,Wilks Head & Eve,Rates,602.50,Individual - NEC,,
01/04/2021,PUBLIC LIB OFFS WEYB,Wilks Head & Eve,Rates,279.40,Individual - NEC,,
01/04/2021,KNAPHILL LIBRARY-NEW,Wilks Head & Eve,Rates,"2,062.50",Individual - NEC,,
01/04/2021,WOKING CORONER CT,Wilks Head & Eve,Rates,927.75,Individual - NEC,,
01/04/2021,MAYFORD CENTRE-BUS,Wilks Head & Eve,Rates,513.75,Individual - NEC,,
01/04/2021,ASHLEY PARK HOUSE,Wilks Head & Eve,Rates,"4,953.00",Individual - NEC,,
01/04/2021,ASHLEY PARK HOUSE,Wilks Head & Eve,Rates,"1,615.25",Individual - NEC,,
01/04/2021,CLARENDON PRY,Wilks Head & Eve,Rates,"2,014.50",Individual - NEC,,
01/04/2021,GREVILLE PRY,Wilks Head & Eve,Rates,"5,632.00",Individual - NEC,,
01/04/2021,WEST ASHTEAD PRY,Wilks Head & Eve,Rates,"3,264.00",Individual - NEC,,
01/04/2021,CAMBERLEY LIB,Wilks Head & Eve,Rates,"2,176.00",Individual - NEC,,
01/04/2021,PRIOR HEATH CI,Wilks Head & Eve,Rates,"1,667.00",Individual - NEC,,
01/04/2021,SHBC OFFICE ACCOMM,Wilks Head & Eve,Rates,"2,099.50",Individual - NEC,,
01/04/2021,AUDLEY PRY,Wilks Head & Eve,Rates,"1,585.75",Individual - NEC,,
01/04/2021,CATERHAM LIB,Wilks Head & Eve,Rates,639.50,Individual - NEC,,
01/04/2021,CHERTSEY LIB,Wilks Head & Eve,Rates,857.50,Individual - NEC,,
01/04/2021,MEADOWCROFT CI,Wilks Head & Eve,Rates,694.47,Individual - NEC,,
01/04/2021,PAINSHILL FIRE STN,Wilks Head & Eve,Rates,"2,368.00",Individual - NEC,,
01/04/2021,CRANLEIGH CE VC PRIM,Wilks Head & Eve,Rates,"1,068.25",Individual - NEC,,
01/04/2021,GATWICK DIAMOND PH 1,Wilks Head & Eve,Rates,"7,936.00",Individual - NEC,,
01/04/2021,DORKING NURSERY,Wilks Head & Eve,Rates,"4,647.00",Individual - NEC,,
01/04/2021,ST JOSEPHS CTH PRY D,Wilks Head & Eve,Rates,256.00,Individual - NEC,,
01/04/2021,ST PAULS CEP DORK,Wilks Head & Eve,Rates,707.40,Individual - NEC,,
01/04/2021,PRIORY CE SCHOOL,Wilks Head & Eve,Rates,"2,535.00",Individual - NEC,,
01/04/2021,CHANDLERS FIELD PRY,Wilks Head & Eve,Rates,"1,116.40",Individual - NEC,,
01/04/2021,ENGLEFIELD GREEN CI,Wilks Head & Eve,Rates,"1,515.50",Individual - NEC,,
01/04/2021,EGHAM FIRE STATION,Wilks Head & Eve,Rates,"3,072.00",Individual - NEC,,
01/04/2021,KINGFISHER HOUSE,Wilks Head & Eve,Rates,"2,265.00",Individual - NEC,,
01/04/2021,ST JUDES CE SCHOOL,Wilks Head & Eve,Rates,547.60,Individual - NEC,,
01/04/2021,EPSOM PRY,Wilks Head & Eve,Rates,"3,353.00",Individual - NEC,,
01/04/2021,EWELL COURT LIB,Wilks Head & Eve,Rates,513.75,Individual - NEC,,
01/04/2021,ST CLEMENTS CATH PRY,Wilks Head & Eve,Rates,444.60,Individual - NEC,,
01/04/2021,ST JOSEPHS CTH PRY E,Wilks Head & Eve,Rates,768.00,Individual - NEC,,
01/04/2021,ST MARTINS SCHS(FED),Wilks Head & Eve,Rates,568.80,Individual - NEC,,
01/04/2021,EBBISHAM - EPSOM LIB,Wilks Head & Eve,Rates,"5,209.00",Individual - NEC,,
01/04/2021,ESHER LIB,Wilks Head & Eve,Rates,"1,478.50",Individual - NEC,,
01/04/2021,ESHER LOCAL OFFICE,Wilks Head & Eve,Rates,"8,281.00",Individual - NEC,,
01/04/2021,FARNHAM AEI WEST ST,Wilks Head & Eve,Rates,"1,600.50",Individual - NEC,,
01/04/2021,RENTWOOD,Wilks Head & Eve,Rates,"1,035.00",Individual - NEC,,
01/04/2021,RENTWOOD,Wilks Head & Eve,Rates,317.70,Individual - NEC,,
01/04/2021,BUSBRIDGE INF,Wilks Head & Eve,Rates,266.80,Individual - NEC,,
01/04/2021,DUNSFOLD FIRE STN,Wilks Head & Eve,Rates,517.50,Individual - NEC,,
01/04/2021,WHARF NURSERY,Wilks Head & Eve,Rates,"4,864.00",Individual - NEC,,
01/04/2021,WITLEY DEPOT,Wilks Head & Eve,Rates,"2,688.00",Individual - NEC,,
01/04/2021,ST JAMES CEP ELSTEAD,Wilks Head & Eve,Rates,448.00,Individual - NEC,,
01/04/2021,WITLEY CEI,Wilks Head & Eve,Rates,724.50,Individual - NEC,,
01/04/2021,HAYES BRIDGE BC-BUS,Wilks Head & Eve,Rates,263.20,Individual - NEC,,
01/04/2021,GODSTONE DEPOT,Wilks Head & Eve,Rates,"5,120.00",Individual - NEC,,
01/04/2021,GUILDFORD LIB,Wilks Head & Eve,Rates,"4,697.00",Individual - NEC,,
01/04/2021,GUILDFORD CHILDS CTR,Wilks Head & Eve,Rates,"1,755.75",Individual - NEC,,
01/04/2021,GUILDFORD FIRE STN,Wilks Head & Eve,Rates,"10,880.00",Individual - NEC,,
01/04/2021,SHAWFIELD PRY,Wilks Head & Eve,Rates,"1,741.00",Individual - NEC,,
01/04/2021,SW SURREY FANILY CTR,Wilks Head & Eve,Rates,"2,727.00",Individual - NEC,,
01/04/2021,WALSH MEMORIAL CEI,Wilks Head & Eve,Rates,"1,219.75",Individual - NEC,,
01/04/2021,WOOD STREET INF,Wilks Head & Eve,Rates,998.00,Individual - NEC,,
01/04/2021,HASLEMERE FIRE STN,Wilks Head & Eve,Rates,"1,822.25",Individual - NEC,,
01/04/2021,SHOTTERMILL JUN,Wilks Head & Eve,Rates,"2,727.00",Individual - NEC,,
01/04/2021,BEACON HILL COMM,Wilks Head & Eve,Rates,298.70,Individual - NEC,,
01/04/2021,FETCHAM VILLAGE INF,Wilks Head & Eve,Rates,"1,323.25",Individual - NEC,,
01/04/2021,UNIT 4 LEATHERHEAD,Wilks Head & Eve,Rates,"3,776.00",Individual - NEC,,
01/04/2021,POLESDEN LACEY INF,Wilks Head & Eve,Rates,"1,083.00",Individual - NEC,,
01/04/2021,LINGFIELD FIRE STN,Wilks Head & Eve,Rates,696.03,Individual - NEC,,
01/04/2021,HURST GREEN SCHOOL,Wilks Head & Eve,Rates,"1,327.00",Individual - NEC,,
01/04/2021,NUTFIELD CHURCH CEP,Wilks Head & Eve,Rates,369.80,Individual - NEC,,
01/04/2021,THAMES YG MARINERS,Wilks Head & Eve,Rates,"1,585.75",Individual - NEC,,
01/04/2021,OUR LADY ROSARY RCP,Wilks Head & Eve,Rates,533.20,Individual - NEC,,
01/04/2021,STAINES LIB,Wilks Head & Eve,Rates,"2,919.00",Individual - NEC,,
01/04/2021,STAINES LIB,Wilks Head & Eve,Rates,267.60,Individual - NEC,,
01/04/2021,Beauclerc Chenneston,Wilks Head & Eve,Rates,"2,471.00",Individual - NEC,,
01/04/2021,HIGH ASHURST OEC,Wilks Head & Eve,Rates,"1,366.01",Individual - NEC,,
01/04/2021,LONG D ST MARYS CEJ,Wilks Head & Eve,Rates,355.40,Individual - NEC,,
01/04/2021,VIRGINIA WATER LIB,Wilks Head & Eve,Rates,401.40,Individual - NEC,,
01/04/2021,HERSHAM LIB,Wilks Head & Eve,Rates,569.25,Individual - NEC,,
01/04/2021,BYFLEET LIB,Wilks Head & Eve,Rates,687.50,Individual - NEC,,
01/04/2021,WEST BYFLEET LIB,Wilks Head & Eve,Rates,484.25,Individual - NEC,,
01/04/2021,MANBY LODGE INF,Wilks Head & Eve,Rates,"3,225.00",Individual - NEC,,
01/04/2021,OATLANDS SCHOOL,Wilks Head & Eve,Rates,"2,496.00",Individual - NEC,,
01/04/2021,ST MARYS CEP BYF,Wilks Head & Eve,Rates,"3,136.00",Individual - NEC,,
01/04/2021,ST LAWRENCE CEJ CHOB,Wilks Head & Eve,Rates,529.80,Individual - NEC,,
01/04/2021,CHOBHAM RETAINED STN,Wilks Head & Eve,Rates,706.00,Individual - NEC,,
01/04/2021,HORSELL CEJ,Wilks Head & Eve,Rates,640.00,Individual - NEC,,
01/04/2021,ST DUNSTANS CATH PRY,Wilks Head & Eve,Rates,750.20,Individual - NEC,,
01/04/2021,NW SURREY SSS,Wilks Head & Eve,Rates,304.60,Individual - NEC,,
01/04/2021,WOKING FIRE STATION,Wilks Head & Eve,Rates,"6,489.00",Individual - NEC,,
01/04/2021,DAKOTA,Wilks Head & Eve,Rates,"21,760.00",Individual - NEC,,
01/04/2021,OAKLANDS BALFOUR AVE,Woking Borough Council,Rates,253.47,Grants-Member Allocs,,
01/04/2021,OAKLANDS BALFOUR AVE,Woking Borough Council,Rates,899.49,Grants-Member Allocs,,
06/04/2021,NULL,Adecco UK Ltd,NULL,"668,000.89",Recruit & Assessment,,
06/04/2021,NULL,Adecco UK Ltd,NULL,"819,491.29",Recruit & Assessment,,
06/04/2021,NULL,Adecco UK Ltd,NULL,"558,062.26",Recruit & Assessment,,
06/04/2021,NULL,Admiral Law,NULL,"2,253.30",Insurance Services,,
06/04/2021,NULL,Ashlong House Ltd,NULL,348.60,Residential - MH,,
06/04/2021,PR HN TOP UP UNALLOC,Auriol Junior School,Agency Placement Expenditure,"5,708.07",Schools,,
06/04/2021,NULL,Redacted Personal Data ,NULL,349.80,Individual - NEC,,
06/04/2021,PRI ADDIT SEN THRESH,Beaufort Primary School,Agency Placement Expenditure,"3,141.40",Grants-Member Allocs,,
06/04/2021,PR HN TOP UP UNALLOC,Bletchingley Village Primary School,Agency Placement Expenditure,"6,164.64",Schools,,
06/04/2021,PRI SEN Ctr PLS,Bletchingley Village Primary School,Agency Placement Expenditure,"4,569.00",Schools,,
06/04/2021,PR HN TOP UP UNALLOC,Bletchingley Village Primary School,Agency Placement Expenditure,321.00,Schools,,
06/04/2021,SPECIAL SCHOOLS,Bramley Oak Academy,Agency Placement Expenditure,"96,215.21",Schools,,
06/04/2021,SPECIAL SCHOOLS,Bramley Oak Academy,Agency Placement Expenditure,"14,411.00",Schools,,
06/04/2021,CHILD ARRANGE ORDERS,Brenda A Wilson,Residency Order Allowances,282.08,Individual - NEC,,
06/04/2021,PRI GROWING SCHS,Broadmere Primary Academy,Agency Placement Expenditure,"5,982.41",Schools,,
06/04/2021,SEC HN TOPUP UNALLOC,Broadwater School,Agency Placement Expenditure,"5,512.78",Schools,,
06/04/2021,SEC HN TOPUP UNALLOC,Broadwater School,Agency Placement Expenditure,"2,496.00",Schools,,
06/04/2021,SPECIAL SCHOOLS,Carwarden House Community School,Agency Placement Expenditure,"50,654.18",Schools,,
06/04/2021,SPECIAL SCHOOLS,Chart Wood School,Agency Placement Expenditure,"117,481.41",Schools,,
06/04/2021,SEC ADDIT SEN THRESH,Cobham Free School,Agency Placement Expenditure,"1,255.25",Grants-Member Allocs,,
06/04/2021,PR HN TOP UP UNALLOC,Cuddington Community Primary School,Agency Placement Expenditure,"8,770.21",Schools,,
06/04/2021,PR HN TOP UP UNALLOC,Darley Dene Primary School,Agency Placement Expenditure,"4,693.63",Schools,,
06/04/2021,SEC HN TOPUP UNALLOC,De Stafford School,Agency Placement Expenditure,"1,692.22",Schools,,
06/04/2021,PR HN TOP UP UNALLOC,Dovers Green School,Agency Placement Expenditure,"10,945.66",Schools,,
06/04/2021,SEC HN TOPUP UNALLOC,Epsom & Ewell High School,Agency Placement Expenditure,"5,026.82",Staff Training,,
06/04/2021,PRI GROWING SCHS,Esher COE High School,Agency Placement Expenditure,"6,844.87",Schools,,
06/04/2021,NULL,Geometric Results International,NULL,"46,862.59",Soc Care OM Cover,,
06/04/2021,SEC HN TOPUP UNALLOC,George Abbot School -Academy,Agency Placement Expenditure,"4,125.84",Schools,,
06/04/2021,SEC ADDIT SEN THRESH,Goldsworth Primary School,Agency Placement Expenditure,"2,425.99",Schools,,
06/04/2021,SEC ADDIT SEN THRESH,Gordons School Academy Trust,Agency Placement Expenditure,"2,383.88",Schools,,
06/04/2021,PR HN TOP UP UNALLOC,Guildford Grove Primary School,Agency Placement Expenditure,"21,681.56",Schools,,
06/04/2021,HQ PYMNT OF INS CLMS,Healys LLP,Ins Claims Other Insured Paid,"16,705.71",Insurance Services,,
06/04/2021,HQ PYMNT OF INS CLMS,Healys LLP,Ins Claims Other Insured Paid,594.00,Insurance Services,,
06/04/2021,HQ PYMNT OF INS CLMS,Healys LLP,Ins Claims Other Insured Paid,"1,560.00",Insurance Services,,
06/04/2021,SEC HN TOPUP UNALLOC,Hinchley Wood School,Agency Placement Expenditure,"39,586.48",Grants-Member Allocs,,
06/04/2021,SEC HN TOPUP UNALLOC,Hinchley Wood School,Agency Placement Expenditure,"6,518.00",Grants-Member Allocs,,
06/04/2021,SEC HN TOPUP UNALLOC,Jubilee High Academy,Agency Placement Expenditure,"2,807.03",Schools,,
06/04/2021,SEC SEN CTR  PLACES,Jubilee High Academy,Agency Placement Expenditure,"8,041.00",Schools,,
06/04/2021,NULL,Just Homes,NULL,348.60,Residential - MH,,
06/04/2021,Free Early Educ 3&4,Kiwi's Ltd,Third Party Payments-Other Agencies,"12,085.56",Health Visiting,,
06/04/2021,Free Early Educ 3&4,Knaphill Pre School,Third Party Payments-Other Agencies,"16,714.46",Nurseries,,
06/04/2021,Free Early Educ 3&4,Knowle Green Day Nursery,Third Party Payments-Other Agencies,"37,985.65",Nurseries,,
06/04/2021,Free Early Educ 3&4,Knowle Nursery School,Third Party Payments-Other Agencies,"24,860.71",Nurseries,,
06/04/2021,Free Early Educ 3&4,Ladybird Nursery,Third Party Payments-Other Agencies,"11,942.97",Nurseries,,
06/04/2021,Free Early Educ 3&4,Laleham Church Playgroup,Third Party Payments-Other Agencies,"13,140.48",Nurseries,,
06/04/2021,Free Early Educ 3&4,Lanesborough School,Third Party Payments-Other Agencies,"11,928.38",Schools,,
06/04/2021,Free Early Educ 2 yr,Langshott Ladybirds Nursery,Third Party Payments-Other Agencies,901.15,Nurseries,,
06/04/2021,Free Early Educ 3&4,Langshott Ladybirds Nursery,Third Party Payments-Other Agencies,"3,160.51",Nurseries,,
06/04/2021,Free Early Educ 3&4,Langshott Ladybirds Nursery,Third Party Payments-Other Agencies,"15,496.70",Nurseries,,
06/04/2021,Free Early Educ 3&4,Leanne Newbury Childcare,Third Party Payments-Other Agencies,509.76,Nursery,,
06/04/2021,Free Early Educ 3&4,Leapfrogs,Third Party Payments-Other Agencies,"19,243.44",Staff Training,,
06/04/2021,Free Early Educ 3&4,Lee Street Church Playgroup,Third Party Payments-Other Agencies,"11,876.70",Nurseries,,
06/04/2021,Free Early Educ 3&4,Leigh Lollipops Nursery,Third Party Payments-Other Agencies,"5,182.56",Nurseries,,
06/04/2021,Free Early Educ 3&4,Lets Explore Day Nursery,Third Party Payments-Other Agencies,"15,562.63",Nursery,,
06/04/2021,Free Early Educ 3&4,Lilliput Children's Centre,Third Party Payments-Other Agencies,"38,829.98",Health Visiting,,
06/04/2021,SPECIAL SCHOOLS,Linden Bridge School,Agency Placement Expenditure,324.74,Grants-Member Allocs,,
06/04/2021,SPECIAL SCHOOLS,Linden Bridge School,Agency Placement Expenditure,"131,681.51",Grants-Member Allocs,,
06/04/2021,SPECIAL SCHOOLS,Linden Bridge School,Agency Placement Expenditure,"7,870.00",Grants-Member Allocs,,
06/04/2021,SPECIAL SCHOOLS,Linden Bridge School,Agency Placement Expenditure,"31,569.41",Grants-Member Allocs,,
06/04/2021,Free Early Educ 3&4,Lingfield Nursery School,Third Party Payments-Other Agencies,"24,534.01",Nurseries,,
06/04/2021,Free Early Educ 3&4,Little Acorns Day Nursery,Third Party Payments-Other Agencies,"20,882.41",Nurseries,,
06/04/2021,Free Early Educ 2 yr,Little Acorns Pre School (Kingswood,Third Party Payments-Other Agencies,"3,325.68",Nurseries,,
06/04/2021,Free Early Educ 3&4,Little Acorns Pre School (Kingswood,Third Party Payments-Other Agencies,"9,481.54",Nurseries,,
06/04/2021,Free Early Educ 3&4,Little Acorns Pre School (Kingswood,Third Party Payments-Other Agencies,"14,749.06",Nurseries,,
06/04/2021,Free Early Educ 3&4,Little Acorns Pre-School,Third Party Payments-Other Agencies,"4,366.94",Nurseries,,
06/04/2021,Free Early Educ 3&4,Little Acorns Tatsfield Pre-school,Third Party Payments-Other Agencies,"8,042.88",Health Visiting,,
06/04/2021,Free Early Educ 3&4,Little Angels Nursery,Third Party Payments-Other Agencies,"12,629.30",Nurseries,,
06/04/2021,Free Early Educ 3&4,Little Angels Stoke Pre-school,Third Party Payments-Other Agencies,"9,313.03",Nursery,,
06/04/2021,Free Early Educ 3&4,Little Barn Pre-School,Third Party Payments-Other Agencies,"7,994.74",Nursery,,
06/04/2021,Free Early Educ 3&4,Little Bears Day Care,Third Party Payments-Other Agencies,"26,094.05",Nursery,,
06/04/2021,Free Early Educ 3&4,Little Bookham Preschool Ltd,Third Party Payments-Other Agencies,"12,314.95",Nursery,,
06/04/2021,Free Early Educ 3&4,Little Burrows Montessori Lightwate,Third Party Payments-Other Agencies,"10,577.52",Nurseries,,
06/04/2021,Free Early Educ 2 yr,Little Butterflies Pre School Ltd,Third Party Payments-Other Agencies,665.14,Nursery,,
06/04/2021,Free Early Educ 3&4,Little Butterflies Pre School Ltd,Third Party Payments-Other Agencies,"4,290.48",Nursery,,
06/04/2021,Free Early Educ 3&4,Little Butterflies Pre School Ltd,Third Party Payments-Other Agencies,"1,580.26",Nursery,,
06/04/2021,Free Early Educ 3&4,Little Cherubs Nursery,Third Party Payments-Other Agencies,"9,867.82",Nurseries,,
06/04/2021,Free Early Educ 3&4,Little Chums,Third Party Payments-Other Agencies,"13,797.50",Nursery,,
06/04/2021,Free Early Educ 3&4,Little Crickets Nursery,Third Party Payments-Other Agencies,"5,080.61",Misc One-off,,
06/04/2021,Free Early Educ 3&4,Little Dreams Day Nursery Ltd,Third Party Payments-Other Agencies,"13,344.04",Nursery,,
06/04/2021,Free Early Educ 3&4,Little Echoes,Third Party Payments-Other Agencies,"21,749.76",Nursery,,
06/04/2021,Free Early Educ 3&4,Little Fishes at St Peters,Third Party Payments-Other Agencies,"16,223.11",Health Visiting,,
06/04/2021,Free Early Educ 3&4,Little Fishes Pre School,Third Party Payments-Other Agencies,"7,952.26",Schools,,
06/04/2021,Free Early Educ 3&4,Little Gems,Third Party Payments-Other Agencies,"7,668.15",Nurseries,,
06/04/2021,Free Early Educ 3&4,Little Gems & Little Treasures Nurs,Third Party Payments-Other Agencies,"25,570.75",Nurseries,,
06/04/2021,Free Early Educ 3&4,Little Gems & Little Treasures Nurs,Third Party Payments-Other Agencies,"17,644.07",Nurseries,,
06/04/2021,Free Early Educ 3&4,Little Gems Montessori Pre school,Third Party Payments-Other Agencies,"16,578.53",Nursery,,
06/04/2021,Free Early Educ 3&4,Little Green Hut Nursery,Third Party Payments-Other Agencies,"14,596.13",Grants-Member Allocs,,
06/04/2021,Free Early Educ 3&4,Little Hands Nursery - Nimbus Road,Third Party Payments-Other Agencies,"6,074.64",Nursery,,
06/04/2021,Free Early Educ 3&4,Little Hands Nursery Epsom Common,Third Party Payments-Other Agencies,"5,964.19",Staff Training,,
06/04/2021,Free Early Educ 3&4,Little Haven Nursery School,Third Party Payments-Other Agencies,"12,472.13",Nurseries,,
06/04/2021,Free Early Educ 3&4,Little Hearts Pre School,Third Party Payments-Other Agencies,"5,935.87",Nursery,,
06/04/2021,Free Early Educ 3&4,Little Hummingbirds Ltd,Third Party Payments-Other Agencies,"14,375.23",Educ Finance Serv,,
06/04/2021,Free Early Educ 3&4,Little Lyndhurst School,Third Party Payments-Other Agencies,"7,977.74",Nursery,,
06/04/2021,Free Early Educ 3&4,Little Oaks Childrens Nursery,Third Party Payments-Other Agencies,"18,211.46",Nursery,,
06/04/2021,Free Early Educ 3&4,Little Oaks Forest School,Third Party Payments-Other Agencies,"29,072.46",Nurseries,,
06/04/2021,Free Early Educ 3&4,Little Oaks Pre-School Frimley,Third Party Payments-Other Agencies,"10,373.62",Grants-Member Allocs,,
06/04/2021,Free Early Educ 3&4,Little Oaks Under Fives,Third Party Payments-Other Agencies,"14,502.67",School Support Serv,,
06/04/2021,Free Early Educ 3&4,Little Rays Pre-school,Third Party Payments-Other Agencies,"13,372.70",Nursery,,
06/04/2021,Free Early Educ 3&4,Little Saints Pre School,Third Party Payments-Other Agencies,"14,826.94",Schools,,
06/04/2021,Free Early Educ 3&4,Little Sparrows Nursery School,Third Party Payments-Other Agencies,"22,429.44",Nurseries,,
06/04/2021,Free Early Educ 3&4,Little Squirrels Nursery,Third Party Payments-Other Agencies,"3,687.26",Nursery,,
06/04/2021,Free Early Educ 2 yr,Little Squirrels Nursery,Third Party Payments-Other Agencies,"6,651.36",Nursery,,
06/04/2021,Free Early Educ 3&4,Little Squirrels Nursery,Third Party Payments-Other Agencies,"17,909.57",Nursery,,
06/04/2021,Free Early Educ 3&4,Little Stars Pre School Emmanuel Ch,Third Party Payments-Other Agencies,"14,604.62",Schools,,
06/04/2021,Free Early Educ 3&4,Little Tinkers,Third Party Payments-Other Agencies,"11,628.19",Nursery,,
06/04/2021,Free Early Educ 3&4,Little Villagers Pre School -Woodco,Third Party Payments-Other Agencies,"17,909.57",Schools,,
06/04/2021,Free Early Educ 3&4,Littlebrook Nursery,Third Party Payments-Other Agencies,"5,940.86",Nursery,,
06/04/2021,Free Early Educ 3&4,Littluns Day Care,Third Party Payments-Other Agencies,"8,860.14",Nursery,,
06/04/2021,Free Early Educ 3&4,Llttle Gems Nursery,Third Party Payments-Other Agencies,"10,685.84",Nurseries,,
06/04/2021,Free Early Educ 3&4,Llttle Harriers,Third Party Payments-Other Agencies,"4,451.90",Nurseries,,
06/04/2021,Free Early Educ 3&4,Llttle Harriers,Third Party Payments-Other Agencies,"16,830.58",Nurseries,,
06/04/2021,Free Early Educ 2 yr,Llttle Harriers,Third Party Payments-Other Agencies,321.84,Nurseries,,
06/04/2021,Free Early Educ 3&4,Longacre School,Third Party Payments-Other Agencies,"22,471.92",Schools,,
06/04/2021,PRI GROWING SCHS,Loseley Fields Primary School,Agency Placement Expenditure,"5,612.79",Schools,,
06/04/2021,PR HN TOP UP UNALLOC,Loseley Fields Primary School,Agency Placement Expenditure,"5,544.45",Schools,,
06/04/2021,Free Early Educ 2 yr,Louise Taylor Childminding,Third Party Payments-Other Agencies,665.14,Nursery,,
06/04/2021,Free Early Educ 3&4,Lower Green Pre School,Third Party Payments-Other Agencies,"3,755.23",Nursery,,
06/04/2021,Free Early Educ 3&4,Lyne & Longcross Nursery,Third Party Payments-Other Agencies,"16,272.67",Nurseries,,
06/04/2021,Free Early Educ 3&4,Lynton House Day Nursery,Third Party Payments-Other Agencies,"19,895.59",Nursery,,
06/04/2021,Free Early Educ 3&4,Magical Moments Preschool Ltd,Third Party Payments-Other Agencies,"22,420.94",Health Visiting,,
06/04/2021,Free Early Educ 3&4,Major Minors at Lightwater,Third Party Payments-Other Agencies,"24,047.19",Nursery,,
06/04/2021,Free Early Educ 3&4,Manor House School,Third Party Payments-Other Agencies,"7,663.39",Schools,,
06/04/2021,PRI GROWING SCHS,Marden Lodge Primary School,Agency Placement Expenditure,"1,820.73",Schools,,
06/04/2021,Free Early Educ 3&4,Martyrs Green Montessori,Third Party Payments-Other Agencies,"21,274.61",Nursery,,
06/04/2021,Free Early Educ 3&4,Mayford Pre School Ltd,Third Party Payments-Other Agencies,"12,760.99",School Support Serv,,
06/04/2021,PR HN TOP UP UNALLOC,Meadhurst Primary School,Agency Placement Expenditure,"3,497.68",Grants-Member Allocs,,
06/04/2021,Free Early Educ 3&4,Merry Go Round Playgroup,Third Party Payments-Other Agencies,"8,117.93",School Support Serv,,
06/04/2021,Free Early Educ 3&4,Micklefield School,Third Party Payments-Other Agencies,"11,019.31",Schools,,
06/04/2021,Free Early Educ 3&4,Milton Hall Montessori Nursery Scho,Third Party Payments-Other Agencies,"11,922.72",Individual - NEC,,
06/04/2021,Free Early Educ 3&4,Minitots Daycare Ltd - Stanwell,Third Party Payments-Other Agencies,"29,268.72",Nurseries,,
06/04/2021,Free Early Educ 3&4,Minus Five Pre School,Third Party Payments-Other Agencies,"6,338.02",Schools,,
06/04/2021,ELECTIONS & BY-ELEC,Mole Valley District Council,Venue Costs (including Hire of Rooms),"45,000.00",Grants-Member Allocs,,
06/04/2021,Free Early Educ 3&4,Molesey Day Nursery,Third Party Payments-Other Agencies,"15,802.56",Educ Finance Serv,,
06/04/2021,Free Early Educ 3&4,Molesey Day Nursery,Third Party Payments-Other Agencies,526.75,Educ Finance Serv,,
06/04/2021,Free Early Educ 3&4,Monkey Puzzle Day Nursery,Third Party Payments-Other Agencies,285.61,Nursery,,
06/04/2021,Free Early Educ 3&4,Monkey Puzzle Day Nursery Tatsfield,Third Party Payments-Other Agencies,"18,668.77",Nursery,,
06/04/2021,Free Early Educ 3&4,Muddy Puddles Pre School,Third Party Payments-Other Agencies,"9,668.45",Nursery,,
06/04/2021,Free Early Educ 3&4,Natasha Robertson Childcare,Third Party Payments-Other Agencies,"1,580.26",Nurseries,,
06/04/2021,Free Early Educ 3&4,Nestots Day Nursery,Third Party Payments-Other Agencies,"13,474.66",Nurseries,,
06/04/2021,Free Early Educ 3&4,Nippertime Pre School,Third Party Payments-Other Agencies,"9,439.06",Schools,,
06/04/2021,Free Early Educ 2 yr,North Holmwood Pre School,Third Party Payments-Other Agencies,"6,515.47",Schools,,
06/04/2021,Free Early Educ 3&4,North Holmwood Pre School,Third Party Payments-Other Agencies,"2,931.12",Schools,,
06/04/2021,PR HN TOP UP UNALLOC,Northmead Junior School,Agency Placement Expenditure,"5,691.22",Schools,,
06/04/2021,Free Early Educ 3&4,Notre Dame School,Third Party Payments-Other Agencies,994.03,Schools,,
06/04/2021,Free Early Educ 3&4,Nuffy Bear Day Nursery - Sunbury,Third Party Payments-Other Agencies,"7,943.76",Nursery,,
06/04/2021,CHILD ARRANGE ORDERS,Null,Residency Order Allowances,348.72,CYP Indiv Carers,,
06/04/2021,Free Early Educ 3&4,Nutfield Day Nursery,Third Party Payments-Other Agencies,"17,399.81",Nurseries,,
06/04/2021,Free Early Educ 3&4,Nutfield Health Day Nursery,Third Party Payments-Other Agencies,"16,851.42",School Support Serv,,
06/04/2021,Free Early Educ 3&4,Oakhyrst Grange School,Third Party Payments-Other Agencies,"10,823.90",Schools,,
06/04/2021,Free Early Educ 3&4,Oasis Childcare Ltd,Third Party Payments-Other Agencies,"2,761.20",Fostering Placement,,
06/04/2021,Free Early Educ 3&4,Oatlands Pre School,Third Party Payments-Other Agencies,"16,439.76",Schools,,
06/04/2021,Free Early Educ 3&4,Okewood Nursery School,Third Party Payments-Other Agencies,"7,731.36",Nursery,,
06/04/2021,Free Early Educ 3&4,Our Lady Of The Rosary Playgroup,Third Party Payments-Other Agencies,"19,339.73",Nurseries,,
06/04/2021,Free Early Educ 3&4,Oxted Pre School,Third Party Payments-Other Agencies,"10,954.18",Schools,,
06/04/2021,SEC HN TOPUP UNALLOC,Oxted School,Agency Placement Expenditure,"20,915.24",Schools,,
06/04/2021,Free Early Educ 3&4,Panda Pre School,Third Party Payments-Other Agencies,"28,821.32",Schools,,
06/04/2021,Free Early Educ 3&4,Peaslake School,Third Party Payments-Other Agencies,"9,407.90",Schools,,
06/04/2021,Free Early Educ 3&4,Penny Farthing Pre School Ltd,Third Party Payments-Other Agencies,"5,751.79",Educ Finance Serv,,
06/04/2021,Free Early Educ 3&4,Pennypot Nursery School,Third Party Payments-Other Agencies,"36,634.75",Nurseries,,
06/04/2021,Free Early Educ 3&4,Peter Pan Playgroup,Third Party Payments-Other Agencies,"12,217.25",Nurseries,,
06/04/2021,Free Early Educ 3&4,Peter Pan Playschool,Third Party Payments-Other Agencies,"9,461.71",Nurseries,,
06/04/2021,Free Early Educ 3&4,Peter Pan Pre-School Nursery,Third Party Payments-Other Agencies,"13,256.59",Nurseries,,
06/04/2021,Free Early Educ 3&4,Peter Rabbit Nursery Ltd,Third Party Payments-Other Agencies,"15,486.79",Nursery,,
06/04/2021,Free Early Educ 3&4,Pine Wood Nursery School,Third Party Payments-Other Agencies,"16,292.50",Nursery,,
06/04/2021,Free Early Educ 3&4,Pippas House Nursery,Third Party Payments-Other Agencies,"14,138.71",Educ Finance Serv,,
06/04/2021,Free Early Educ 3&4,Pirbright Day Nursery,Third Party Payments-Other Agencies,"7,374.53",Nurseries,,
06/04/2021,Free Early Educ 3&4,Pirbright Day Nursery,Third Party Payments-Other Agencies,"10,535.04",Nurseries,,
06/04/2021,PRI ADDIT SEN THRESH,Pirbright Village Primary School,Agency Placement Expenditure,908.69,Schools,,
06/04/2021,Free Early Educ 3&4,PJs Childcare,Third Party Payments-Other Agencies,"8,511.10",Nursery,,
06/04/2021,Free Early Educ 3&4,Playbox St Johns Pre School Nursery,Third Party Payments-Other Agencies,"16,822.08",Nurseries,,
06/04/2021,Free Early Educ 3&4,Playtime Nursery - Shepperton,Third Party Payments-Other Agencies,"29,809.29",Nurseries,,
06/04/2021,Free Early Educ 3&4,Playtime Nursery - Staines,Third Party Payments-Other Agencies,"14,896.32",Nursery,,
06/04/2021,Free Early Educ 3&4,Polesden Lacey Pre-school,Third Party Payments-Other Agencies,"12,923.12",Nurseries,,
06/04/2021,Free Early Educ 3&4,Pomfrett Cottage Nursery,Third Party Payments-Other Agencies,"17,467.78",Nurseries,,
06/04/2021,SPECIAL SCHOOLS,Pond Meadow School,Agency Placement Expenditure,"136,995.89",Short break,,
06/04/2021,SPECIAL SCHOOLS,Pond Meadow School,Agency Placement Expenditure,"1,743.00",Short break,,
06/04/2021,Free Early Educ 3&4,Prior Heath Nursery,Third Party Payments-Other Agencies,"34,238.88",Nurseries,,
06/04/2021,Free Early Educ 3&4,Puffins Pre-School & Day Nursery,Third Party Payments-Other Agencies,"21,020.69",Educ Finance Serv,,
06/04/2021,PR HN TOP UP UNALLOC,Pyrcroft Grange Primary School,Agency Placement Expenditure,"12,905.71",Schools,,
06/04/2021,Free Early Educ 3&4,Rainbow Children Community Pre Scho,Third Party Payments-Other Agencies,"16,490.74",Schools,,
06/04/2021,Free Early Educ 3&4,Rainbow Nursery,Third Party Payments-Other Agencies,"82,098.41",Nursery,,
06/04/2021,Free Early Educ 3&4,Rainbow Nursery & Pre-School,Third Party Payments-Other Agencies,"12,348.94",Nurseries,,
06/04/2021,Free Early Educ 3&4,Rainbow Playgroup,Third Party Payments-Other Agencies,"12,310.70",Nurseries,,
06/04/2021,Free Early Educ 3&4,Rainbow Pre School,Third Party Payments-Other Agencies,"8,402.54",Nurseries,,
06/04/2021,Free Early Educ 3&4,Rainbow Pre-School,Third Party Payments-Other Agencies,"14,450.28",School Support Serv,,
06/04/2021,Free Early Educ 3&4,Rainbows Day Nursery,Third Party Payments-Other Agencies,"12,382.92",Nursery,,
06/04/2021,Free Early Educ 3&4,Rainbows End Pre-School,Third Party Payments-Other Agencies,"10,494.14",Schools,,
06/04/2021,Free Early Educ 3&4,Rainbows Nursery School,Third Party Payments-Other Agencies,"9,130.37",Nursery,,
06/04/2021,Free Early Educ 3&4,Red Balloon Day Nursery Cobham,Third Party Payments-Other Agencies,"20,966.71",Nurseries,,
06/04/2021,Free Early Educ 3&4,Red Balloon Nurseries Weybridge Ltd,Third Party Payments-Other Agencies,"19,808.42",Nursery,,
06/04/2021,Free Early Educ 3&4,Redacted Personal data,Third Party Payments-Other Agencies,645.70,Nursery,,
06/04/2021,Free Early Educ 3&4,Redacted Personal data,Third Party Payments-Other Agencies,"1,189.44",Nursery,,
06/04/2021,Free Early Educ 3&4,Redacted Personal data,Third Party Payments-Other Agencies,"1,053.50",Nursery,,
06/04/2021,Free Early Educ 3&4,Redacted Personal data,Third Party Payments-Other Agencies,"1,053.50",Individual - NEC,,
06/04/2021,Free Early Educ 3&4,Redacted Personal data,Third Party Payments-Other Agencies,911.90,Individual - NEC,,
06/04/2021,Free Early Educ 3&4,Redacted Personal data,Third Party Payments-Other Agencies,"1,053.50",Nursery,,
06/04/2021,Free Early Educ 3&4,Redacted Personal data,Third Party Payments-Other Agencies,"1,053.50",Nursery,,
06/04/2021,Free Early Educ 3&4,Redacted Personal data,Third Party Payments-Other Agencies,526.75,Nursery,,
06/04/2021,Free Early Educ 3&4,Redacted Personal data,Third Party Payments-Other Agencies,526.75,Nursery,,
06/04/2021,Free Early Educ 3&4,Redacted Personal data,Third Party Payments-Other Agencies,526.75,Nursery,,
06/04/2021,Free Early Educ 3&4,Redacted Personal data,Third Party Payments-Other Agencies,"1,189.44",Nursery,,
06/04/2021,Free Early Educ 3&4,Redacted Personal data,Third Party Payments-Other Agencies,"1,019.52",Nursery,,
06/04/2021,Free Early Educ 3&4,Redacted Personal data,Third Party Payments-Other Agencies,"1,053.50",Nursery,,
06/04/2021,Free Early Educ 3&4,Redacted Personal data,Third Party Payments-Other Agencies,"1,343.22",Nursery,,
06/04/2021,Free Early Educ 3&4,Redacted Personal data,Third Party Payments-Other Agencies,526.75,Nursery,,
06/04/2021,Free Early Educ 3&4,Redacted Personal data,Third Party Payments-Other Agencies,509.76,Nursery,,
06/04/2021,Free Early Educ 3&4,Redacted Personal data,Third Party Payments-Other Agencies,526.75,Nursery,,
06/04/2021,Free Early Educ 3&4,Redacted Personal data,Third Party Payments-Other Agencies,526.75,Nursery,,
06/04/2021,Free Early Educ 3&4,Redacted Personal data,Third Party Payments-Other Agencies,526.75,Nursery,,
06/04/2021,Free Early Educ 3&4,Redacted Personal data,Third Party Payments-Other Agencies,382.32,Educ Finance Serv,,
06/04/2021,Free Early Educ 3&4,Redacted Personal data,Third Party Payments-Other Agencies,526.75,Nursery,,
06/04/2021,Free Early Educ 3&4,Redacted Personal data,Third Party Payments-Other Agencies,"1,053.50",Nursery,,
06/04/2021,Free Early Educ 3&4,Redacted Personal data,Third Party Payments-Other Agencies,467.28,Individual - NEC,,
06/04/2021,Free Early Educ 3&4,Redacted Personal data,Third Party Payments-Other Agencies,832.61,Individual - NEC,,
06/04/2021,Free Early Educ 3&4,Redacted Personal data,Third Party Payments-Other Agencies,"1,359.36",Nursery,,
06/04/2021,Free Early Educ 3&4,Redacted Personal data,Third Party Payments-Other Agencies,"1,529.28",Nursery,,
06/04/2021,Free Early Educ 3&4,Redacted Personal data,Third Party Payments-Other Agencies,509.76,Nursery,,
06/04/2021,Free Early Educ 3&4,Redacted Personal data,Third Party Payments-Other Agencies,"1,053.50",Nursery,,
06/04/2021,Free Early Educ 3&4,Redacted Personal data,Third Party Payments-Other Agencies,526.75,Nursery,,
06/04/2021,Free Early Educ 3&4,Redacted Personal data,Third Party Payments-Other Agencies,"1,019.52",Nursery,,
06/04/2021,Free Early Educ 3&4,Redacted Personal data,Third Party Payments-Other Agencies,747.65,Nursery,,
06/04/2021,Free Early Educ 3&4,Redacted Personal data,Third Party Payments-Other Agencies,523.92,Nursery,,
06/04/2021,Free Early Educ 2 yr,Redacted Personal data,Third Party Payments-Other Agencies,643.68,Nursery,,
06/04/2021,Free Early Educ 3&4,Redacted Personal data,Third Party Payments-Other Agencies,509.76,Nursery,,
06/04/2021,Free Early Educ 3&4,Redacted Personal data,Third Party Payments-Other Agencies,509.76,Nursery,,
06/04/2021,Free Early Educ 2 yr,Redacted Personal data,Third Party Payments-Other Agencies,665.14,Nursery,,
06/04/2021,Free Early Educ 3&4,Redacted Personal data,Third Party Payments-Other Agencies,526.75,Nursery,,
06/04/2021,Free Early Educ 3&4,Redacted Personal Data,Third Party Payments-Other Agencies,"1,229.09",Nursery,,
06/04/2021,Free Early Educ 3&4,Redacted Personal Data,Third Party Payments-Other Agencies,"1,580.26",Nursery,,
06/04/2021,NULL,Redacted Personal Data,NULL,348.60,Individual - NEC,,
06/04/2021,Free Early Educ 3&4,Redacted Personal Data,Third Party Payments-Other Agencies,"3,160.51",Nursery,,
06/04/2021,Free Early Educ 3&4,Redacted Personal Data,Third Party Payments-Other Agencies,"1,193.97",Nursery,,
06/04/2021,Free Early Educ 3&4,Redacted Personal Data,Third Party Payments-Other Agencies,815.62,Playgroup,,
06/04/2021,Free Early Educ 3&4,Redacted Personal Data,Third Party Payments-Other Agencies,526.75,Nursery,,
06/04/2021,Free Early Educ 3&4,Redacted Personal Data,Third Party Payments-Other Agencies,526.75,CIN Pathfinder,,
06/04/2021,Free Early Educ 3&4,Redacted Personal Data,Third Party Payments-Other Agencies,374.53,Individual - NEC,,
06/04/2021,Free Early Educ 2 yr,Redacted Personal Data,Third Party Payments-Other Agencies,643.68,Educ Finance Serv,,
06/04/2021,Free Early Educ 3&4,Redacted Personal Data,Third Party Payments-Other Agencies,"2,107.01",Nursery,,
06/04/2021,Free Early Educ 3&4,Redacted Personal Data,Third Party Payments-Other Agencies,972.08,Nursery,,
06/04/2021,Free Early Educ 3&4,Redacted Personal Data,Third Party Payments-Other Agencies,804.29,Individual - NEC,,
06/04/2021,Free Early Educ 3&4,Redacted Personal Data,Third Party Payments-Other Agencies,685.77,Nursery,,
06/04/2021,Free Early Educ 3&4,Redacted Personal Data,Third Party Payments-Other Agencies,526.75,Nursery,,
06/04/2021,Free Early Educ 3&4,Redacted Personal Data,Third Party Payments-Other Agencies,526.75,Individual - NEC,,
06/04/2021,Free Early Educ 3&4,Redacted Personal Data,Third Party Payments-Other Agencies,526.75,Nursery,,
06/04/2021,Free Early Educ 3&4,Redacted Personal Data,Third Party Payments-Other Agencies,526.75,Nursery,,
06/04/2021,Free Early Educ 2 yr,Redacted Personal Data,Third Party Payments-Other Agencies,665.14,CIN Pathfinder,,
06/04/2021,Free Early Educ 2 yr,Redacted Personal Data,Third Party Payments-Other Agencies,665.14,Invoicing Plan Req.,,
06/04/2021,Free Early Educ 3&4,Redacted Personal Data,Third Party Payments-Other Agencies,"38,346.98",Adult direct payment,,
06/04/2021,Free Early Educ 3&4,Redacted Personal Data,Third Party Payments-Other Agencies,"1,334.44",Individual - NEC,,
06/04/2021,Free Early Educ 3&4,Redacted Personal Data,Third Party Payments-Other Agencies,"1,053.50",Individual - NEC,,
06/04/2021,Free Early Educ 3&4,Redacted Personal Data,Third Party Payments-Other Agencies,"1,053.50",Playgroup,,
06/04/2021,Free Early Educ 3&4,Redacted Personal Data,Third Party Payments-Other Agencies,763.22,Educ Finance Serv,,
06/04/2021,Free Early Educ 3&4,Redacted Personal Data,Third Party Payments-Other Agencies,526.75,Nursery,,
06/04/2021,Free Early Educ 3&4,Redacted Personal Data,Third Party Payments-Other Agencies,526.75,Nursery,,
06/04/2021,Free Early Educ 3&4,Redacted Personal Data,Third Party Payments-Other Agencies,526.75,Nursery,,
06/04/2021,Free Early Educ 3&4,Redacted Personal Data,Third Party Payments-Other Agencies,526.75,Nursery,,
06/04/2021,Free Early Educ 3&4,Redacted Personal Data,Third Party Payments-Other Agencies,424.80,Adult direct payment,,
06/04/2021,Free Early Educ 3&4,Redacted Personal Data,Third Party Payments-Other Agencies,280.37,Playgroup,,
06/04/2021,Free Early Educ 3&4,Redacted Personal Data,Third Party Payments-Other Agencies,"5,267.52",Nursery,,
06/04/2021,Free Early Educ 3&4,Redacted Personal Data,Third Party Payments-Other Agencies,526.75,Nursery,,
06/04/2021,Free Early Educ 3&4,Redacted Personal Data,Third Party Payments-Other Agencies,526.75,CIN Pathfinder,,
06/04/2021,Free Early Educ 3&4,Redacted Personal Data,Third Party Payments-Other Agencies,"3,160.51",Nursery,,
06/04/2021,Free Early Educ 3&4,Redacted Personal Data,Third Party Payments-Other Agencies,"1,580.26",Nursery,,
06/04/2021,Free Early Educ 3&4,Redacted Personal Data,Third Party Payments-Other Agencies,"1,053.50",Nursery,,
06/04/2021,Free Early Educ 3&4,Redacted Personal Data,Third Party Payments-Other Agencies,"1,053.50",Individual - NEC,,
06/04/2021,Free Early Educ 3&4,Redacted Personal Data,Third Party Payments-Other Agencies,526.75,Nursery,,
06/04/2021,Free Early Educ 3&4,Redacted Personal Data,Third Party Payments-Other Agencies,526.75,Nursery,,
06/04/2021,Free Early Educ 3&4,Redacted Personal Data,Third Party Payments-Other Agencies,526.75,Nursery,,
06/04/2021,Free Early Educ 3&4,Redacted Personal Data,Third Party Payments-Other Agencies,"1,580.26",CIN Pathfinder,,
06/04/2021,Free Early Educ 3&4,Redacted Personal Data,Third Party Payments-Other Agencies,"1,053.50",Adult direct payment,,
06/04/2021,Free Early Educ 3&4,Redacted Personal Data,Third Party Payments-Other Agencies,991.20,Educ Finance Serv,,
06/04/2021,Free Early Educ 3&4,Redacted Personal Data,Third Party Payments-Other Agencies,951.55,Pensions,,
06/04/2021,Free Early Educ 3&4,Redacted Personal Data,Third Party Payments-Other Agencies,775.97,Nursery,,
06/04/2021,Free Early Educ 3&4,Redacted Personal Data,Third Party Payments-Other Agencies,529.58,Nursery,,
06/04/2021,Free Early Educ 3&4,Redacted Personal Data,Third Party Payments-Other Agencies,526.75,Nursery,,
06/04/2021,Free Early Educ 3&4,Redacted Personal Data,Third Party Payments-Other Agencies,"1,580.26",CIN Pathfinder,,
06/04/2021,Free Early Educ 3&4,Redacted Personal Data,Third Party Payments-Other Agencies,"1,053.50",Individual - NEC,,
06/04/2021,Free Early Educ 3&4,Redacted Personal Data,Third Party Payments-Other Agencies,"1,036.51",Invoicing Plan Req.,,
06/04/2021,Free Early Educ 3&4,Redacted Personal Data,Third Party Payments-Other Agencies,632.10,Individual - NEC,,
06/04/2021,Free Early Educ 3&4,Redacted Personal Data,Third Party Payments-Other Agencies,526.75,Playgroup,,
06/04/2021,Free Early Educ 3&4,Redacted Personal Data,Third Party Payments-Other Agencies,526.75,CIN Pathfinder,,
06/04/2021,Free Early Educ 3&4,Redacted Personal Data,Third Party Payments-Other Agencies,526.75,Nursery,,
06/04/2021,Free Early Educ 3&4,Redacted Personal Data,Third Party Payments-Other Agencies,526.75,Nursery,,
06/04/2021,Free Early Educ 3&4,Redacted Personal Data,Third Party Payments-Other Agencies,526.75,Invoicing Plan Req.,,
06/04/2021,Free Early Educ 3&4,Redacted Personal Data,Third Party Payments-Other Agencies,526.75,Nursery,,
06/04/2021,Free Early Educ 3&4,Redacted Personal Data,Third Party Payments-Other Agencies,523.92,Nursery,,
06/04/2021,Free Early Educ 3&4,Redacted Personal Data,Third Party Payments-Other Agencies,455.95,Individual - NEC,,
06/04/2021,Free Early Educ 2 yr,Redacted Personal Data,Third Party Payments-Other Agencies,665.14,Nursery,,
06/04/2021,Free Early Educ 3&4,Redacted Personal Data,Third Party Payments-Other Agencies,526.75,Educ Finance Serv,,
06/04/2021,Free Early Educ 3&4,Redacted Personal Data,Third Party Payments-Other Agencies,305.86,Individual - NEC,,
06/04/2021,Free Early Educ 3&4,Redacted Personal Data,Third Party Payments-Other Agencies,"9,175.68",Nursery,,
06/04/2021,Free Early Educ 3&4,Redacted Personal Data,Third Party Payments-Other Agencies,"7,264.08",Nurseries,,
06/04/2021,Free Early Educ 3&4,Redacted Personal Data,Third Party Payments-Other Agencies,"3,669.93",Adult direct payment,,
06/04/2021,Free Early Educ 3&4,Redacted Personal Data,Third Party Payments-Other Agencies,"2,633.76",Individual - NEC,,
06/04/2021,Free Early Educ 3&4,Redacted Personal Data,Third Party Payments-Other Agencies,"1,053.50",Playgroup,,
06/04/2021,Free Early Educ 3&4,Redacted Personal Data,Third Party Payments-Other Agencies,"1,053.50",Adult direct payment,,
06/04/2021,Free Early Educ 3&4,Redacted Personal Data,Third Party Payments-Other Agencies,763.22,Educ Finance Serv,,
06/04/2021,Free Early Educ 3&4,Redacted Personal Data,Third Party Payments-Other Agencies,711.12,Nursery,,
06/04/2021,Free Early Educ 3&4,Redacted Personal Data,Third Party Payments-Other Agencies,526.75,Nursery,,
06/04/2021,Free Early Educ 3&4,Redacted Personal Data,Third Party Payments-Other Agencies,526.75,Individual - NEC,,
06/04/2021,Free Early Educ 3&4,Redacted Personal Data,Third Party Payments-Other Agencies,526.75,Nursery,,
06/04/2021,Free Early Educ 3&4,Redacted Personal Data,Third Party Payments-Other Agencies,526.75,Nursery,,
06/04/2021,Free Early Educ 3&4,Redacted Personal Data,Third Party Payments-Other Agencies,526.75,Nursery,,
06/04/2021,Free Early Educ 3&4,Redacted Personal Data,Third Party Payments-Other Agencies,526.75,Individual - NEC,,
06/04/2021,Free Early Educ 3&4,Redacted Personal Data,Third Party Payments-Other Agencies,526.75,Adult direct payment,,
06/04/2021,Free Early Educ 3&4,Redacted Personal Data,Third Party Payments-Other Agencies,516.84,Individual - NEC,,
06/04/2021,Free Early Educ 3&4,Redacted Personal Data,Third Party Payments-Other Agencies,407.81,Nursery,,
06/04/2021,Free Early Educ 3&4,Redacted Personal Data,Third Party Payments-Other Agencies,849.60,Nursery,,
06/04/2021,Free Early Educ 3&4,Redacted Personal Data,Third Party Payments-Other Agencies,526.75,Nursery,,
06/04/2021,Free Early Educ 3&4,Redacted Personal Data,Third Party Payments-Other Agencies,526.75,Nursery,,
06/04/2021,Free Early Educ 3&4,Redacted Personal Data,Third Party Payments-Other Agencies,"1,019.52",Playgroup,,
06/04/2021,Free Early Educ 3&4,Redacted Personal Data,Third Party Payments-Other Agencies,611.71,Playgroup,,
06/04/2021,Free Early Educ 3&4,Redacted Personal Data,Third Party Payments-Other Agencies,339.84,Nursery,,
06/04/2021,Free Early Educ 3&4,Redacted Personal Data,Third Party Payments-Other Agencies,"2,039.04",Nursery,,
06/04/2021,Free Early Educ 3&4,Redacted Personal Data,Third Party Payments-Other Agencies,526.75,Nursery,,
06/04/2021,Free Early Educ 3&4,Redacted Personal Data,Third Party Payments-Other Agencies,934.56,Nursery,,
06/04/2021,Free Early Educ 3&4,Redacted Personal Data,Third Party Payments-Other Agencies,934.56,Nursery,,
06/04/2021,Free Early Educ 3&4,Redacted Personal Data,Third Party Payments-Other Agencies,"1,580.26",Nursery,,
06/04/2021,Free Early Educ 3&4,Redacted Personal Data,Third Party Payments-Other Agencies,"1,158.85",Nursery,,
06/04/2021,Free Early Educ 3&4,Redacted Personal Data,Third Party Payments-Other Agencies,"1,019.52",Nursery,,
06/04/2021,Free Early Educ 3&4,Redacted Personal Data,Third Party Payments-Other Agencies,540.91,Nursery,,
06/04/2021,NULL,Redacted Personal Data,NULL,348.60,Individual - NEC,,
06/04/2021,NULL,Redacted Personal data,NULL,348.60,Individual - NEC,,
06/04/2021,NULL,Redacted Personal Data,NULL,348.60,Individual - NEC,,
06/04/2021,NULL,Redacted Personal data,NULL,348.60,Individual - NEC,,
06/04/2021,NULL,Redacted Personal data,NULL,349.80,Individual - NEC,,
06/04/2021,NULL,Redacted Personal Data,NULL,349.80,Individual - NEC,,
06/04/2021,NULL,Redacted Personal data,NULL,349.80,Individual - NEC,,
06/04/2021,NULL,Redacted Personal Data,NULL,348.60,Individual - NEC,,
06/04/2021,NULL,Redacted Personal Data,NULL,629.40,Individual - NEC,,
06/04/2021,SE FOSTERING CARE,Redacted Personal data,Write Offs,603.12,CYP Indiv Foster Car,,
06/04/2021,SE FOSTERING CARE,Redacted Personal data,Non-Staff Related Transport Costs,255.60,Invoicing Plan Req.,,
06/04/2021,CHILD ARRANGE ORDERS,Redacted Personal data,Residency Order Allowances,282.86,CYP Indiv Carers,,
06/04/2021,Free Early Educ 3&4,Redacted Personal data,Third Party Payments-Other Agencies,526.75,Nursery,,
06/04/2021,CHILD ARRANGE ORDERS,Redacted Personal data,Residency Order Allowances,306.70,Res Order Allow,,
06/04/2021,CHILD ARRANGE ORDERS,Redacted Personal data,Residency Order Allowances,348.02,Res Order Allow,,
06/04/2021,ADOPTION ALLOWANCES,Redacted Personal Data,Adoption Order Allowances,557.54,CYP Indiv Foster Car,,
06/04/2021,ADOPTION ALLOWANCES,Redacted Personal Data,Adoption Order Allowances,301.92,CYP Indiv Foster Car,,
06/04/2021,ADOPTION ALLOWANCES,Redacted Personal Data,Adoption Order Allowances,301.92,CYP Indiv Carers,,
06/04/2021,ADOPTION ALLOWANCES,Redacted Personal Data,Adoption Order Allowances,"1,191.88",CYP Indiv Foster Car,,
06/04/2021,ADOPTION ALLOWANCES,Redacted Personal Data,Adoption Order Allowances,779.68,Individual - NEC,,
06/04/2021,ADOPTION ALLOWANCES,Redacted Personal Data,Adoption Order Allowances,324.70,CYP Indiv Foster Car,,
06/04/2021,ADOPTION ALLOWANCES,Redacted Personal Data,Adoption Order Allowances,251.38,Order Allowance,,
06/04/2021,ADOPTION ALLOWANCES,Redacted Personal Data,Adoption Order Allowances,791.00,CYP Indiv Foster Car,,
06/04/2021,ADOPTION ALLOWANCES,Redacted Personal Data,Adoption Order Allowances,865.90,CYP Indiv Foster Car,,
06/04/2021,ADOPTION ALLOWANCES,Redacted Personal Data,Adoption Order Allowances,301.92,CYP Indiv Foster Car,,
06/04/2021,ADOPTION ALLOWANCES,Redacted Personal Data,Adoption Order Allowances,386.06,Order Allowance,,
06/04/2021,ADOPTION ALLOWANCES,Redacted Personal Data,Adoption Order Allowances,302.62,Order Allowance,,
06/04/2021,CHILD ARRANGE ORDERS,Redacted Personal Data,Residency Order Allowances,290.80,CYP Indiv Foster Car,,
06/04/2021,CHILD ARRANGE ORDERS,Redacted Personal Data,Residency Order Allowances,348.72,Individual - NEC,,
06/04/2021,CHILD ARRANGE ORDERS,Redacted Personal Data,Residency Order Allowances,362.72,Individual - NEC,,
06/04/2021,CHILD ARRANGE ORDERS,Redacted Personal Data,Special Guardianship Orders,271.10,Interview Exps,,
06/04/2021,CHILD ARRANGE ORDERS,Redacted Personal Data,Special Guardianship Orders,285.30,Interview Exps,,
06/04/2021,CHILD ARRANGE ORDERS,Redacted Personal Data,Special Guardianship Orders,745.36,CYP Indiv Foster Car,,
06/04/2021,CHILD ARRANGE ORDERS,Redacted Personal Data,Special Guardianship Orders,497.30,CYP Indiv Foster Car,,
06/04/2021,CHILD ARRANGE ORDERS,Redacted Personal Data,Special Guardianship Orders,467.50,CYP Indiv Foster Car,,
06/04/2021,CHILD ARRANGE ORDERS,Redacted Personal Data,Special Guardianship Orders,400.06,CYP Indiv Foster Car,,
06/04/2021,CHILD ARRANGE ORDERS,Redacted Personal Data,Special Guardianship Orders,385.36,CYP Indiv Foster Car,,
06/04/2021,CHILD ARRANGE ORDERS,Redacted Personal Data,Special Guardianship Orders,338.34,CYP Indiv Foster Car,,
06/04/2021,CHILD ARRANGE ORDERS,Redacted Personal Data,Special Guardianship Orders,427.46,CYP Indiv Foster Car,,
06/04/2021,CHILD ARRANGE ORDERS,Redacted Personal Data,Special Guardianship Orders,399.56,Individual - NEC,,
06/04/2021,CHILD ARRANGE ORDERS,Redacted Personal Data,Special Guardianship Orders,386.06,Order Allowance,,
06/04/2021,CHILD ARRANGE ORDERS,Redacted Personal Data,Special Guardianship Orders,325.02,Individual - NEC,,
06/04/2021,CHILD ARRANGE ORDERS,Redacted Personal Data,Special Guardianship Orders,517.70,CYP Indiv Foster Car,,
06/04/2021,CHILD ARRANGE ORDERS,Redacted Personal Data,Special Guardianship Orders,720.00,CYP Indiv Carers,,
06/04/2021,CHILD ARRANGE ORDERS,Redacted Personal Data,Special Guardianship Orders,374.66,LAC Spec Guardianshi,,
06/04/2021,CHILD ARRANGE ORDERS,Redacted Personal Data,Special Guardianship Orders,342.32,Adult direct payment,,
06/04/2021,CHILD ARRANGE ORDERS,Redacted Personal Data,Special Guardianship Orders,517.70,Day Services,,
06/04/2021,ADOPTION ALLOWANCES,Redacted Personal Data,Adoption Order Allowances,785.20,CYP Indiv Foster Car,,
06/04/2021,ADOPTION ALLOWANCES,Redacted Personal Data,Adoption Order Allowances,823.80,Fostering Placement,,
06/04/2021,ADOPTION ALLOWANCES,Redacted Personal Data,Adoption Order Allowances,782.62,CYP Indiv Foster Car,,
06/04/2021,ADOPTION ALLOWANCES,Redacted Personal Data,Adoption Order Allowances,723.40,CYP Indiv Foster Car,,
06/04/2021,ADOPTION ALLOWANCES,Redacted Personal Data,Adoption Order Allowances,728.70,CYP Indiv Foster Car,,
06/04/2021,ADOPTION ALLOWANCES,Redacted Personal Data,Adoption Order Allowances,700.00,Order Allowance,,
06/04/2021,ADOPTION ALLOWANCES,Redacted Personal Data,Adoption Order Allowances,711.47,Invoicing Plan Req.,,
06/04/2021,ADOPTION ALLOWANCES,Redacted Personal Data,Adoption Order Allowances,760.24,Invoicing Plan Req.,,
06/04/2021,ADOPTION ALLOWANCES,Redacted Personal Data,Adoption Order Allowances,654.80,Invoicing Plan Req.,,
06/04/2021,CHILD ARRANGE ORDERS,Redacted Personal Data,Residency Order Allowances,251.04,CYP Indiv Foster Car,,
06/04/2021,CHILD ARRANGE ORDERS,Redacted Personal Data,Special Guardianship Orders,720.44,CYP Indiv Foster Car,,
06/04/2021,CHILD ARRANGE ORDERS,Redacted Personal Data,Special Guardianship Orders,285.30,Interview Exps,,
06/04/2021,CHILD ARRANGE ORDERS,Redacted Personal Data,Special Guardianship Orders,359.78,CYP Indiv Foster Car,,
06/04/2021,CHILD ARRANGE ORDERS,Redacted Personal Data,Special Guardianship Orders,838.00,CYP Indiv Foster Car,,
06/04/2021,CHILD ARRANGE ORDERS,Redacted Personal Data,Special Guardianship Orders,320.62,CYP Indiv Foster Car,,
06/04/2021,CHILD ARRANGE ORDERS,Redacted Personal Data,Special Guardianship Orders,400.06,Order Allowance,,
06/04/2021,CHILD ARRANGE ORDERS,Redacted Personal Data,Special Guardianship Orders,400.06,Adult direct payment,,
06/04/2021,CHILD ARRANGE ORDERS,Redacted Personal Data,Special Guardianship Orders,399.56,Adult direct payment,,
06/04/2021,CHILD ARRANGE ORDERS,Redacted Personal Data,Special Guardianship Orders,285.80,Adult direct payment,,
06/04/2021,CHILD ARRANGE ORDERS,Redacted Personal Data,Special Guardianship Orders,385.36,Invoicing Plan Req.,,
06/04/2021,CHILD ARRANGE ORDERS,Redacted Personal Data,Special Guardianship Orders,285.30,CYP Indiv Foster Car,,
06/04/2021,CHILD ARRANGE ORDERS,Redacted Personal Data,Special Guardianship Orders,399.56,CYP Indiv Carers,,
06/04/2021,CHILD ARRANGE ORDERS,Redacted Personal Data,Special Guardianship Orders,531.90,CYP Indiv Carers,,
06/04/2021,CHILD ARRANGE ORDERS,Redacted Personal Data,Special Guardianship Orders,342.32,CYP Indiv Carers,,
06/04/2021,CHILD ARRANGE ORDERS,Redacted Personal Data,Special Guardianship Orders,386.06,CYP Indiv Foster Car,,
06/04/2021,CHILD ARRANGE ORDERS,Redacted Personal Data,Special Guardianship Orders,362.30,CYP Indiv Carers,,
06/04/2021,CHILD ARRANGE ORDERS,Redacted Personal Data,Special Guardianship Orders,342.82,CYP Indiv Carers,,
06/04/2021,CHILD ARRANGE ORDERS,Redacted Personal Data,Special Guardianship Orders,517.70,CYP Indiv Foster Car,,
06/04/2021,CHILD ARRANGE ORDERS,Redacted Personal Data,Special Guardianship Orders,386.06,CYP Indiv Foster Car,,
06/04/2021,CHILD ARRANGE ORDERS,Redacted Personal Data,Special Guardianship Orders,400.06,CYP Indiv Foster Car,,
06/04/2021,CHILD ARRANGE ORDERS,Redacted Personal Data,Special Guardianship Orders,385.36,CYP Indiv Foster Car,,
06/04/2021,CHILD ARRANGE ORDERS,Redacted Personal Data,Special Guardianship Orders,385.36,CYP Indiv Foster Car,,
06/04/2021,CHILD ARRANGE ORDERS,Redacted Personal Data,Special Guardianship Orders,386.06,Individual - NEC,,
06/04/2021,CHILD ARRANGE ORDERS,Redacted Personal Data,Special Guardianship Orders,385.36,CYP Indiv Foster Car,,
06/04/2021,CHILD ARRANGE ORDERS,Redacted Personal Data,Special Guardianship Orders,370.02,Individual - NEC,,
06/04/2021,CHILD ARRANGE ORDERS,Redacted Personal Data,Special Guardianship Orders,385.36,CYP Indiv Carers,,
06/04/2021,CHILD ARRANGE ORDERS,Redacted Personal Data,Special Guardianship Orders,517.70,Adult direct payment,,
06/04/2021,CHILD ARRANGE ORDERS,Redacted Personal Data,Special Guardianship Orders,385.36,Family Support,,
06/04/2021,CHILD ARRANGE ORDERS,Redacted Personal Data,Special Guardianship Orders,823.80,Non-Staff Expenses,,
06/04/2021,CHILD ARRANGE ORDERS,Redacted Personal Data,Special Guardianship Orders,385.36,CYP Indiv Carers,,
06/04/2021,CHILD ARRANGE ORDERS,Redacted Personal Data,Special Guardianship Orders,385.36,CYP Indiv Foster Car,,
06/04/2021,CHILD ARRANGE ORDERS,Redacted Personal Data,Special Guardianship Orders,285.80,CYP Indiv Foster Car,,
06/04/2021,CHILD ARRANGE ORDERS,Redacted Personal Data,Special Guardianship Orders,343.74,Family Support,,
06/04/2021,CHILD ARRANGE ORDERS,Redacted Personal Data,Special Guardianship Orders,369.52,CYP Indiv Foster Car,,
06/04/2021,CHILD ARRANGE ORDERS,Redacted Personal Data,Special Guardianship Orders,385.36,CYP Indiv Foster Car,,
06/04/2021,CHILD ARRANGE ORDERS,Redacted Personal Data,Special Guardianship Orders,271.10,Invoicing Plan Req.,,
06/04/2021,CHILD ARRANGE ORDERS,Redacted Personal Data,Special Guardianship Orders,376.60,LAC Spec Guardianshi,,
06/04/2021,CHILD ARRANGE ORDERS,Redacted Personal Data,Special Guardianship Orders,390.80,LAC Spec Guardianshi,,
06/04/2021,CHILD ARRANGE ORDERS,Redacted Personal Data,Special Guardianship Orders,390.80,LAC Spec Guardianshi,,
06/04/2021,CHILD ARRANGE ORDERS,Redacted Personal Data,Special Guardianship Orders,386.06,CYP Indiv Foster Car,,
06/04/2021,CHILD ARRANGE ORDERS,Redacted Personal Data,Special Guardianship Orders,385.36,Individual - NEC,,
06/04/2021,CHILD ARRANGE ORDERS,Redacted Personal Data,Special Guardianship Orders,721.58,CYP Indiv Foster Car,,
06/04/2021,CHILD ARRANGE ORDERS,Redacted Personal Data,Special Guardianship Orders,385.36,CYP Indiv Foster Car,,
06/04/2021,CHILD ARRANGE ORDERS,Redacted Personal Data,Special Guardianship Orders,291.46,CYP Indiv Foster Car,,
06/04/2021,CHILD ARRANGE ORDERS,Redacted Personal Data,Special Guardianship Orders,884.08,Individual - NEC,,
06/04/2021,CHILD ARRANGE ORDERS,Redacted Personal Data,Special Guardianship Orders,385.36,Fostering Placement,,
06/04/2021,CHILD ARRANGE ORDERS,Redacted Personal Data,Special Guardianship Orders,385.36,CYP Indiv Foster Car,,
06/04/2021,CHILD ARRANGE ORDERS,Redacted Personal Data,Special Guardianship Orders,318.38,CYP Indiv Foster Car,,
06/04/2021,CHILD ARRANGE ORDERS,Redacted Personal Data,Special Guardianship Orders,385.36,Order Allowance,,
06/04/2021,CHILD ARRANGE ORDERS,Redacted Personal Data,Special Guardianship Orders,319.98,CYP Indiv Foster Car,,
06/04/2021,CHILD ARRANGE ORDERS,Redacted Personal Data,Special Guardianship Orders,271.10,Invoicing Plan Req.,,
06/04/2021,CHILD ARRANGE ORDERS,Redacted Personal Data,Special Guardianship Orders,385.36,CYP Indiv Foster Car,,
06/04/2021,CHILD ARRANGE ORDERS,Redacted Personal Data,Special Guardianship Orders,399.56,CYP Indiv Foster Car,,
06/04/2021,ADOPTION ALLOWANCES,Redacted Personal Data,Adoption Order Allowances,791.88,CYP Indiv Foster Car,,
06/04/2021,ADOPTION ALLOWANCES,Redacted Personal Data,Adoption Order Allowances,394.00,CYP Indiv Foster Car,,
06/04/2021,ADOPTION ALLOWANCES,Redacted Personal Data,Adoption Order Allowances,288.50,Fostering Placement,,
06/04/2021,ADOPTION ALLOWANCES,Redacted Personal Data,Adoption Order Allowances,284.58,CYP Indiv Foster Car,,
06/04/2021,ADOPTION ALLOWANCES,Redacted Personal Data,Adoption Order Allowances,"1,135.96",Invoicing Plan Req.,,
06/04/2021,ADOPTION ALLOWANCES,Redacted Personal Data,Adoption Order Allowances,760.26,Invoicing Plan Req.,,
06/04/2021,CHILD ARRANGE ORDERS,Redacted Personal Data,Residency Order Allowances,339.12,CYP Indiv Foster Car,,
06/04/2021,CHILD ARRANGE ORDERS,Redacted Personal Data,Special Guardianship Orders,714.00,CYP Indiv Foster Car,,
06/04/2021,CHILD ARRANGE ORDERS,Redacted Personal Data,Special Guardianship Orders,527.62,CYP Indiv Foster Car,,
06/04/2021,CHILD ARRANGE ORDERS,Redacted Personal Data,Special Guardianship Orders,271.80,LAC Spec Guardianshi,,
06/04/2021,CHILD ARRANGE ORDERS,Redacted Personal Data,Special Guardianship Orders,313.30,CYP Indiv Foster Car,,
06/04/2021,CHILD ARRANGE ORDERS,Redacted Personal Data,Special Guardianship Orders,285.30,Invoicing Plan Req.,,
06/04/2021,CHILD ARRANGE ORDERS,Redacted Personal Data,Special Guardianship Orders,385.36,Individual - NEC,,
06/04/2021,CHILD ARRANGE ORDERS,Redacted Personal Data,Special Guardianship Orders,386.06,CYP Indiv Foster Car,,
06/04/2021,CHILD ARRANGE ORDERS,Redacted Personal Data,Special Guardianship Orders,271.10,Individual - NEC,,
06/04/2021,CHILD ARRANGE ORDERS,Redacted Personal Data,Special Guardianship Orders,271.10,CYP Indiv Foster Car,,
06/04/2021,CHILD ARRANGE ORDERS,Redacted Personal Data,Special Guardianship Orders,399.56,CYP Indiv Foster Car,,
06/04/2021,CHILD ARRANGE ORDERS,Redacted Personal Data,Special Guardianship Orders,385.36,Non-Staff Expenses,,
06/04/2021,CHILD ARRANGE ORDERS,Redacted Personal Data,Special Guardianship Orders,704.10,LAC Leaving Care,,
06/04/2021,CHILD ARRANGE ORDERS,Redacted Personal Data,Special Guardianship Orders,271.10,LAC Spec Guardianshi,,
06/04/2021,CHILD ARRANGE ORDERS,Redacted Personal Data,Special Guardianship Orders,271.10,CYP Indiv Foster Car,,
06/04/2021,CHILD ARRANGE ORDERS,Redacted Personal Data,Special Guardianship Orders,385.36,Invoicing Plan Req.,,
06/04/2021,CHILD ARRANGE ORDERS,Redacted Personal Data,Special Guardianship Orders,285.30,Invoicing Plan Req.,,
06/04/2021,CHILD ARRANGE ORDERS,Redacted Personal Data,Special Guardianship Orders,271.10,Individual - NEC,,
06/04/2021,CHILD ARRANGE ORDERS,Redacted Personal Data,Special Guardianship Orders,386.06,CYP Indiv Foster Car,,
06/04/2021,CHILD ARRANGE ORDERS,Redacted Personal Data,Special Guardianship Orders,700.40,Individual - NEC,,
06/04/2021,CHILD ARRANGE ORDERS,Redacted Personal Data,Special Guardianship Orders,531.90,CYP Indiv Foster Car,,
06/04/2021,CHILD ARRANGE ORDERS,Redacted Personal Data,Special Guardianship Orders,385.36,CYP Indiv Foster Car,,
06/04/2021,CHILD ARRANGE ORDERS,Redacted Personal Data,Special Guardianship Orders,385.36,CYP Indiv Foster Car,,
06/04/2021,CHILD ARRANGE ORDERS,Redacted Personal Data,Special Guardianship Orders,809.00,CYP Indiv Foster Car,,
06/04/2021,CHILD ARRANGE ORDERS,Redacted Personal Data,Special Guardianship Orders,386.06,CYP Indiv Foster Car,,
06/04/2021,CHILD ARRANGE ORDERS,Redacted Personal Data,Special Guardianship Orders,385.36,CYP Indiv Foster Car,,
06/04/2021,CHILD ARRANGE ORDERS,Redacted Personal Data,Special Guardianship Orders,386.06,CYP Indiv Foster Car,,
06/04/2021,CHILD ARRANGE ORDERS,Redacted Personal Data,Special Guardianship Orders,259.64,CYP Indiv Foster Car,,
06/04/2021,CHILD ARRANGE ORDERS,Redacted Personal Data,Special Guardianship Orders,714.04,CYP Indiv Foster Car,,
06/04/2021,CHILD ARRANGE ORDERS,Redacted Personal Data,Special Guardianship Orders,728.24,CYP Indiv Foster Car,,
06/04/2021,CHILD ARRANGE ORDERS,Redacted Personal Data,Special Guardianship Orders,285.30,Invoicing Plan Req.,,
06/04/2021,CHILD ARRANGE ORDERS,Redacted Personal Data,Special Guardianship Orders,365.26,Invoicing Plan Req.,,
06/04/2021,CHILD ARRANGE ORDERS,Redacted Personal Data,Special Guardianship Orders,399.56,Fostering Placement,,
06/04/2021,CHILD ARRANGE ORDERS,Redacted Personal Data,Special Guardianship Orders,399.56,CYP Indiv Carers,,
06/04/2021,CHILD ARRANGE ORDERS,Redacted Personal Data,Special Guardianship Orders,400.06,CYP Indiv Foster Car,,
06/04/2021,CHILD ARRANGE ORDERS,Redacted Personal Data,Special Guardianship Orders,271.80,CYP Indiv Foster Car,,
06/04/2021,CHILD ARRANGE ORDERS,Redacted Personal Data,Special Guardianship Orders,399.56,CYP Indiv Foster Car,,
06/04/2021,CHILD ARRANGE ORDERS,Redacted Personal Data,Special Guardianship Orders,270.64,Non-Staff Expenses,,
06/04/2021,CHILD ARRANGE ORDERS,Redacted Personal Data,Special Guardianship Orders,271.10,CYP Indiv Carers,,
06/04/2021,CHILD ARRANGE ORDERS,Redacted Personal Data,Special Guardianship Orders,267.84,LAC Spec Guardianshi,,
06/04/2021,CHILD ARRANGE ORDERS,Redacted Personal Data,Special Guardianship Orders,385.36,CYP Indiv Foster Car,,
06/04/2021,CHILD ARRANGE ORDERS,Redacted Personal Data,Special Guardianship Orders,714.04,LAC Spec Guardianshi,,
06/04/2021,CHILD ARRANGE ORDERS,Redacted Personal Data,Special Guardianship Orders,342.32,CYP Indiv Foster Car,,
06/04/2021,CHILD ARRANGE ORDERS,Redacted Personal Data,Special Guardianship Orders,271.80,CYP Indiv Foster Car,,
06/04/2021,CHILD ARRANGE ORDERS,Redacted Personal Data,Special Guardianship Orders,285.30,Order Allowance,,
06/04/2021,CHILD ARRANGE ORDERS,Redacted Personal Data,Special Guardianship Orders,271.10,Order Allowance,,
06/04/2021,CHILD ARRANGE ORDERS,Redacted Personal Data,Special Guardianship Orders,331.94,CYP Indiv Foster Car,,
06/04/2021,CHILD ARRANGE ORDERS,Redacted Personal Data,Special Guardianship Orders,294.86,CYP Indiv Foster Car,,
06/04/2021,CHILD ARRANGE ORDERS,Redacted Personal Data,Special Guardianship Orders,285.30,CYP Indiv Foster Car,,
06/04/2021,CHILD ARRANGE ORDERS,Redacted Personal Data,Special Guardianship Orders,254.56,Order Allowance,,
06/04/2021,CHILD ARRANGE ORDERS,Redacted Personal Data,Special Guardianship Orders,271.80,Order Allowance,,
06/04/2021,CHILD ARRANGE ORDERS,Redacted Personal Data,Special Guardianship Orders,369.18,CYP Indiv Foster Car,,
06/04/2021,CHILD ARRANGE ORDERS,Redacted Personal Data,Special Guardianship Orders,285.30,CYP Indiv Foster Car,,
06/04/2021,CHILD ARRANGE ORDERS,Redacted Personal Data,Special Guardianship Orders,382.10,CYP Indiv Foster Car,,
06/04/2021,CHILD ARRANGE ORDERS,Redacted Personal Data,Special Guardianship Orders,637.58,Individual - NEC,,
06/04/2021,CHILD ARRANGE ORDERS,Redacted Personal Data,Special Guardianship Orders,385.36,CYP Indiv Carers,,
06/04/2021,CHILD ARRANGE ORDERS,Redacted Personal Data,Special Guardianship Orders,285.30,Invoicing Plan Req.,,
06/04/2021,CHILD ARRANGE ORDERS,Redacted Personal Data,Special Guardianship Orders,838.00,Non-Staff Expenses,,
06/04/2021,CHILD ARRANGE ORDERS,Redacted Personal Data,Special Guardianship Orders,399.56,CYP Indiv Carers,,
06/04/2021,CHILD ARRANGE ORDERS,Redacted Personal Data,Special Guardianship Orders,385.36,CYP Indiv Foster Car,,
06/04/2021,CHILD ARRANGE ORDERS,Redacted Personal Data,Special Guardianship Orders,399.56,CYP Indiv Carers,,
06/04/2021,CHILD ARRANGE ORDERS,Redacted Personal Data,Special Guardianship Orders,271.10,Invoicing Plan Req.,,
06/04/2021,CHILD ARRANGE ORDERS,Redacted Personal Data,Special Guardianship Orders,385.36,CYP Indiv Foster Car,,
06/04/2021,CHILD ARRANGE ORDERS,Redacted Personal Data,Special Guardianship Orders,385.36,CYP Indiv Foster Car,,
06/04/2021,CHILD ARRANGE ORDERS,Redacted Personal Data,Special Guardianship Orders,285.30,CYP Indiv Foster Car,,
06/04/2021,CHILD ARRANGE ORDERS,Redacted Personal Data,Special Guardianship Orders,385.36,Invoicing Plan Req.,,
06/04/2021,CHILD ARRANGE ORDERS,Redacted Personal Data,Special Guardianship Orders,466.24,CYP Indiv Foster Car,,
06/04/2021,CHILD ARRANGE ORDERS,Redacted Personal Data,Special Guardianship Orders,385.36,LAC Spec Guardianshi,,
06/04/2021,CHILD ARRANGE ORDERS,Redacted Personal Data,Special Guardianship Orders,285.30,CYP Indiv Foster Car,,
06/04/2021,CHILD ARRANGE ORDERS,Redacted Personal Data,Special Guardianship Orders,271.80,CYP Indiv Carers,,
06/04/2021,CHILD ARRANGE ORDERS,Redacted Personal Data,Special Guardianship Orders,399.56,CYP Indiv Foster Car,,
06/04/2021,CHILD ARRANGE ORDERS,Redacted Personal Data,Special Guardianship Orders,285.80,CYP Indiv Foster Car,,
06/04/2021,CHILD ARRANGE ORDERS,Redacted Personal Data,Special Guardianship Orders,385.36,CYP Indiv Foster Car,,
06/04/2021,CHILD ARRANGE ORDERS,Redacted Personal Data,Special Guardianship Orders,385.36,CYP Indiv Foster Car,,
06/04/2021,CHILD ARRANGE ORDERS,Redacted Personal Data,Special Guardianship Orders,517.70,Invoicing Plan Req.,,
06/04/2021,CHILD ARRANGE ORDERS,Redacted Personal Data,Special Guardianship Orders,385.36,CYP Indiv Foster Car,,
06/04/2021,CHILD ARRANGE ORDERS,Redacted Personal Data,Special Guardianship Orders,399.56,CYP Indiv Foster Car,,
06/04/2021,CHILD ARRANGE ORDERS,Redacted Personal Data,Special Guardianship Orders,285.30,CYP Indiv Foster Car,,
06/04/2021,CHILD ARRANGE ORDERS,Redacted Personal Data,Special Guardianship Orders,379.06,Invoicing Plan Req.,,
06/04/2021,CHILD ARRANGE ORDERS,Redacted Personal Data,Special Guardianship Orders,393.06,Invoicing Plan Req.,,
06/04/2021,CHILD ARRANGE ORDERS,Redacted Personal Data,Special Guardianship Orders,285.30,Family Support,,
06/04/2021,CHILD ARRANGE ORDERS,Redacted Personal Data,Special Guardianship Orders,385.36,CYP Indiv Foster Car,,
06/04/2021,CHILD ARRANGE ORDERS,Redacted Personal Data,Special Guardianship Orders,285.80,LAC Spec Guardianshi,,
06/04/2021,CHILD ARRANGE ORDERS,Redacted Personal Data,Special Guardianship Orders,648.84,Childrens Indiv Tran,,
06/04/2021,CHILD ARRANGE ORDERS,Redacted Personal Data,Special Guardianship Orders,385.36,Invoicing Plan Req.,,
06/04/2021,CHILD ARRANGE ORDERS,Redacted Personal Data,Special Guardianship Orders,399.56,CYP Indiv Foster Car,,
06/04/2021,CHILD ARRANGE ORDERS,Redacted Personal Data,Special Guardianship Orders,313.20,Invoicing Plan Req.,,
06/04/2021,CHILD ARRANGE ORDERS,Redacted Personal Data,Special Guardianship Orders,993.14,CYP Indiv Foster Car,,
06/04/2021,CHILD ARRANGE ORDERS,Redacted Personal Data,Special Guardianship Orders,"1,007.34",CYP Indiv Foster Car,,
06/04/2021,CHILD ARRANGE ORDERS,Redacted Personal Data,Special Guardianship Orders,362.24,Invoicing Plan Req.,,
06/04/2021,CHILD ARRANGE ORDERS,Redacted Personal Data,Special Guardianship Orders,385.36,CYP Indiv Foster Car,,
06/04/2021,CHILD ARRANGE ORDERS,Redacted Personal Data,Special Guardianship Orders,285.30,CYP Indiv Foster Car,,
06/04/2021,CHILD ARRANGE ORDERS,Redacted Personal Data,Special Guardianship Orders,399.56,CYP Indiv Foster Car,,
06/04/2021,CHILD ARRANGE ORDERS,Redacted Personal Data,Special Guardianship Orders,400.06,Individual - NEC,,
06/04/2021,CHILD ARRANGE ORDERS,Redacted Personal Data,Special Guardianship Orders,261.14,Invoicing Plan Req.,,
06/04/2021,CHILD ARRANGE ORDERS,Redacted Personal Data,Special Guardianship Orders,271.80,CYP Indiv Foster Car,,
06/04/2021,CHILD ARRANGE ORDERS,Redacted Personal Data,Special Guardianship Orders,385.36,CYP Indiv Foster Car,,
06/04/2021,CHILD ARRANGE ORDERS,Redacted Personal Data,Special Guardianship Orders,385.36,CYP Indiv Foster Car,,
06/04/2021,CHILD ARRANGE ORDERS,Redacted Personal Data,Special Guardianship Orders,285.30,CYP Indiv Foster Car,,
06/04/2021,CHILD ARRANGE ORDERS,Redacted Personal Data,Special Guardianship Orders,385.36,CYP Indiv Foster Car,,
06/04/2021,CHILD ARRANGE ORDERS,Redacted Personal Data,Special Guardianship Orders,285.30,Family Support,,
06/04/2021,CHILD ARRANGE ORDERS,Redacted Personal Data,Special Guardianship Orders,285.30,CYP Indiv Foster Car,,
06/04/2021,CHILD ARRANGE ORDERS,Redacted Personal Data,Special Guardianship Orders,386.06,LAC Spec Guardianshi,,
06/04/2021,CHILD ARRANGE ORDERS,Redacted Personal Data,Special Guardianship Orders,385.36,LAC Spec Guardianshi,,
06/04/2021,CHILD ARRANGE ORDERS,Redacted Personal Data,Special Guardianship Orders,285.30,Order Allowance,,
06/04/2021,CHILD ARRANGE ORDERS,Redacted Personal Data,Special Guardianship Orders,271.80,CYP Indiv Foster Car,,
06/04/2021,CHILD ARRANGE ORDERS,Redacted Personal Data,Special Guardianship Orders,271.80,CYP Indiv Foster Car,,
06/04/2021,CHILD ARRANGE ORDERS,Redacted Personal Data,Special Guardianship Orders,285.30,CYP Indiv Foster Car,,
06/04/2021,CHILD ARRANGE ORDERS,Redacted Personal Data,Special Guardianship Orders,385.36,Order Allowance,,
06/04/2021,CHILD ARRANGE ORDERS,Redacted Personal Data,Special Guardianship Orders,285.30,Order Allowance,,
06/04/2021,CHILD ARRANGE ORDERS,Redacted Personal Data,Special Guardianship Orders,285.80,CYP Indiv Foster Car,,
06/04/2021,CHILD ARRANGE ORDERS,Redacted Personal Data,Special Guardianship Orders,385.36,CYP Indiv Carers,,
06/04/2021,CHILD ARRANGE ORDERS,Redacted Personal Data,Special Guardianship Orders,271.10,Order Allowance,,
06/04/2021,CHILD ARRANGE ORDERS,Redacted Personal Data,Special Guardianship Orders,949.80,Invoicing Plan Req.,,
06/04/2021,CHILD ARRANGE ORDERS,Redacted Personal Data,Special Guardianship Orders,285.30,Order Allowance,,
06/04/2021,CHILD ARRANGE ORDERS,Redacted Personal Data,Special Guardianship Orders,285.30,CYP Indiv Foster Car,,
06/04/2021,CHILD ARRANGE ORDERS,Redacted Personal Data,Special Guardianship Orders,385.36,CYP Indiv Foster Car,,
06/04/2021,CHILD ARRANGE ORDERS,Redacted Personal Data,Special Guardianship Orders,399.56,CYP Indiv Foster Car,,
06/04/2021,CHILD ARRANGE ORDERS,Redacted Personal Data,Special Guardianship Orders,271.10,CYP Indiv Foster Car,,
06/04/2021,CHILD ARRANGE ORDERS,Redacted Personal Data,Special Guardianship Orders,285.30,CYP Indiv Foster Car,,
06/04/2021,CHILD ARRANGE ORDERS,Redacted Personal Data,Special Guardianship Orders,271.10,Order Allowance,,
06/04/2021,CHILD ARRANGE ORDERS,Redacted Personal Data,Special Guardianship Orders,271.10,CYP Indiv Foster Car,,
06/04/2021,CHILD ARRANGE ORDERS,Redacted Personal Data,Special Guardianship Orders,385.36,Asylum,,
06/04/2021,CHILD ARRANGE ORDERS,Redacted Personal Data,Special Guardianship Orders,499.88,Order Allowance,,
06/04/2021,CHILD ARRANGE ORDERS,Redacted Personal Data,Special Guardianship Orders,271.80,CYP Indiv Foster Car,,
06/04/2021,CHILD ARRANGE ORDERS,Redacted Personal Data,Special Guardianship Orders,353.36,LAC Spec Guardianshi,,
06/04/2021,CHILD ARRANGE ORDERS,Redacted Personal Data,Special Guardianship Orders,285.30,CYP Indiv Foster Car,,
06/04/2021,CHILD ARRANGE ORDERS,Redacted Personal Data,Special Guardianship Orders,271.80,LAC Spec Guardianshi,,
06/04/2021,CHILD ARRANGE ORDERS,Redacted Personal Data,Special Guardianship Orders,271.10,CYP Indiv Foster Car,,
06/04/2021,CHILD ARRANGE ORDERS,Redacted Personal Data,Special Guardianship Orders,285.80,Order Allowance,,
06/04/2021,CHILD ARRANGE ORDERS,Redacted Personal Data,Special Guardianship Orders,385.36,CYP Indiv Foster Car,,
06/04/2021,CHILD ARRANGE ORDERS,Redacted Personal Data,Special Guardianship Orders,399.56,Order Allowance,,
06/04/2021,CHILD ARRANGE ORDERS,Redacted Personal Data,Special Guardianship Orders,306.56,CYP Indiv Foster Car,,
06/04/2021,CHILD ARRANGE ORDERS,Redacted Personal Data,Special Guardianship Orders,271.10,LAC Spec Guardianshi,,
06/04/2021,CHILD ARRANGE ORDERS,Redacted Personal Data,Special Guardianship Orders,271.10,LAC Spec Guardianshi,,
06/04/2021,CHILD ARRANGE ORDERS,Redacted Personal Data,Special Guardianship Orders,399.56,CYP Indiv Foster Car,,
06/04/2021,CHILD ARRANGE ORDERS,Redacted Personal Data,Special Guardianship Orders,285.30,LAC Spec Guardianshi,,
06/04/2021,CHILD ARRANGE ORDERS,Redacted Personal Data,Special Guardianship Orders,271.10,LAC Spec Guardianshi,,
06/04/2021,CHILD ARRANGE ORDERS,Redacted Personal Data,Special Guardianship Orders,399.56,Fostering IFA,,
06/04/2021,CHILD ARRANGE ORDERS,Redacted Personal Data,Special Guardianship Orders,385.36,CYP Indiv CWD Carers,,
06/04/2021,CHILD ARRANGE ORDERS,Redacted Personal Data,Special Guardianship Orders,285.30,Invoicing Plan Req.,,
06/04/2021,CHILD ARRANGE ORDERS,Redacted Personal Data,Special Guardianship Orders,259.60,CYP Indiv Foster Car,,
06/04/2021,CHILD ARRANGE ORDERS,Redacted Personal Data,Special Guardianship Orders,450.06,CYP Indiv Foster Car,,
06/04/2021,CHILD ARRANGE ORDERS,Redacted Personal Data,Special Guardianship Orders,641.14,CYP Indiv Foster Car,,
06/04/2021,CHILD ARRANGE ORDERS,Redacted Personal Data,Special Guardianship Orders,285.30,CYP Indiv Foster Car,,
06/04/2021,CHILD ARRANGE ORDERS,Redacted Personal Data,Special Guardianship Orders,553.42,Childrens Indiv Tran,,
06/04/2021,CHILD ARRANGE ORDERS,Redacted Personal Data,Special Guardianship Orders,271.10,Invoicing Plan Req.,,
06/04/2021,CHILD ARRANGE ORDERS,Redacted Personal Data,Special Guardianship Orders,271.10,Order Allowance,,
06/04/2021,CHILD ARRANGE ORDERS,Redacted Personal Data,Special Guardianship Orders,271.10,LAC Spec Guardianshi,,
06/04/2021,CHILD ARRANGE ORDERS,Redacted Personal Data,Special Guardianship Orders,271.10,CYP Indiv Foster Car,,
06/04/2021,CHILD ARRANGE ORDERS,Redacted Personal Data,Special Guardianship Orders,385.36,Invoicing Plan Req.,,
06/04/2021,CHILD ARRANGE ORDERS,Redacted Personal Data,Special Guardianship Orders,385.36,Order Allowance,,
06/04/2021,CHILD ARRANGE ORDERS,Redacted Personal Data,Special Guardianship Orders,400.06,Order Allowance,,
06/04/2021,CHILD ARRANGE ORDERS,Redacted Personal Data,Special Guardianship Orders,385.36,CYP Indiv Foster Car,,
06/04/2021,CHILD ARRANGE ORDERS,Redacted Personal Data,Special Guardianship Orders,385.36,CYP Indiv Foster Car,,
06/04/2021,CHILD ARRANGE ORDERS,Redacted Personal Data,Special Guardianship Orders,285.80,LAC Spec Guardianshi,,
06/04/2021,CHILD ARRANGE ORDERS,Redacted Personal Data,Special Guardianship Orders,326.10,LAC Spec Guardianshi,,
06/04/2021,CHILD ARRANGE ORDERS,Redacted Personal Data,Special Guardianship Orders,271.10,LAC Spec Guardianshi,,
06/04/2021,CHILD ARRANGE ORDERS,Redacted Personal Data,Special Guardianship Orders,271.80,LAC Spec Guardianshi,,
06/04/2021,CHILD ARRANGE ORDERS,Redacted Personal Data,Special Guardianship Orders,285.80,LAC Spec Guardianshi,,
06/04/2021,CHILD ARRANGE ORDERS,Redacted Personal Data,Special Guardianship Orders,277.72,CYP Indiv Foster Car,,
06/04/2021,CHILD ARRANGE ORDERS,Redacted Personal Data,Special Guardianship Orders,271.10,CYP Indiv Foster Car,,
06/04/2021,CHILD ARRANGE ORDERS,Redacted Personal Data,Special Guardianship Orders,427.46,Non-Staff Expenses,,
06/04/2021,CHILD ARRANGE ORDERS,Redacted Personal Data,Special Guardianship Orders,330.00,CYP Indiv Foster Car,,
06/04/2021,CHILD ARRANGE ORDERS,Redacted Personal Data,Special Guardianship Orders,271.10,CYP Indiv Foster Car,,
06/04/2021,CHILD ARRANGE ORDERS,Redacted Personal Data,Special Guardianship Orders,271.10,CYP Indiv Foster Car,,
06/04/2021,CHILD ARRANGE ORDERS,Redacted Personal Data,Special Guardianship Orders,333.74,LAC Spec Guardianshi,,
06/04/2021,CHILD ARRANGE ORDERS,Redacted Personal Data,Special Guardianship Orders,385.36,LAC Spec Guardianshi,,
06/04/2021,CHILD ARRANGE ORDERS,Redacted Personal Data,Special Guardianship Orders,271.10,CYP Indiv Foster Car,,
06/04/2021,CHILD ARRANGE ORDERS,Redacted Personal Data,Special Guardianship Orders,271.10,CYP Indiv Foster Car,,
06/04/2021,CHILD ARRANGE ORDERS,Redacted Personal Data,Special Guardianship Orders,271.80,Invoicing Plan Req.,,
06/04/2021,CHILD ARRANGE ORDERS,Redacted Personal Data,Special Guardianship Orders,271.10,Invoicing Plan Req.,,
06/04/2021,CHILD ARRANGE ORDERS,Redacted Personal Data,Special Guardianship Orders,285.80,Order Allowance,,
06/04/2021,CHILD ARRANGE ORDERS,Redacted Personal Data,Special Guardianship Orders,271.10,Invoicing Plan Req.,,
06/04/2021,CHILD ARRANGE ORDERS,Redacted Personal Data,Special Guardianship Orders,427.46,Invoicing Plan Req.,,
06/04/2021,CHILD ARRANGE ORDERS,Redacted Personal Data,Special Guardianship Orders,328.82,Invoicing Plan Req.,,
06/04/2021,CHILD ARRANGE ORDERS,Redacted Personal Data,Special Guardianship Orders,285.30,Invoicing Plan Req.,,
06/04/2021,CHILD ARRANGE ORDERS,Redacted Personal Data,Special Guardianship Orders,328.12,Invoicing Plan Req.,,
06/04/2021,CHILD ARRANGE ORDERS,Redacted Personal Data,Special Guardianship Orders,271.10,Invoicing Plan Req.,,
06/04/2021,CHILD ARRANGE ORDERS,Redacted Personal Data,Special Guardianship Orders,285.30,Invoicing Plan Req.,,
06/04/2021,CHILD ARRANGE ORDERS,Redacted Personal Data,Special Guardianship Orders,517.70,Invoicing Plan Req.,,
06/04/2021,CHILD ARRANGE ORDERS,Redacted Personal Data,Special Guardianship Orders,517.70,Invoicing Plan Req.,,
06/04/2021,CHILD ARRANGE ORDERS,Redacted Personal Data,Special Guardianship Orders,342.32,Invoicing Plan Req.,,
06/04/2021,CHILD ARRANGE ORDERS,Redacted Personal Data,Special Guardianship Orders,385.36,Fostering IFA,,
06/04/2021,CHILD ARRANGE ORDERS,Redacted Personal Data,Special Guardianship Orders,386.06,CYP Indiv Foster Car,,
06/04/2021,CHILD ARRANGE ORDERS,Redacted Personal Data,Special Guardianship Orders,540.86,Invoicing Plan Req.,,
06/04/2021,CHILD ARRANGE ORDERS,Redacted Personal Data,Special Guardianship Orders,359.64,CYP Indiv Foster Car,,
06/04/2021,CHILD ARRANGE ORDERS,Redacted Personal Data,Special Guardianship Orders,315.34,LAC Spec Guardianshi,,
06/04/2021,CHILD ARRANGE ORDERS,Redacted Personal Data,Special Guardianship Orders,285.30,CYP Indiv Foster Car,,
06/04/2021,CHILD ARRANGE ORDERS,Redacted Personal Data,Special Guardianship Orders,385.36,CYP Indiv Foster Car,,
06/04/2021,CHILD ARRANGE ORDERS,Redacted Personal Data,Special Guardianship Orders,385.36,Invoicing Plan Req.,,
06/04/2021,CHILD ARRANGE ORDERS,Redacted Personal Data,Special Guardianship Orders,271.80,Fostering IFA,,
06/04/2021,CHILD ARRANGE ORDERS,Redacted Personal Data,Special Guardianship Orders,295.16,Invoicing Plan Req.,,
06/04/2021,CHILD ARRANGE ORDERS,Redacted Personal Data,Special Guardianship Orders,271.80,Invoicing Plan Req.,,
06/04/2021,CHILD ARRANGE ORDERS,Redacted Personal Data,Special Guardianship Orders,285.80,Invoicing Plan Req.,,
06/04/2021,CHILD ARRANGE ORDERS,Redacted Personal Data,Special Guardianship Orders,342.32,CWD 16-17,,
06/04/2021,CHILD ARRANGE ORDERS,Redacted Personal Data,Special Guardianship Orders,271.80,CYP Indiv Foster Car,,
06/04/2021,CHILD ARRANGE ORDERS,Redacted Personal Data,Special Guardianship Orders,399.56,CYP Indiv Carers,,
06/04/2021,CHILD ARRANGE ORDERS,Redacted Personal Data,Special Guardianship Orders,271.10,Order Allowance,,
06/04/2021,CHILD ARRANGE ORDERS,Redacted Personal Data,Special Guardianship Orders,317.42,Invoicing Plan Req.,,
06/04/2021,CHILD ARRANGE ORDERS,Redacted Personal Data,Special Guardianship Orders,331.42,Invoicing Plan Req.,,
06/04/2021,CHILD ARRANGE ORDERS,Redacted Personal Data,Special Guardianship Orders,271.10,Order Allowance,,
06/04/2021,CHILD ARRANGE ORDERS,Redacted Personal Data,Special Guardianship Orders,285.80,CYP Indiv Foster Car,,
06/04/2021,CHILD ARRANGE ORDERS,Redacted Personal Data,Special Guardianship Orders,386.06,CYP Indiv Carers,,
06/04/2021,CHILD ARRANGE ORDERS,Redacted Personal Data,Special Guardianship Orders,285.30,Placement Allowance,,
06/04/2021,CHILD ARRANGE ORDERS,Redacted Personal Data,Special Guardianship Orders,285.30,Order Allowance,,
06/04/2021,CHILD ARRANGE ORDERS,Redacted Personal Data,Special Guardianship Orders,385.36,Fostering Placement,,
06/04/2021,CHILD ARRANGE ORDERS,Redacted Personal Data,Special Guardianship Orders,285.80,Invoicing Plan Req.,,
06/04/2021,CHILD ARRANGE ORDERS,Redacted Personal Data,Special Guardianship Orders,285.30,Invoicing Plan Req.,,
06/04/2021,CHILD ARRANGE ORDERS,Redacted Personal Data,Special Guardianship Orders,399.56,Invoicing Plan Req.,,
06/04/2021,CHILD ARRANGE ORDERS,Redacted Personal Data,Special Guardianship Orders,328.12,Invoicing Plan Req.,,
06/04/2021,CHILD ARRANGE ORDERS,Redacted Personal Data,Special Guardianship Orders,285.30,Invoicing Plan Req.,,
06/04/2021,CHILD ARRANGE ORDERS,Redacted Personal Data,Special Guardianship Orders,271.10,Invoicing Plan Req.,,
06/04/2021,CHILD ARRANGE ORDERS,Redacted Personal Data,Special Guardianship Orders,271.10,Invoicing Plan Req.,,
06/04/2021,CHILD ARRANGE ORDERS,Redacted Personal Data,Special Guardianship Orders,285.30,Invoicing Plan Req.,,
06/04/2021,CHILD ARRANGE ORDERS,Redacted Personal Data,Special Guardianship Orders,294.46,Invoicing Plan Req.,,
06/04/2021,CHILD ARRANGE ORDERS,Redacted Personal Data,Special Guardianship Orders,531.90,Invoicing Plan Req.,,
06/04/2021,CHILD ARRANGE ORDERS,Redacted Personal Data,Special Guardianship Orders,295.16,Invoicing Plan Req.,,
06/04/2021,CHILD ARRANGE ORDERS,Redacted Personal Data,Special Guardianship Orders,328.82,Invoicing Plan Req.,,
06/04/2021,CHILD ARRANGE ORDERS,Redacted Personal Data,Special Guardianship Orders,271.10,CYP Indiv Foster Car,,
06/04/2021,CHILD ARRANGE ORDERS,Redacted Personal Data,Special Guardianship Orders,285.30,CYP Indiv Foster Car,,
06/04/2021,CHILD ARRANGE ORDERS,Redacted Personal Data,Special Guardianship Orders,271.80,CYP Indiv Foster Car,,
06/04/2021,CHILD ARRANGE ORDERS,Redacted Personal Data,Special Guardianship Orders,271.10,CYP Indiv Foster Car,,
06/04/2021,CHILD ARRANGE ORDERS,Redacted Personal Data,Special Guardianship Orders,285.30,CYP Indiv Foster Car,,
06/04/2021,CHILD ARRANGE ORDERS,Redacted Personal Data,Special Guardianship Orders,285.30,CYP Indiv Foster Car,,
06/04/2021,CHILD ARRANGE ORDERS,Redacted Personal Data,Special Guardianship Orders,271.10,LAC Spec Guardianshi,,
06/04/2021,CHILD ARRANGE ORDERS,Redacted Personal Data,Special Guardianship Orders,285.80,Order Allowance,,
06/04/2021,CHILD ARRANGE ORDERS,Redacted Personal Data,Special Guardianship Orders,385.36,Invoicing Plan Req.,,
06/04/2021,CHILD ARRANGE ORDERS,Redacted Personal Data,Special Guardianship Orders,400.06,CYP Indiv Foster Car,,
06/04/2021,CHILD ARRANGE ORDERS,Redacted Personal Data,Special Guardianship Orders,285.30,LAC Spec Guardianshi,,
06/04/2021,CHILD ARRANGE ORDERS,Redacted Personal Data,Special Guardianship Orders,285.30,Fostering IFA,,
06/04/2021,CHILD ARRANGE ORDERS,Redacted Personal Data,Special Guardianship Orders,385.36,LAC Spec Guardianshi,,
06/04/2021,CHILD ARRANGE ORDERS,Redacted Personal Data,Special Guardianship Orders,278.02,Adult direct payment,,
06/04/2021,CHILD ARRANGE ORDERS,Redacted Personal Data,Special Guardianship Orders,271.10,CYP Indiv Foster Car,,
06/04/2021,CHILD ARRANGE ORDERS,Redacted Personal Data,Special Guardianship Orders,783.34,Order Allowance,,
06/04/2021,CHILD ARRANGE ORDERS,Redacted Personal Data,Special Guardianship Orders,385.36,Invoicing Plan Req.,,
06/04/2021,CHILD ARRANGE ORDERS,Redacted Personal Data,Special Guardianship Orders,553.42,Childrens Indiv Tran,,
06/04/2021,CHILD ARRANGE ORDERS,Redacted Personal Data,Special Guardianship Orders,539.22,Childrens Indiv Tran,,
06/04/2021,CHILD ARRANGE ORDERS,Redacted Personal Data,Special Guardianship Orders,271.10,CYP Indiv Foster Car,,
06/04/2021,CHILD ARRANGE ORDERS,Redacted Personal Data,Special Guardianship Orders,271.10,Invoicing Plan Req.,,
06/04/2021,CHILD ARRANGE ORDERS,Redacted Personal Data,Special Guardianship Orders,285.30,Invoicing Plan Req.,,
06/04/2021,CHILD ARRANGE ORDERS,Redacted Personal Data,Special Guardianship Orders,285.80,Invoicing Plan Req.,,
06/04/2021,CHILD ARRANGE ORDERS,Redacted Personal Data,Special Guardianship Orders,517.70,Invoicing Plan Req.,,
06/04/2021,CHILD ARRANGE ORDERS,Redacted Personal Data,Special Guardianship Orders,385.36,Invoicing Plan Req.,,
06/04/2021,CHILD ARRANGE ORDERS,Redacted Personal Data,Special Guardianship Orders,385.36,Invoicing Plan Req.,,
06/04/2021,CHILD ARRANGE ORDERS,Redacted Personal Data,Special Guardianship Orders,518.40,CYP Indiv Foster Car,,
06/04/2021,CHILD ARRANGE ORDERS,Redacted Personal Data,Special Guardianship Orders,370.22,Adult direct payment,,
06/04/2021,CHILD ARRANGE ORDERS,Redacted Personal Data,Special Guardianship Orders,370.22,Adult direct payment,,
06/04/2021,CHILD ARRANGE ORDERS,Redacted Personal Data,Special Guardianship Orders,328.12,CYP Indiv Foster Car,,
06/04/2021,CHILD ARRANGE ORDERS,Redacted Personal Data,Special Guardianship Orders,271.10,Invoicing Plan Req.,,
06/04/2021,CHILD ARRANGE ORDERS,Redacted Personal Data,Special Guardianship Orders,342.32,Invoicing Plan Req.,,
06/04/2021,CHILD ARRANGE ORDERS,Redacted Personal Data,Special Guardianship Orders,285.80,Invoicing Plan Req.,,
06/04/2021,CHILD ARRANGE ORDERS,Redacted Personal Data,Special Guardianship Orders,328.82,Invoicing Plan Req.,,
06/04/2021,CHILD ARRANGE ORDERS,Redacted Personal Data,Special Guardianship Orders,342.32,Invoicing Plan Req.,,
06/04/2021,CHILD ARRANGE ORDERS,Redacted Personal Data,Special Guardianship Orders,328.12,Invoicing Plan Req.,,
06/04/2021,CHILD ARRANGE ORDERS,Redacted Personal Data,Special Guardianship Orders,285.30,Invoicing Plan Req.,,
06/04/2021,CHILD ARRANGE ORDERS,Redacted Personal Data,Special Guardianship Orders,271.10,Invoicing Plan Req.,,
06/04/2021,CHILD ARRANGE ORDERS,Redacted Personal Data,Special Guardianship Orders,285.30,Invoicing Plan Req.,,
06/04/2021,CHILD ARRANGE ORDERS,Redacted Personal Data,Special Guardianship Orders,342.82,Invoicing Plan Req.,,
06/04/2021,CHILD ARRANGE ORDERS,Redacted Personal Data,Special Guardianship Orders,285.80,Invoicing Plan Req.,,
06/04/2021,CHILD ARRANGE ORDERS,Redacted Personal Data,Special Guardianship Orders,285.30,Invoicing Plan Req.,,
06/04/2021,CHILD ARRANGE ORDERS,Redacted Personal Data,Special Guardianship Orders,309.16,Invoicing Plan Req.,,
06/04/2021,CHILD ARRANGE ORDERS,Redacted Personal Data,Special Guardianship Orders,531.90,Invoicing Plan Req.,,
06/04/2021,CHILD ARRANGE ORDERS,Redacted Personal Data,Special Guardianship Orders,285.30,Invoicing Plan Req.,,
06/04/2021,CHILD ARRANGE ORDERS,Redacted Personal Data,Special Guardianship Orders,271.10,Invoicing Plan Req.,,
06/04/2021,CHILD ARRANGE ORDERS,Redacted Personal Data,Special Guardianship Orders,271.10,CYP Indiv Foster Car,,
06/04/2021,CHILD ARRANGE ORDERS,Redacted Personal Data,Special Guardianship Orders,342.32,Invoicing Plan Req.,,
06/04/2021,CHILD ARRANGE ORDERS,Redacted Personal Data,Special Guardianship Orders,517.70,Invoicing Plan Req.,,
06/04/2021,CHILD ARRANGE ORDERS,Redacted Personal Data,Special Guardianship Orders,342.32,Invoicing Plan Req.,,
06/04/2021,CHILD ARRANGE ORDERS,Redacted Personal Data,Special Guardianship Orders,285.80,Invoicing Plan Req.,,
06/04/2021,CHILD ARRANGE ORDERS,Redacted Personal Data,Special Guardianship Orders,531.90,Invoicing Plan Req.,,
06/04/2021,CHILD ARRANGE ORDERS,Redacted Personal Data,Special Guardianship Orders,559.80,CYP Indiv Foster Car,,
06/04/2021,SE FOSTERING CARE,Redacted Personal Data,Payments to Foster Parents,844.38,CYP Indiv Foster Car,,
06/04/2021,SE FOSTERING CARE,Redacted Personal Data,Payments to Foster Parents,844.38,CYP Indiv Foster Car,,
06/04/2021,NE FOSTERING CARE,Redacted Personal Data,Payments to Foster Parents,"1,072.04",CYP Indiv Foster Car,,
06/04/2021,NW FOSTERING CARE,Redacted Personal Data,Payments to Foster Parents,844.38,CYP Indiv Foster Car,,
06/04/2021,Free Early Educ 3&4,Redhill Baptist Church Pre School,Third Party Payments-Other Agencies,"19,060.78",Nursery,,
06/04/2021,ELECTIONS & BY-ELEC,Reigate & Banstead Borough Council,Venue Costs (including Hire of Rooms),"75,000.00",Grants-Member Allocs,,
06/04/2021,Free Early Educ 3&4,Reigate High Street Playgroup,Third Party Payments-Other Agencies,"9,473.04",Nurseries,,
06/04/2021,Free Early Educ 3&4,Reigate St Marys Preparatory School,Third Party Payments-Other Agencies,"19,319.90",Non Trade,,
06/04/2021,Free Early Educ 3&4,Ripley Court School,Third Party Payments-Other Agencies,"10,897.54",Grants - Community,,
06/04/2021,Free Early Educ 3&4,Ripley Pre-School,Third Party Payments-Other Agencies,"7,273.99",Schools,,
06/04/2021,Free Early Educ 3&4,River Mole Pre School Ltd,Third Party Payments-Other Agencies,"33,227.86",Nursery,,
06/04/2021,Free Early Educ 3&4,Rocking Horse Nursery (Godalming) L,Third Party Payments-Other Agencies,"26,868.49",Nurseries,,
06/04/2021,Free Early Educ 3&4,Roslin Nursery,Third Party Payments-Other Agencies,"18,185.80",Nurseries,,
06/04/2021,Free Early Educ 3&4,Round & Round the Gardens Childcare,Third Party Payments-Other Agencies,"27,880.76",Nursery,,
06/04/2021,Free Early Educ 3&4,Rowan Preparatory School,Third Party Payments-Other Agencies,"12,862.94",Schools,,
06/04/2021,Free Early Educ 3&4,Rowledge Pre School,Third Party Payments-Other Agencies,"11,638.10",Nurseries,,
06/04/2021,ELECTIONS & BY-ELEC,Runnymede Borough Council,Venue Costs (including Hire of Rooms),"169,885.50",Local Government,,
06/04/2021,Free Early Educ 3&4,Ruxley Lane Pre-School,Third Party Payments-Other Agencies,"17,867.09",Nursery,,
06/04/2021,Free Early Educ 3&4,Rydes Hill Preparatory & Nursery Sc,Third Party Payments-Other Agencies,"22,691.68",Nurseries,,
06/04/2021,Free Early Educ 3&4,Sapphires Nursery School,Third Party Payments-Other Agencies,"13,695.55",Nursery,,
06/04/2021,Free Early Educ 3&4,Sapphires Nursery School,Third Party Payments-Other Agencies,"18,722.35",Nursery,,
06/04/2021,Free Early Educ 3&4,Scallywags Nurseries Ltd,Third Party Payments-Other Agencies,"18,214.72",Fostering Placement,,
06/04/2021,Free Early Educ 3&4,Scallywags Nurseries Ltd,Third Party Payments-Other Agencies,"11,541.82",Educ Finance Serv,,
06/04/2021,Free Early Educ 3&4,SCC Chilworth COE (A) Infant School,Third Party Payments-Other Agencies,"9,524.02",Schools,,
06/04/2021,Free Early Educ 3&4,SCC Epsom Downs Primary School &,Third Party Payments-Other Agencies,"23,423.47",Schools,,
06/04/2021,Free Early Educ 3&4,SCC Epsom Primary School,Third Party Payments-Other Agencies,"2,200.46",Schools,,
06/04/2021,Free Early Educ 3&4,SCC Riverview COE Primary School &,Third Party Payments-Other Agencies,"13,476.78",Grants-Member Allocs,,
06/04/2021,Free Early Educ 3&4,Seale Village Pre School,Third Party Payments-Other Agencies,"4,089.41",Nursery,,
06/04/2021,Free Early Educ 3&4,Seale Village Pre School,Third Party Payments-Other Agencies,"11,734.39",Nursery,,
06/04/2021,Free Early Educ 2 yr,Seale Village Pre School,Third Party Payments-Other Agencies,654.41,Nursery,,
06/04/2021,NULL,Seeability - Royal School For The B,NULL,349.80,Residential - MH,,
06/04/2021,Free Early Educ 3&4,Seedlings Pre School,Third Party Payments-Other Agencies,"16,671.98",Nursery,,
06/04/2021,Free Early Educ 3&4,Shapes Day Nursery,Third Party Payments-Other Agencies,"3,483.25",Nursery,,
06/04/2021,Free Early Educ 3&4,Shapes Day Nursery -Epsom,Third Party Payments-Other Agencies,"39,187.46",Nursery,,
06/04/2021,Free Early Educ 3&4,Shapes Day Nursery Ltd,Third Party Payments-Other Agencies,"39,174.20",Nursery,,
06/04/2021,Free Early Educ 3&4,Shepperton Organic Nursery,Third Party Payments-Other Agencies,"2,269.90",Nursery,,
06/04/2021,Free Early Educ 3&4,Shepperton Pre School Ltd,Third Party Payments-Other Agencies,"23,712.34",Schools,,
06/04/2021,Free Early Educ 3&4,Shining Pandas Nursery,Third Party Payments-Other Agencies,"10,823.90",Nurseries,,
06/04/2021,Free Early Educ 3&4,Shining S*T*A*R*S,Third Party Payments-Other Agencies,"37,552.32",Grants - Community,,
06/04/2021,Free Early Educ 3&4,Shrewsbury House Pre Preparatory Sc,Third Party Payments-Other Agencies,"12,082.73",Nursery,,
06/04/2021,Free Early Educ 3&4,Skylake Nurserys Ltd,Third Party Payments-Other Agencies,"10,566.19",Nurseries,,
06/04/2021,Free Early Educ 3&4,South Nutfield Nursery Pre School,Third Party Payments-Other Agencies,"10,056.58",Nurseries,,
06/04/2021,Free Early Educ 3&4,Sparrows Pre School,Third Party Payments-Other Agencies,"13,508.64",Grants-Member Allocs,,
06/04/2021,ELECTIONS & BY-ELEC,Spelthorne Borough Council,Venue Costs (including Hire of Rooms),"86,681.25",Grants-Member Allocs,,
06/04/2021,Free Early Educ 3&4,Springtime Nursery School,Third Party Payments-Other Agencies,"13,032.86",Nurseries,,
06/04/2021,Free Early Educ 3&4,St Andrews (Woking) School Trust,Third Party Payments-Other Agencies,"19,590.41",Schools,,
06/04/2021,Free Early Educ 3&4,St Catherine's School Bramley,Third Party Payments-Other Agencies,"6,499.44",Schools,,
06/04/2021,Free Early Educ 3&4,St Christophers School,Third Party Payments-Other Agencies,"33,123.83",Grants-Member Allocs,,
06/04/2021,Free Early Educ 3&4,St Clements Pre School,Third Party Payments-Other Agencies,"4,197.02",Nursery,,
06/04/2021,Free Early Educ 3&4,St Edmund's School,Third Party Payments-Other Agencies,"11,710.32",Schools,,
06/04/2021,Free Early Educ 3&4,St George's College,Third Party Payments-Other Agencies,"39,642.28",Schools,,
06/04/2021,Free Early Educ 3&4,St Giles Playgroup & Nursery School,Third Party Payments-Other Agencies,"15,352.27",Grants-Member Allocs,,
06/04/2021,Free Early Educ 2 yr,St Hilary's School Trust Ltd,Third Party Payments-Other Agencies,590.04,Schools,,
06/04/2021,Free Early Educ 3&4,St Hilary's School Trust Ltd,Third Party Payments-Other Agencies,"29,905.92",Schools,,
06/04/2021,Free Early Educ 3&4,St Ives School,Third Party Payments-Other Agencies,"8,736.72",Schools,,
06/04/2021,Free Early Educ 3&4,St John's Beaumont School,Third Party Payments-Other Agencies,"7,646.40",Schools,,
06/04/2021,Free Early Educ 3&4,St Johns Nursery Group,Third Party Payments-Other Agencies,"16,014.96",Nurseries,,
06/04/2021,Free Early Educ 3&4,St Johns Nursery Group,Third Party Payments-Other Agencies,"5,559.22",Nurseries,,
06/04/2021,Free Early Educ 3&4,St John's Pre School,Third Party Payments-Other Agencies,"6,941.23",Schools,,
06/04/2021,Free Early Educ 3&4,St Joseph Pre School Playgroup,Third Party Payments-Other Agencies,"16,121.16",Nurseries,,
06/04/2021,Free Early Educ 3&4,St Joseph's Independent Nursery,Third Party Payments-Other Agencies,"40,820.45",Nurseries,,
06/04/2021,Free Early Educ 3&4,St Marks Pre School Nursery,Third Party Payments-Other Agencies,"14,744.81",Nursery,,
06/04/2021,Free Early Educ 3&4,St Martins Pre School Playgroup,Third Party Payments-Other Agencies,"21,520.37",Nursery,,
06/04/2021,Free Early Educ 3&4,St Marys Nursery,Third Party Payments-Other Agencies,"7,646.40",Nursery,,
06/04/2021,Free Early Educ 2 yr,St Marys Nursery,Third Party Payments-Other Agencies,"3,862.08",Nursery,,
06/04/2021,Free Early Educ 3&4,St Marys Nursery,Third Party Payments-Other Agencies,"17,841.60",Nursery,,
06/04/2021,Free Early Educ 3&4,St Marys Pre School,Third Party Payments-Other Agencies,"23,865.26",Nursery,,
06/04/2021,Free Early Educ 3&4,St Matthews Playgroup,Third Party Payments-Other Agencies,"18,242.33",Nurseries,,
06/04/2021,Free Early Educ 3&4,St Michaels Community Nursery,Third Party Payments-Other Agencies,"15,921.50",Nurseries,,
06/04/2021,Free Early Educ 3&4,St Paul's Church Nursery School,Third Party Payments-Other Agencies,"12,574.08",Nurseries,,
06/04/2021,Free Early Educ 3&4,St Paul's Nursery,Third Party Payments-Other Agencies,"8,963.28",Nurseries,,
06/04/2021,Free Early Educ 3&4,St Paul's Trading,Third Party Payments-Other Agencies,"43,315.44",Grants - Community,,
06/04/2021,Free Early Educ 3&4,St Peters Nursery School,Third Party Payments-Other Agencies,"8,071.20",Nurseries,,
06/04/2021,Free Early Educ 3&4,St Saviours Pre School Nursery,Third Party Payments-Other Agencies,"7,654.90",Schools,,
06/04/2021,Free Early Educ 3&4,St Thomas More Pre-school,Third Party Payments-Other Agencies,"18,436.32",Nursery,,
06/04/2021,Free Early Educ 3&4,Stagecoach Montessori School,Third Party Payments-Other Agencies,"8,384.84",Educ Finance Serv,,
06/04/2021,Free Early Educ 3&4,Staines Preparatory School,Third Party Payments-Other Agencies,"23,131.78",Schools,,
06/04/2021,Free Early Educ 3&4,Stamford Green Nursery,Third Party Payments-Other Agencies,"34,230.38",Playgroup,,
06/04/2021,Free Early Educ 3&4,Starfish Childrens Day Nursery,Third Party Payments-Other Agencies,"13,449.17",Nursery,,
06/04/2021,Free Early Educ 3&4,Stay & Play Pre School,Third Party Payments-Other Agencies,"12,253.36",Nurseries,,
06/04/2021,Free Early Educ 3&4,Stepping Stone Nursery,Third Party Payments-Other Agencies,"31,715.57",Nurseries,,
06/04/2021,Free Early Educ 2 yr,Stepping Stones Nursery,Third Party Payments-Other Agencies,836.78,Nursery,,
06/04/2021,Free Early Educ 3&4,Stepping Stones Nursery,Third Party Payments-Other Agencies,"12,591.07",Nursery,,
06/04/2021,Free Early Educ 3&4,Stepping Stones Nursery,Third Party Payments-Other Agencies,"3,160.51",Nursery,,
06/04/2021,Free Early Educ 3&4,Stepping Stones Nursery School,Third Party Payments-Other Agencies,"40,423.97",Nursery,,
06/04/2021,Free Early Educ 3&4,Sticky Fingers Nursery,Third Party Payments-Other Agencies,"10,016.08",Nursery,,
06/04/2021,Free Early Educ 3&4,Stoughton Pre-School Ltd,Third Party Payments-Other Agencies,"24,427.42",Nursery,,
06/04/2021,Free Early Educ 3&4,Summerfield House Day Nursery,Third Party Payments-Other Agencies,"16,705.97",Nurseries,,
06/04/2021,Free Early Educ 3&4,Summerfield House Day Nursery,Third Party Payments-Other Agencies,"3,976.13",Nurseries,,
06/04/2021,Free Early Educ 3&4,Sunny Days Pre-School Ltd,Third Party Payments-Other Agencies,"15,380.59",Nurseries,,
06/04/2021,Free Early Educ 3&4,Sunshine Nursery,Third Party Payments-Other Agencies,"34,963.05",Nurseries,,
06/04/2021,Free Early Educ 3&4,Sunshine Nursery (Guildford) Ltd,Third Party Payments-Other Agencies,"7,579.90",Nurseries,,
06/04/2021,Free Early Educ 3&4,Surrey & Borders Partnership NHS Tr,Third Party Payments-Other Agencies,"14,579.14",Residential - MH,,
06/04/2021,Free Early Educ 3&4,Surrey & Sussex Healthcare NHS Trus,Third Party Payments-Other Agencies,"13,670.26",Healthcare (Part Org,,
06/04/2021,ELECTIONS & BY-ELEC,Surrey Heath Borough Council,Venue Costs (including Hire of Rooms),"63,750.00",Grants-Member Allocs,,
06/04/2021,Free Early Educ 3&4,Surrey Hills Forest School Ltd,Third Party Payments-Other Agencies,385.15,Nursery,,
06/04/2021,NULL,Surrey Pension Fund,NULL,"1,030.41",Pensions,,
06/04/2021,NULL,Surrey Pension Fund,NULL,429.56,Pensions,,
06/04/2021,Free Early Educ 3&4,Redacted Personal Data,Third Party Payments-Other Agencies,"1,053.50",Individual - NEC,,
06/04/2021,Free Early Educ 3&4,Redacted Personal Data,Third Party Payments-Other Agencies,526.75,Individual - NEC,,
06/04/2021,Free Early Educ 3&4,Sweetpeas Montessori,Third Party Payments-Other Agencies,"7,838.98",Educ Finance Serv,,
06/04/2021,Free Early Educ 3&4,Tadworth Village Pre School Playgro,Third Party Payments-Other Agencies,"8,054.21",Nurseries,,
06/04/2021,Free Early Educ 3&4,Tall Trees Nursery,Third Party Payments-Other Agencies,"8,847.62",Nursery,,
06/04/2021,Free Early Educ 3&4,Tandridge Village Pre School,Third Party Payments-Other Agencies,"9,530.39",Schools,,
06/04/2021,Free Early Educ 3&4,Teddies at Marlborough House Nurser,Third Party Payments-Other Agencies,"14,240.00",Nursery,,
06/04/2021,Free Early Educ 3&4,Teddies On A Rainbow Ltd,Third Party Payments-Other Agencies,"18,997.06",Nurseries,,
06/04/2021,Free Early Educ 3&4,Tenderlinks Day Nursery,Third Party Payments-Other Agencies,"9,315.47",Nursery,,
06/04/2021,Free Early Educ 3&4,Thamesview Pre School,Third Party Payments-Other Agencies,"11,118.43",Nurseries,,
06/04/2021,NULL,The Avenues Trust,NULL,348.60,Residential - MH,,
06/04/2021,NULL,The Avenues Trust,NULL,349.80,Residential - MH,,
06/04/2021,NULL,The Avenues Trust,NULL,348.60,Residential - MH,,
06/04/2021,Free Early Educ 3&4,The Beeches Montessori Nursery Scho,Third Party Payments-Other Agencies,"8,691.41",Nurseries,,
06/04/2021,Free Early Educ 3&4,The Burrow,Third Party Payments-Other Agencies,"20,785.46",Nursery,,
06/04/2021,Free Early Educ 3&4,The Butterfly Patch,Third Party Payments-Other Agencies,"11,848.01",Nursery,,
06/04/2021,Free Early Educ 3&4,The Butterfly Patch,Third Party Payments-Other Agencies,"11,011.95",Nursery,,
06/04/2021,Free Early Educ 3&4,The Danesfield Manor School,Third Party Payments-Other Agencies,"20,359.25",Schools,,
06/04/2021,Free Early Educ 3&4,The Dawnay Playgroup,Third Party Payments-Other Agencies,"9,427.73",Nurseries,,
06/04/2021,Free Early Educ 3&4,The Egham Nursery & Preschool,Third Party Payments-Other Agencies,"34,762.85",Nursery,,
06/04/2021,Free Early Educ 3&4,The Fun Factory,Third Party Payments-Other Agencies,"16,906.36",Nursery,,
06/04/2021,Free Early Educ 3&4,The Fun Factory,Third Party Payments-Other Agencies,"21,652.68",Nursery,,
06/04/2021,Free Early Educ 3&4,The Hawthorns School,Third Party Payments-Other Agencies,"28,453.10",Schools,,
06/04/2021,Free Early Educ 3&4,The High Scope Nursery,Third Party Payments-Other Agencies,"5,575.50",Nurseries,,
06/04/2021,Free Early Educ 3&4,The Howard Nursery,Third Party Payments-Other Agencies,"8,113.68",Nursery,,
06/04/2021,Free Early Educ 3&4,The Kindergarten At St Josephs Ltd,Third Party Payments-Other Agencies,"16,099.92",Nursery,,
06/04/2021,Free Early Educ 3&4,The Little House Montessori Nursery,Third Party Payments-Other Agencies,"8,750.88",Nursery,,
06/04/2021,Free Early Educ 3&4,The Little School on the Green,Third Party Payments-Other Agencies,"20,755.73",Schools,,
06/04/2021,Free Early Educ 3&4,The Meadows Nursery School,Third Party Payments-Other Agencies,"6,321.02",Nurseries,,
06/04/2021,Free Early Educ 3&4,The Meadows Nursery School,Third Party Payments-Other Agencies,"14,749.06",Nurseries,,
06/04/2021,Free Early Educ 3&4,The Nest Day Nursery,Third Party Payments-Other Agencies,"5,216.54",Nursery,,
06/04/2021,Free Early Educ 3&4,The Nursery School,Third Party Payments-Other Agencies,"16,254.26",Nurseries,,
06/04/2021,Free Early Educ 3&4,The Old Barn Day Nursery,Third Party Payments-Other Agencies,"20,468.23",Nursery,,
06/04/2021,Free Early Educ 3&4,The Orchard Community Pre-School,Third Party Payments-Other Agencies,"15,655.30",Schools,,
06/04/2021,Free Early Educ 3&4,The Orchard Preschool,Third Party Payments-Other Agencies,"12,780.82",Schools,,
06/04/2021,Free Early Educ 3&4,The Railway Children Kindergarten,Third Party Payments-Other Agencies,"7,179.12",Grants - Community,,
06/04/2021,Free Early Educ 3&4,The Rainbow St Stephens Nursery Sch,Third Party Payments-Other Agencies,"12,642.05",Nursery,,
06/04/2021,Free Early Educ 3&4,The Roseacre Playgroup,Third Party Payments-Other Agencies,"7,952.26",School Support Serv,,
06/04/2021,Free Early Educ 3&4,The Royal Junior School,Third Party Payments-Other Agencies,"17,875.58",Schools,,
06/04/2021,Free Early Educ 3&4,The Stables Nursery,Third Party Payments-Other Agencies,"21,905.52",Nursery,,
06/04/2021,Free Early Educ 3&4,The Village Nursery,Third Party Payments-Other Agencies,"15,870.53",Nurseries,,
06/04/2021,Free Early Educ 3&4,Thorpe Nursery Pre School,Third Party Payments-Other Agencies,"13,901.86",Nurseries,,
06/04/2021,Free Early Educ 3&4,Tiddlers Pre school,Third Party Payments-Other Agencies,"17,119.44",Nursery,,
06/04/2021,Free Early Educ 3&4,Tiddly Winks Nursery,Third Party Payments-Other Agencies,"38,925.53",Nurseries,,
06/04/2021,Free Early Educ 3&4,Tilford Meadow Nursery School,Third Party Payments-Other Agencies,"24,411.84",Nurseries,,
06/04/2021,Free Early Educ 3&4,Redacted Personal Data,Third Party Payments-Other Agencies,526.75,Nursery,,
06/04/2021,Free Early Educ 3&4,Redacted Personal Data,Third Party Payments-Other Agencies,526.75,Nursery,,
06/04/2021,Free Early Educ 3&4,Tiny Acorns Pre School,Third Party Payments-Other Agencies,"11,044.80",Playgroup,,
06/04/2021,Free Early Educ 3&4,Toad Hall Nursery,Third Party Payments-Other Agencies,"31,091.11",Nurseries,,
06/04/2021,Free Early Educ 3&4,Toad Hall Nursery,Third Party Payments-Other Agencies,"24,178.20",Nurseries,,
06/04/2021,Free Early Educ 3&4,Toad Hall Nursery - Goldsworth Park,Third Party Payments-Other Agencies,"36,108.00",Nurseries,,
06/04/2021,Free Early Educ 3&4,Toad Hall Nursery Haslemere,Third Party Payments-Other Agencies,"19,845.24",Nurseries,,
06/04/2021,Free Early Educ 3&4,Toad Hall Nursery ottershaw,Third Party Payments-Other Agencies,"9,827.04",Nurseries,,
06/04/2021,Free Early Educ 3&4,Tongham Daycare Ltd,Third Party Payments-Other Agencies,"33,447.99",Schools,,
06/04/2021,Free Early Educ 3&4,Tongham Daycare Ltd,Third Party Payments-Other Agencies,"22,296.90",Schools,,
06/04/2021,Free Early Educ 3&4,Tootsies Private Day Nursery Ltd,Third Party Payments-Other Agencies,"42,480.00",Nurseries,,
06/04/2021,Free Early Educ 3&4,Tootsies Private Day Nursery Ltd,Third Party Payments-Other Agencies,"28,886.40",Nurseries,,
06/04/2021,Free Early Educ 2 yr,Tootsies Private Day Nursery Ltd,Third Party Payments-Other Agencies,"3,862.08",Nurseries,,
06/04/2021,Free Early Educ 3&4,Tot's Village Nursery,Third Party Payments-Other Agencies,"11,044.80",Nurseries,,
06/04/2021,Free Early Educ 3&4,Totterdown Preschool - Harpers,Third Party Payments-Other Agencies,"13,321.73",Educ Finance Serv,,
06/04/2021,Free Early Educ 3&4,Towntree Pre School - Echelford Roa,Third Party Payments-Other Agencies,"18,223.92",Schools,,
06/04/2021,Free Early Educ 3&4,Towntree Pre School - Echelford Roa,Third Party Payments-Other Agencies,"20,874.67",Schools,,
06/04/2021,Free Early Educ 3&4,Treetops Day Nursery,Third Party Payments-Other Agencies,"29,097.92",Day Services,,
06/04/2021,Free Early Educ 3&4,Tringham Pre School,Third Party Payments-Other Agencies,"17,600.88",Schools,,
06/04/2021,Free Early Educ 2 yr,Unique Beginnings Childcare Ltd,Third Party Payments-Other Agencies,665.14,Nursery,,
06/04/2021,Free Early Educ 3&4,Unique Beginnings Childcare Ltd,Third Party Payments-Other Agencies,"6,672.19",Nursery,,
06/04/2021,Free Early Educ 3&4,Unique Beginnings Childcare Ltd,Third Party Payments-Other Agencies,"1,685.61",Nursery,,
06/04/2021,Free Early Educ 3&4,Virginia Water Community Pre School,Third Party Payments-Other Agencies,"17,450.78",Nurseries,,
06/04/2021,Free Early Educ 3&4,Warlingham Park School,Third Party Payments-Other Agencies,"16,263.47",Schools,,
06/04/2021,ELECTIONS & BY-ELEC,Waverley Borough Council,Venue Costs (including Hire of Rooms),"83,585.25",Grants-Member Allocs,,
06/04/2021,Free Early Educ 3&4,Wee Ones Day Nursery & Pre school L,Third Party Payments-Other Agencies,"12,357.83",Nursery,,
06/04/2021,Free Early Educ 3&4,Wendover Montessori Nursery,Third Party Payments-Other Agencies,"14,137.34",Nursery,,
06/04/2021,Free Early Educ 3&4,West Byfleet Nursery Ltd,Third Party Payments-Other Agencies,"52,593.07",Nursery,,
06/04/2021,Free Early Educ 3&4,West End Playgroup,Third Party Payments-Other Agencies,"11,650.79",Nurseries,,
06/04/2021,Free Early Educ 3&4,Westborough Pre-School,Third Party Payments-Other Agencies,"5,522.40",Nurseries,,
06/04/2021,Free Early Educ 3&4,Westchester House Nursery School,Third Party Payments-Other Agencies,"43,796.71",CIN Pathfinder,,
06/04/2021,NULL,Westhill House Client A/C,NULL,372.36,Individual - NEC,,
06/04/2021,NULL,Westhill House Client A/C,NULL,371.60,Individual - NEC,,
06/04/2021,Free Early Educ 3&4,Weston Green School,Third Party Payments-Other Agencies,"17,106.98",Schools,,
06/04/2021,Free Early Educ 2 yr,Westvale Park Primary Academy,Third Party Payments-Other Agencies,"1,330.27",Nursery,,
06/04/2021,Free Early Educ 3&4,Westward School,Third Party Payments-Other Agencies,"9,862.13",Schools,,
06/04/2021,Free Early Educ 3&4,Weydown Nursery School,Third Party Payments-Other Agencies,"11,809.44",Nurseries,,
06/04/2021,Free Early Educ 3&4,Weyhill Montessori School Ltd,Third Party Payments-Other Agencies,"17,013.24",Nursery,,
06/04/2021,Free Early Educ 3&4,White Lodge Nursery,Third Party Payments-Other Agencies,"7,435.42",Nursery,,
06/04/2021,Free Early Educ 3&4,Whizz Kids Pre School,Third Party Payments-Other Agencies,"20,996.45",Nurseries,,
06/04/2021,Free Early Educ 3&4,Wilderness Pre School,Third Party Payments-Other Agencies,"6,847.78",Schools,,
06/04/2021,Free Early Educ 3&4,Wise Owls,Third Party Payments-Other Agencies,"20,727.41",Grants - Community,,
06/04/2021,ELECTIONS & BY-ELEC,Woking Borough Council,Venue Costs (including Hire of Rooms),"67,500.00",Grants-Member Allocs,,
06/04/2021,Free Early Educ 3&4,Woldingham Nursery Class,Third Party Payments-Other Agencies,"18,665.71",Nurseries,,
06/04/2021,Free Early Educ 3&4,Wonersh Pre-School,Third Party Payments-Other Agencies,"9,039.74",Schools,,
06/04/2021,Free Early Educ 3&4,Woodland Nursery School,Third Party Payments-Other Agencies,"17,362.99",Nurseries,,
06/04/2021,Free Early Educ 3&4,Woodlands Day Care Ltd,Third Party Payments-Other Agencies,"11,597.04",Soc Care One-to-one,,
06/04/2021,Free Early Educ 3&4,Worplesdon Pre School,Third Party Payments-Other Agencies,"24,510.25",Nursery,,
06/04/2021,Free Early Educ 3&4,YMCA East Surrey,Third Party Payments-Other Agencies,"8,742.38",Grants-Member Allocs,,
06/04/2021,Free Early Educ 3&4,YMCA Sovereign Pre School,Third Party Payments-Other Agencies,"15,643.97",Nurseries,,
06/04/2021,Free Early Educ 3&4,Young Explorers @Cobham,Third Party Payments-Other Agencies,"15,980.98",Nursery,,
06/04/2021,Free Early Educ 3&4,Young Explorers Pre School,Third Party Payments-Other Agencies,"20,239.12",Nursery,,
06/04/2021,Free Early Educ 3&4,Young World Pre School,Third Party Payments-Other Agencies,"8,563.97",Nursery,,
07/04/2021,Free Early Educ 2 yr,Abinger Common Nursery,Third Party Payments-Other Agencies,"1,037.04",Nursery,,
07/04/2021,Free Early Educ 3&4,Addlestone Pre School,Third Party Payments-Other Agencies,665.52,Schools,,
07/04/2021,Free Early Educ 3&4,Addlestone Pre School,Third Party Payments-Other Agencies,"3,794.88",Schools,,
07/04/2021,NULL,Adecco UK Ltd,NULL,"655,401.15",Recruit & Assessment,,
07/04/2021,NULL,Adecco UK Ltd,NULL,"613,266.29",Recruit & Assessment,,
07/04/2021,NULL,Adecco UK Ltd,NULL,"727,147.58",Recruit & Assessment,,
07/04/2021,NULL,Adecco UK Ltd,NULL,"492,126.09",Recruit & Assessment,,
07/04/2021,NULL,Adecco UK Ltd,NULL,"632,855.72",Recruit & Assessment,,
07/04/2021,NULL,Adecco UK Ltd,NULL,"1,059.23",Recruit & Assessment,,
07/04/2021,NULL,Adecco UK Ltd,NULL,"2,089.59",Recruit & Assessment,,
07/04/2021,NULL,Adecco UK Ltd,NULL,"622,875.77",Recruit & Assessment,,
07/04/2021,NULL,Adecco UK Ltd,NULL,"599,024.01",Recruit & Assessment,,
07/04/2021,NULL,Adecco UK Ltd,NULL,"552,353.64",Recruit & Assessment,,
07/04/2021,LOGISTICS,Allstar Business Solutions Ltd,Vehicle Running Costs,"3,727.60",Veh Repair & Maint,,
07/04/2021,LOGISTICS,Allstar Business Solutions Ltd,Vehicle Running Costs,344.40,Veh Repair & Maint,,
07/04/2021,CORONER,Analytical Services International L,Inquest Exps.,702.00,Coroners,,
07/04/2021,CORONER,Analytical Services International L,Inquest Exps.,702.00,Coroners,,
07/04/2021,CORONER,Analytical Services International L,Inquest Exps.,702.00,Coroners,,
07/04/2021,CORONER,Analytical Services International L,Inquest Exps.,702.00,Coroners,,
07/04/2021,CORONER,Analytical Services International L,Inquest Exps.,702.00,Coroners,,
07/04/2021,CORONER,Analytical Services International L,Inquest Exps.,702.00,Coroners,,
07/04/2021,CORONER,Analytical Services International L,Inquest Exps.,702.00,Coroners,,
07/04/2021,CORONER,Analytical Services International L,Inquest Exps.,702.00,Coroners,,
07/04/2021,CORONER,Analytical Services International L,Inquest Exps.,702.00,Coroners,,
07/04/2021,CORONER,Analytical Services International L,Inquest Exps.,702.00,Coroners,,
07/04/2021,CORONER,Analytical Services International L,Inquest Exps.,702.00,Coroners,,
07/04/2021,CORONER,Analytical Services International L,Inquest Exps.,702.00,Coroners,,
07/04/2021,CORONER,Analytical Services International L,Inquest Exps.,702.00,Coroners,,
07/04/2021,CORONER,Analytical Services International L,Inquest Exps.,702.00,Coroners,,
07/04/2021,CORONER,Analytical Services International L,Inquest Exps.,702.00,Coroners,,
07/04/2021,CORONER,Analytical Services International L,Inquest Exps.,702.00,Coroners,,
07/04/2021,CORONER,Analytical Services International L,Inquest Exps.,702.00,Coroners,,
07/04/2021,CORONER,Analytical Services International L,Inquest Exps.,702.00,Coroners,,
07/04/2021,CORONER,Analytical Services International L,Inquest Exps.,702.00,Coroners,,
07/04/2021,CORONER,Analytical Services International L,Inquest Exps.,702.00,Coroners,,
07/04/2021,CORONER,Analytical Services International L,Inquest Exps.,702.00,Coroners,,
07/04/2021,CORONER,Analytical Services International L,Inquest Exps.,702.00,Coroners,,
07/04/2021,CORONER,Analytical Services International L,Inquest Exps.,702.00,Coroners,,
07/04/2021,CORONER,Analytical Services International L,Inquest Exps.,702.00,Coroners,,
07/04/2021,CORONER,Analytical Services International L,Inquest Exps.,702.00,Coroners,,
07/04/2021,CORONER,Analytical Services International L,Inquest Exps.,702.00,Coroners,,
07/04/2021,CORONER,Analytical Services International L,Inquest Exps.,702.00,Coroners,,
07/04/2021,CORONER,Analytical Services International L,Inquest Exps.,702.00,Coroners,,
07/04/2021,CORONER,Analytical Services International L,Inquest Exps.,702.00,Coroners,,
07/04/2021,CORONER,Analytical Services International L,Inquest Exps.,702.00,Coroners,,
07/04/2021,PASSGR TRANS TCC,Arriva Southern Counties Ltd,Education Season Tickets,"17,078.44",Local Bus,,
07/04/2021,Free Early Educ 2 yr,Ashford & St Peters NHS Trust,Third Party Payments-Other Agencies,447.00,Healthcare (Part Org,,
07/04/2021,Free Early Educ 3&4,Ashford & St Peters NHS Trust,Third Party Payments-Other Agencies,682.52,Healthcare (Part Org,,
07/04/2021,Free Early Educ 3&4,Ashford & St Peters NHS Trust,Third Party Payments-Other Agencies,"1,084.28",Healthcare (Part Org,,
07/04/2021,PRI GROWING SCHS,Ashley COE (A) Primary School,Agency Placement Expenditure,"8,535.53",Schools,,
07/04/2021,NULL,Ashlong House Ltd,NULL,349.80,Residential - MH,,
07/04/2021,NULL,Ashlong House Ltd,NULL,349.80,Residential - MH,,
07/04/2021,Free Early Educ 3&4,Asquith Catherham Pre School,Third Party Payments-Other Agencies,465.72,Nurseries,,
07/04/2021,Free Early Educ 2 yr,Asquith Catherham Pre School,Third Party Payments-Other Agencies,843.28,Nurseries,,
07/04/2021,PRI GROWING SCHS,Aurora Academies Trust,Agency Placement Expenditure,"1,916.56",Schools,,
07/04/2021,NURSERY CLASS CTGCY,Aurora Academies Trust,Agency Placement Expenditure,"6,744.58",Schools,,
07/04/2021,Free Early Educ 3&4,Bagshot Nursery School,Third Party Payments-Other Agencies,283.20,Nurseries,,
07/04/2021,NURSERY CLASS CTGCY,Barnsbury Primary School Academy,Agency Placement Expenditure,"5,758.71",Schools,,
07/04/2021,NULL,Redacted Personal Data ,NULL,348.60,Individual - NEC,,
07/04/2021,NULL,Redacted Personal Data ,NULL,349.80,Individual - NEC,,
07/04/2021,NULL,Redacted Personal Data ,NULL,349.80,Individual - NEC,,
07/04/2021,Free Early Educ 3&4,Bear Hugs,Third Party Payments-Other Agencies,480.51,Nursery,,
07/04/2021,NURSERY CLASS CTGCY,Beaufort Primary School,Agency Placement Expenditure,"12,923.49",Grants-Member Allocs,,
07/04/2021,Free Early Educ 3&4,Belmont Prep School,Third Party Payments-Other Agencies,"3,209.60",Schools,,
07/04/2021,Free Early Educ 3&4,BizzKidz Ashford,Third Party Payments-Other Agencies,807.12,Nurseries,,
07/04/2021,Free Early Educ 2 yr,Blackdown Pre-School,Third Party Payments-Other Agencies,709.24,Schools,,
07/04/2021,Free Early Educ 3&4,Blackdown Pre-School,Third Party Payments-Other Agencies,309.10,Schools,,
07/04/2021,Free Early Educ 3&4,Blackdown Pre-School,Third Party Payments-Other Agencies,"1,416.00",Schools,,
07/04/2021,Free Early Educ 3&4,Blackdown Pre-School,Third Party Payments-Other Agencies,"2,090.96",Schools,,
07/04/2021,SECONDARY SCHOOLS,Blenheim High School,Agency Placement Expenditure,500.00,Schools,,
07/04/2021,NURSERY CLASS CTGCY,Bletchingley Village Primary School,Agency Placement Expenditure,"7,993.15",Schools,,
07/04/2021,SPECIAL SCHOOLS,Bramley Oak Academy,Agency Placement Expenditure,"2,890.36",Schools,,
07/04/2021,Free Early Educ 3&4,Bright Horizon Guildford Boxgrove D,Third Party Payments-Other Agencies,664.57,Nurseries,,
07/04/2021,Free Early Educ 2 yr,Bright Horizons Day Nursery,Third Party Payments-Other Agencies,827.43,Nursery,,
07/04/2021,Free Early Educ 3&4,Bright Horizons Day Nursery,Third Party Payments-Other Agencies,"4,696.21",Nursery,,
07/04/2021,Free Early Educ 3&4,Bright Horizons Dorking Day Nursery,Third Party Payments-Other Agencies,434.24,Nursery,,
07/04/2021,Free Early Educ 3&4,Bright Horizons Godalming Day Nurse,Third Party Payments-Other Agencies,439.34,Nursery,,
07/04/2021,Free Early Educ 3&4,Bright Horizons Godalming Day Nurse,Third Party Payments-Other Agencies,439.34,Nursery,,
07/04/2021,Free Early Educ 3&4,Bright Horizons Leatherhead Day Nur,Third Party Payments-Other Agencies,400.92,Educ Finance Serv,,
07/04/2021,Free Early Educ 3&4,Bright Horizons Leatherhead Day Nur,Third Party Payments-Other Agencies,322.61,Educ Finance Serv,,
07/04/2021,Free Early Educ 3&4,Bright Horizons Old Woking Day Nurs,Third Party Payments-Other Agencies,"3,184.91",Nurseries,,
07/04/2021,Free Early Educ 3&4,Bright Horizons Reigate Day Nursery,Third Party Payments-Other Agencies,802.40,Nursery,,
07/04/2021,Free Early Educ 3&4,Bright Horizons Reigate Day Nursery,Third Party Payments-Other Agencies,"8,550.14",Nursery,,
07/04/2021,Free Early Educ 3&4,Bright Horizons Teddies Woking Day,Third Party Payments-Other Agencies,304.40,Nursery,,
07/04/2021,Free Early Educ 3&4,Bright Stars Day Nursery Ltd,Third Party Payments-Other Agencies,283.20,Nurseries,,
07/04/2021,NURSERY CLASS CTGCY,Broadmere Primary Academy,Agency Placement Expenditure,"9,102.89",Schools,,
07/04/2021,COVID TCT,Broadway Pharmacy,Public Health Contract Payments,"1,800.00",Sexual Health,,
07/04/2021,Free Early Educ 2 yr,Building Blocks Pre School & Daycar,Third Party Payments-Other Agencies,"2,026.40",Day Services,,
07/04/2021,Free Early Educ 3&4,Building Blocks Pre School & Daycar,Third Party Payments-Other Agencies,"8,271.19",Day Services,,
07/04/2021,Free Early Educ 3&4,Building Blocks Pre School & Daycar,Third Party Payments-Other Agencies,661.79,Day Services,,
07/04/2021,NULL,Burstow Primary School,NULL,"1,848.00",Schools,,
07/04/2021,Free Early Educ 3&4,Burwood Pre School,Third Party Payments-Other Agencies,295.05,Nursery,,
07/04/2021,Free Early Educ 2 yr,Busy Bees at Guildford Hanover,Third Party Payments-Other Agencies,327.80,Nurseries,,
07/04/2021,Free Early Educ 3&4,Busy Bees at Guildford Hanover,Third Party Payments-Other Agencies,422.49,Nurseries,,
07/04/2021,Free Early Educ 3&4,Busy Bees at Reigate,Third Party Payments-Other Agencies,682.99,Grants - Community,,
07/04/2021,Free Early Educ 3&4,Busy Bees at Reigate,Third Party Payments-Other Agencies,654.67,Grants - Community,,
07/04/2021,Free Early Educ 3&4,Busy Bees At West Byfleet,Third Party Payments-Other Agencies,"1,202.14",Nursery,,
07/04/2021,Free Early Educ 3&4,Butterflies Pre School,Third Party Payments-Other Agencies,377.60,Nursery,,
07/04/2021,COVID TCT,Camberley Pharmacy,Public Health Contract Payments,"5,190.00",Smoking Cessation,,
07/04/2021,Free Early Educ 2 yr,Capel Pre School,Third Party Payments-Other Agencies,268.20,Schools,,
07/04/2021,PASSGR TRANS TCC,Cardinal Buses Ltd,Education Season Tickets,"2,020.64",Local Bus,,
07/04/2021,SPECIAL SCHOOLS,Carwarden House Community School,Agency Placement Expenditure,"7,293.40",Schools,,
07/04/2021,Free Early Educ 3&4,Caterpillars Nursery School,Third Party Payments-Other Agencies,"1,434.88",Nurseries,,
07/04/2021,Free Early Educ 3&4,Caterpillars Nursery School,Third Party Payments-Other Agencies,"1,274.40",Nurseries,,
07/04/2021,Free Early Educ 3&4,Redacted Personal Data ,Third Party Payments-Other Agencies,391.76,Nursery,,
07/04/2021,PASSGR TRANS TCC,CE Jeatt & Sons Ltd,Education Season Tickets,"4,762.56",Local Bus,,
07/04/2021,SPECIAL SCHOOLS,Chart Wood School,Agency Placement Expenditure,"5,733.06",Schools,,
07/04/2021,COVID TCT,Chemitex Ltd,Public Health Contract Payments,"1,010.00",Cat Equip Supply&Fit,,
07/04/2021,Free Early Educ 3&4,Chiddingfold Village Nursery School,Third Party Payments-Other Agencies,438.96,Nurseries,,
07/04/2021,Free Early Educ 3&4,Child's Play Pre-School,Third Party Payments-Other Agencies,304.44,Subscriptions,,
07/04/2021,Free Early Educ 3&4,Churt Community Pre School,Third Party Payments-Other Agencies,"1,962.34",Nursery,,
07/04/2021,COVID TCT,Claygate Pharmacy,Public Health Contract Payments,"2,740.00",Sexual Health,,
07/04/2021,SECONDARY SCHOOLS,Collingwood College,Agency Placement Expenditure,"1,500.00",Schools,,
07/04/2021,PASSGR TRANS TCC,Compass Travel,Education Season Tickets,"10,248.08",Local Bus,,
07/04/2021,COVID TCT,Cranleigh Pharmacy,Public Health Contract Payments,440.00,Sexual Health,,
07/04/2021,COVID TCT,Cranleigh Pharmacy,Public Health Contract Payments,960.00,Sexual Health,,
07/04/2021,Free Early Educ 3&4,Cranmore Preparatory School,Third Party Payments-Other Agencies,764.64,Schools,,
07/04/2021,PASSGR TRANS TCC,Cruisers Ltd,Education Season Tickets,"6,928.32",Multi-purpose Veh,,
07/04/2021,NURSERY CLASS CTGCY,Cuddington Community Primary School,Agency Placement Expenditure,"7,185.79",Schools,,
07/04/2021,NURSERY CLASS CTGCY,Cuddington Croft Primary School,Agency Placement Expenditure,"10,790.85",Schools,,
07/04/2021,Free Early Educ 2 yr,Daisy Chain Montessori School,Third Party Payments-Other Agencies,309.92,Schools,,
07/04/2021,Free Early Educ 3&4,Danes Hill Pre Prepatory School,Third Party Payments-Other Agencies,254.88,Schools,,
07/04/2021,NURSERY CLASS CTGCY,Danetree Junior School,Agency Placement Expenditure,"25,793.64",Schools,,
07/04/2021,NURSERY CLASS CTGCY,Darley Dene Primary School,Agency Placement Expenditure,"6,335.20",Schools,,
07/04/2021,Free Early Educ 3&4,Dawnys Day Care,Third Party Payments-Other Agencies,566.40,Nursery,,
07/04/2021,COVID TCT,Day Lewis Chemists Ltd,Public Health Contract Payments,"2,090.00",Sexual Health,,
07/04/2021,COVID TCT,Day Lewis Chemists Ltd,Public Health Contract Payments,"1,120.00",Sexual Health,,
07/04/2021,COVID TCT,Day Lewis Chemists Ltd,Public Health Contract Payments,300.00,Sexual Health,,
07/04/2021,COVID TCT,Day Lewis Chemists Ltd,Public Health Contract Payments,"1,280.00",Sexual Health,,
07/04/2021,SEC GROWING SCHS,De Stafford School,Agency Placement Expenditure,"4,015.62",Schools,,
07/04/2021,Free Early Educ 3&4,Ducklings Pre-School,Third Party Payments-Other Agencies,949.78,Schools,,
07/04/2021,Free Early Educ 3&4,Edgeborough School,Third Party Payments-Other Agencies,424.80,Schools,,
07/04/2021,COVID-19  TEST TRACE,Elmbridge Borough Council,Public Health Contract Payments,"39,545.45",Local Government,,
07/04/2021,COVID-19 TPP,Epsom & Ewell Borough Council,Grants-Public Bodies and Statutory Partnerships,"53,905.00",Grants-Member Allocs,,
07/04/2021,SECONDARY SCHOOLS,Epsom & Ewell High School,Agency Placement Expenditure,500.00,Staff Training,,
07/04/2021,SEC GROWING SCHS,Farnham Heath End School,Agency Placement Expenditure,"12,832.55",Schools,,
07/04/2021,Free Early Educ 3&4,Fennies @ Albert Road,Third Party Payments-Other Agencies,283.30,Nursery,,
07/04/2021,Free Early Educ 3&4,Fennies @ Woodham House Woking,Third Party Payments-Other Agencies,283.49,Nursery,,
07/04/2021,Free Early Educ 3&4,Fetcham Village Pre-School,Third Party Payments-Other Agencies,538.08,Schools,,
07/04/2021,PASSGR TRANS TCC,First Beeline Buses Ltd,Education Season Tickets,"4,185.28",Local Bus,,
07/04/2021,Free Early Educ 3&4,First Steps Nursery Ltd,Third Party Payments-Other Agencies,542.80,Nurseries,,
07/04/2021,Free Early Educ 3&4,Footprints Pre School,Third Party Payments-Other Agencies,283.20,Nurseries,,
07/04/2021,Free Early Educ 3&4,Footprints Pre School,Third Party Payments-Other Agencies,486.13,Nurseries,,
07/04/2021,Free Early Educ 3&4,Fox Cubs Forest Nursery,Third Party Payments-Other Agencies,254.88,Playgroup,,
07/04/2021,Free Early Educ 3&4,Frensham Heights School & Nursery,Third Party Payments-Other Agencies,297.36,Schools,,
07/04/2021,SECONDARY SCHOOLS,Fullbrook School,Agency Placement Expenditure,"1,000.00",Staff Training,,
07/04/2021,NULL,Fullers Commerce,NULL,348.60,Residential - MH,,
07/04/2021,NULL,Fullers Commerce,NULL,349.80,Residential - MH,,
07/04/2021,NULL,Fullers Commerce,NULL,349.80,Residential - MH,,
07/04/2021,NULL,Fullers Commerce,NULL,349.80,Residential - MH,,
07/04/2021,NULL,G D Contracting Ltd,NULL,865.00,Org & Bus Consult,,
07/04/2021,NULL,G D Contracting Ltd,NULL,865.00,Org & Bus Consult,,
07/04/2021,NULL,G D Contracting Ltd,NULL,865.00,Org & Bus Consult,,
07/04/2021,NULL,Geometric Results International,NULL,"51,804.41",Soc Care OM Cover,,
07/04/2021,NULL,Geometric Results International,NULL,"48,007.62",Soc Care OM Cover,,
07/04/2021,NULL,Geometric Results International,NULL,"47,819.04",Soc Care OM Cover,,
07/04/2021,NULL,Geometric Results International,NULL,"49,183.08",Soc Care OM Cover,,
07/04/2021,NULL,Geometric Results International,NULL,"50,083.22",Soc Care OM Cover,,
07/04/2021,NULL,Geometric Results International,NULL,"47,034.17",Soc Care OM Cover,,
07/04/2021,NULL,Geometric Results International,NULL,"48,503.17",Soc Care OM Cover,,
07/04/2021,NULL,Geometric Results International,NULL,"48,618.73",Soc Care OM Cover,,
07/04/2021,NULL,Geometric Results International,NULL,"49,268.49",Soc Care OM Cover,,
07/04/2021,NULL,Geometric Results International,NULL,"47,788.54",Soc Care OM Cover,,
07/04/2021,PASSGR TRANS TCC,Glenn Neville Massiah T/A Bear Buse,Education Season Tickets,"3,175.48",Local Bus,,
07/04/2021,SECONDARY SCHOOLS,Glyn School,Agency Placement Expenditure,"2,000.00",Info Advice Guidance,,
07/04/2021,LOGISTICS,Godiva Ltd,Vehicle Repairs and Maintenance,391.57,Fire Service Vehicle,,
07/04/2021,LOGISTICS,Godiva Ltd,Vehicle Repairs and Maintenance,391.57,Fire Service Vehicle,,
07/04/2021,SECONDARY SCHOOLS,Gordons School Academy Trust,Agency Placement Expenditure,"1,000.00",Schools,,
07/04/2021,Free Early Educ 3&4,Greenfield School,Third Party Payments-Other Agencies,"1,529.28",Schools,,
07/04/2021,Free Early Educ 3&4,Greenfield School,Third Party Payments-Other Agencies,382.32,Schools,,
07/04/2021,Free Early Educ 2 yr,Greenways Nursery School,Third Party Payments-Other Agencies,572.16,Nurseries,,
07/04/2021,Free Early Educ 3&4,Greenways Nursery School,Third Party Payments-Other Agencies,594.72,Nurseries,,
07/04/2021,Free Early Educ 3&4,Greenways Nursery School,Third Party Payments-Other Agencies,269.76,Nurseries,,
07/04/2021,COVID-19 TPP,Guildford Borough Council,Grants-Public Bodies and Statutory Partnerships,"96,118.00",Grants-Member Allocs,,
07/04/2021,COVID-19  TEST TRACE,Guildford Borough Council,Public Health Contract Payments,"39,545.45",Grants-Member Allocs,,
07/04/2021,SEC GROWING SCHS,Guildford County School,Agency Placement Expenditure,"8,295.36",Schools,,
07/04/2021,SECONDARY SCHOOLS,Guildford County School,Agency Placement Expenditure,"1,500.00",Schools,,
07/04/2021,NURSERY CLASS CTGCY,Guildford Grove Primary School,Agency Placement Expenditure,"8,243.75",Schools,,
07/04/2021,NURSERY CLASS CTGCY,Hale Primary School,Agency Placement Expenditure,"7,659.95",Schools,,
07/04/2021,NURSERY CLASS CTGCY,Hamsey Green Primary School,Agency Placement Expenditure,"6,598.79",Schools,,
07/04/2021,NURSERY CLASS CTGCY,Highfield South Farnham Primary Sch,Agency Placement Expenditure,"13,646.03",Schools,,
07/04/2021,NURSERY CLASS CTGCY,Hillcroft Primary School,Agency Placement Expenditure,"10,579.59",Schools,,
07/04/2021,SEC GROWING SCHS,Hinchley Wood School,Agency Placement Expenditure,"11,394.00",Grants-Member Allocs,,
07/04/2021,SEC GROWING SCHS,Hinchley Wood School,Agency Placement Expenditure,"1,627.71",Grants-Member Allocs,,
07/04/2021,NURSERY CLASS CTGCY,Holmesdale Community Infant School,Agency Placement Expenditure,"9,321.00",Schools,,
07/04/2021,COVID TCT,Horton Pharmacy,Public Health Contract Payments,"2,510.00",Sexual Health,,
07/04/2021,COVID TCT,Jays Pharmacy,Public Health Contract Payments,"1,140.00",Sexual Health,,
07/04/2021,COVID TCT,Jays Pharmacy Egham,Public Health Contract Payments,"1,590.00",Sexual Health,,
07/04/2021,COV-19 WINTER GRANT,Jigsaw CABAS School,Purchase of Food,780.00,SEN Specialist Supp,,
07/04/2021,COVID TCT,Jubichem Pharmacy,Public Health Contract Payments,940.00,Sexual Health,,
07/04/2021,NULL,Just Homes,NULL,349.80,Residential - MH,,
07/04/2021,NULL,Just Homes,NULL,349.80,Residential - MH,,
07/04/2021,NULL,Just Homes,NULL,349.80,Residential - MH,,
07/04/2021,NURSERY CLASS CTGCY,Kenyngton Manor Primary School,Agency Placement Expenditure,"14,023.28",Schools,,
07/04/2021,NULL,Kier Integrated Services Ltd,NULL,471.23,Edu Establishments,,
07/04/2021,MEMBER LH FUND ELM,Kier Integrated Services Ltd,Contractor,"1,190.30",Edu Establishments,,
07/04/2021,NULL,Kier Integrated Services Ltd,NULL,"63,354.41",Edu Establishments,,
07/04/2021,NULL,Kier Integrated Services Ltd,NULL,"3,416.29",Edu Establishments,,
07/04/2021,NULL,Kier Integrated Services Ltd,NULL,"33,797.87",Edu Establishments,,
07/04/2021,NULL,Kier Integrated Services Ltd,NULL,"20,777.56",Edu Establishments,,
07/04/2021,NULL,Kier Integrated Services Ltd,NULL,"1,378.28",Edu Establishments,,
07/04/2021,NULL,Kier Integrated Services Ltd,NULL,"1,179.80",Edu Establishments,,
07/04/2021,GENERAL MAINT PRINC,Kier Integrated Services Ltd,Contractor,"3,989.44",Edu Establishments,,
07/04/2021,NULL,Kier Integrated Services Ltd,NULL,"36,115.52",Edu Establishments,,
07/04/2021,NULL,Kier Integrated Services Ltd,NULL,"31,685.94",Edu Establishments,,
07/04/2021,NULL,Kier Integrated Services Ltd,NULL,"6,343.96",Edu Establishments,,
07/04/2021,DRAINAGE CON AT1 NPR,Kier Integrated Services Ltd,Contractor,"1,785.14",Edu Establishments,,
07/04/2021,NULL,Kier Integrated Services Ltd,NULL,"8,583.87",Edu Establishments,,
07/04/2021,NULL,Kier Integrated Services Ltd,NULL,"8,870.38",Edu Establishments,,
07/04/2021,GENERAL MAINT PRINC,Kier Integrated Services Ltd,Contractor,"1,194.00",Edu Establishments,,
07/04/2021,NULL,Kier Integrated Services Ltd,NULL,"3,404.52",Edu Establishments,,
07/04/2021,NULL,Kier Integrated Services Ltd,NULL,"190,302.91",Edu Establishments,,
07/04/2021,NULL,Kier Integrated Services Ltd,NULL,"31,613.51",Edu Establishments,,
07/04/2021,NULL,Kier Integrated Services Ltd,NULL,"17,296.78",Edu Establishments,,
07/04/2021,NULL,Kier Integrated Services Ltd,NULL,"2,318.76",Edu Establishments,,
07/04/2021,WINTER MTCE,Kier Integrated Services Ltd,Contractor,826.45,Edu Establishments,,
07/04/2021,NURSERY CLASS CTGCY,Kingfield Primary School & Nursery,Agency Placement Expenditure,"11,311.94",Schools,,
07/04/2021,NURSERY CLASS CTGCY,Knaphill Lower School,Agency Placement Expenditure,"13,769.04",Schools,,
07/04/2021,NURSERY CLASS CTGCY,Lakeside Primary School,Agency Placement Expenditure,"9,034.20",Schools,,
07/04/2021,NURSERY CLASS CTGCY,Lime Tree Primary,Agency Placement Expenditure,"10,270.59",Schools,,
07/04/2021,SPECIAL SCHOOLS,Linden Bridge School,Agency Placement Expenditure,"6,666.67",Grants-Member Allocs,,
07/04/2021,SPECIAL SCHOOLS,Linden Bridge School,Agency Placement Expenditure,"9,187.04",Grants-Member Allocs,,
07/04/2021,COVID TCT,Lloyds Pharmacy Ltd,Public Health Contract Payments,700.00,Smoking Cessation,,
07/04/2021,COVID TCT,Lloyds Pharmacy Ltd,Public Health Contract Payments,"2,330.00",Smoking Cessation,,
07/04/2021,PASSGR TRANS TCC,London General Transport Services L,Education Season Tickets,"6,783.56",Local Bus,,
07/04/2021,PRI GROWING SCHS,Loseley Fields Primary School,Agency Placement Expenditure,"4,568.66",Schools,,
07/04/2021,NURSERY CLASS CTGCY,Marden Lodge Primary School,Agency Placement Expenditure,"9,861.28",Schools,,
07/04/2021,NURSERY CLASS CTGCY,Maybury Primary School,Agency Placement Expenditure,"13,879.49",Schools,,
07/04/2021,NURSERY CLASS CTGCY,Meadhurst Primary School,Agency Placement Expenditure,"17,873.75",Grants-Member Allocs,,
07/04/2021,NURSERY CLASS CTGCY,Merstham Primary School,Agency Placement Expenditure,"8,042.35",Schools,,
07/04/2021,PASSGR TRANS TCC,Metrobus Ltd,Education Season Tickets,"58,453.48",Local Bus,,
07/04/2021,COVID TCT,Michael Frith Pharmacy,Public Health Contract Payments,"1,230.00",Smoking Cessation,,
07/04/2021,COVID TCT,Miles Pharmacy,Public Health Contract Payments,"1,690.00",Smoking Cessation,,
07/04/2021,NULL,Millsted Care Services,NULL,349.80,Residential - MH,,
07/04/2021,NULL,Millsted Care Services,NULL,348.60,Residential - MH,,
07/04/2021,NULL,Millsted Care Services,NULL,349.80,Residential - MH,,
07/04/2021,NULL,Millsted Care Services,NULL,349.80,Residential - MH,,
07/04/2021,COVID-19 TPP,Mole Valley District Council,Grants-Public Bodies and Statutory Partnerships,"62,370.00",Grants-Member Allocs,,
07/04/2021,NURSERY CLASS CTGCY,Mytchett Primary School,Agency Placement Expenditure,"10,454.11",Schools,,
07/04/2021,NURSERY CLASS CTGCY,New Monument School,Agency Placement Expenditure,"7,919.84",Schools,,
07/04/2021,Free Early Educ 2 yr,Null,Third Party Payments-Other Agencies,417.20,Individual - NEC,,
07/04/2021,NURSERY CLASS CTGCY,Ottershaw COE School,Agency Placement Expenditure,"11,692.64",Non-Staff Expenses,,
07/04/2021,SECONDARY SCHOOLS,Oxted School,Agency Placement Expenditure,"1,000.00",Schools,,
07/04/2021,HQ PYMNT OF INS CLMS,Plexus Law Ltd,Ins Claims Other Insured Paid,"17,000.00",Insurance Services,,
07/04/2021,SPECIAL SCHOOLS,Pond Meadow School,Agency Placement Expenditure,"3,333.33",Short break,,
07/04/2021,SPECIAL SCHOOLS,Pond Meadow School,Agency Placement Expenditure,"8,156.22",Short break,,
07/04/2021,NURSERY CLASS CTGCY,Pyrcroft Grange Primary School,Agency Placement Expenditure,"10,911.61",Schools,,
07/04/2021,NURSERY CLASS CTGCY,Pyrford COE (A) Primary School,Agency Placement Expenditure,"9,550.44",Schools,,
07/04/2021,CWD FOSTERING ALLOW,Redacted Personal Data,Payments to Foster Parents,"1,072.04",CYP Indiv Foster Car,,
07/04/2021,NW FOSTERING CARE,Redacted Personal Data,Payments to Foster Parents,844.38,CYP Indiv Foster Car,,
07/04/2021,SE FOSTERING CARE,Redacted Personal Data,Payments to Foster Parents,608.03,CYP Indiv Foster Car,,
07/04/2021,CHILD ARRANGE ORDERS,Redacted Personal Data,Special Guardianship Orders,385.36,Invoicing Plan Req.,,
07/04/2021,CHILD ARRANGE ORDERS,Redacted Personal Data,Special Guardianship Orders,285.80,Invoicing Plan Req.,,
07/04/2021,CHILD ARRANGE ORDERS,Redacted Personal Data,Special Guardianship Orders,285.30,LAC Spec Guardianshi,,
07/04/2021,CHILD ARRANGE ORDERS,Redacted Personal Data,Special Guardianship Orders,271.80,Invoicing Plan Req.,,
07/04/2021,CHILD ARRANGE ORDERS,Redacted Personal Data,Special Guardianship Orders,370.22,Adult direct payment,,
07/04/2021,CHILD ARRANGE ORDERS,Redacted Personal Data,Special Guardianship Orders,271.80,CYP Indiv Foster Car,,
07/04/2021,CHILD ARRANGE ORDERS,Redacted Personal Data,Special Guardianship Orders,313.20,Individual - NEC,,
07/04/2021,CHILD ARRANGE ORDERS,Redacted Personal Data,Special Guardianship Orders,328.12,CYP Indiv Foster Car,,
07/04/2021,CHILD ARRANGE ORDERS,Redacted Personal Data,Special Guardianship Orders,385.36,CYP Indiv Foster Car,,
07/04/2021,CHILD ARRANGE ORDERS,Redacted Personal Data,Special Guardianship Orders,342.82,Invoicing Plan Req.,,
07/04/2021,CHILD ARRANGE ORDERS,Redacted Personal Data,Special Guardianship Orders,342.82,CYP Indiv Foster Car,,
07/04/2021,CHILD ARRANGE ORDERS,Redacted Personal Data,Special Guardianship Orders,342.82,CYP Indiv Foster Car,,
07/04/2021,NW FOSTERING CARE,Redacted Personal Data,Children Act Sec 24 Payments,408.24,CYP Indiv Foster Car,,
07/04/2021,SW FOSTERING CARE,Redacted Personal Data,Children Act Sec 24 Payments,844.38,CYP Indiv Foster Car,,
07/04/2021,SE FOSTERING CARE,Redacted Personal Data,Payments to Foster Parents,904.70,CYP Indiv Foster Car,,
07/04/2021,NE FOSTERING CARE,Redacted Personal Data,Payments to Foster Parents,844.38,CYP Indiv Foster Car,,
07/04/2021,NW FOSTERING CARE,Redacted Personal Data,Payments to Foster Parents,654.80,CYP Indiv Foster Car,,
07/04/2021,NE FOSTERING CARE,Redacted Personal Data,Payments to Foster Parents,682.98,CYP Indiv Foster Car,,
07/04/2021,SE FOSTERING CARE,Redacted Personal Data,Payments to Foster Parents,654.80,CYP Indiv Foster Car,,
07/04/2021,NW FOSTERING CARE,Redacted Personal Data,Payments to Foster Parents,844.38,Individual - NEC,,
07/04/2021,NW FOSTERING CARE,Redacted Personal Data,Payments to F&F Foster Carers,370.22,CYP Indiv Foster Car,,
07/04/2021,NE FOSTERING CARE,Redacted Personal Data,Children Act Sec 24 Payments,408.24,CYP Indiv Foster Car,,
07/04/2021,NW FOSTERING CARE,Redacted Personal Data,Payments to Foster Parents,654.80,Individual - NEC,,
07/04/2021,NE FOSTERING CARE,Redacted Personal Data,Payments to Foster Parents,654.80,Individual - NEC,,
07/04/2021,CHILD ARRANGE ORDERS,Redacted Personal Data,Special Guardianship Orders,342.32,Invoicing Plan Req.,,
07/04/2021,CHILD ARRANGE ORDERS,Redacted Personal Data,Special Guardianship Orders,386.06,Invoicing Plan Req.,,
07/04/2021,CHILD ARRANGE ORDERS,Redacted Personal Data,Special Guardianship Orders,385.36,LAC Spec Guardianshi,,
07/04/2021,CHILD ARRANGE ORDERS,Redacted Personal Data,Special Guardianship Orders,386.06,CYP Indiv Foster Car,,
07/04/2021,CHILD ARRANGE ORDERS,Redacted Personal Data,Special Guardianship Orders,328.12,CYP Indiv Foster Car,,
07/04/2021,CHILD ARRANGE ORDERS,Redacted Personal Data,Special Guardianship Orders,295.16,LAC Spec Guardianshi,,
07/04/2021,CHILD ARRANGE ORDERS,Redacted Personal Data,Special Guardianship Orders,518.40,Invoicing Plan Req.,,
07/04/2021,CHILD ARRANGE ORDERS,Redacted Personal Data,Special Guardianship Orders,285.30,Invoicing Plan Req.,,
07/04/2021,CHILD ARRANGE ORDERS,Redacted Personal Data,Special Guardianship Orders,271.10,Invoicing Plan Req.,,
07/04/2021,CHILD ARRANGE ORDERS,Redacted Personal Data,Special Guardianship Orders,271.80,Invoicing Plan Req.,,
07/04/2021,CHILD ARRANGE ORDERS,Redacted Personal Data,Special Guardianship Orders,328.12,Invoicing Plan Req.,,
07/04/2021,CHILD ARRANGE ORDERS,Redacted Personal Data,Special Guardianship Orders,285.30,CYP Indiv Foster Car,,
07/04/2021,CHILD ARRANGE ORDERS,Redacted Personal Data,Special Guardianship Orders,271.10,Invoicing Plan Req.,,
07/04/2021,CHILD ARRANGE ORDERS,Redacted Personal Data,Special Guardianship Orders,328.12,CYP Indiv Foster Car,,
07/04/2021,CHILD ARRANGE ORDERS,Redacted Personal Data,Special Guardianship Orders,385.36,Invoicing Plan Req.,,
07/04/2021,CHILD ARRANGE ORDERS,Redacted Personal Data,Special Guardianship Orders,342.32,Invoicing Plan Req.,,
07/04/2021,CHILD ARRANGE ORDERS,Redacted Personal Data,Special Guardianship Orders,271.10,LAC Spec Guardianshi,,
07/04/2021,CHILD ARRANGE ORDERS,Redacted Personal Data,Special Guardianship Orders,271.10,Invoicing Plan Req.,,
07/04/2021,CHILD ARRANGE ORDERS,Redacted Personal Data,Special Guardianship Orders,342.32,Invoicing Plan Req.,,
07/04/2021,CHILD ARRANGE ORDERS,Redacted Personal Data,Special Guardianship Orders,284.84,Invoicing Plan Req.,,
07/04/2021,CHILD ARRANGE ORDERS,Redacted Personal Data,Special Guardianship Orders,342.32,Invoicing Plan Req.,,
07/04/2021,CHILD ARRANGE ORDERS,Redacted Personal Data,Special Guardianship Orders,342.32,Invoicing Plan Req.,,
07/04/2021,CHILD ARRANGE ORDERS,Redacted Personal Data,Special Guardianship Orders,385.36,Invoicing Plan Req.,,
07/04/2021,CHILD ARRANGE ORDERS,Redacted Personal Data,Special Guardianship Orders,328.12,CYP Indiv Foster Car,,
07/04/2021,NE FOSTERING CARE,Redacted Personal Data,Payments to Foster Parents,844.38,CYP Indiv Foster Car,,
07/04/2021,SE FOSTERING CARE,Redacted Personal Data,Payments to Foster Parents,654.80,CYP Indiv Foster Car,,
07/04/2021,SE FOSTERING CARE,Redacted Personal Data,Children Act Sec 24 Payments,408.24,Individual - NEC,,
07/04/2021,NW FOSTERING CARE,Redacted Personal Data,Payments to Foster Parents,654.80,CYP Indiv Foster Car,,
07/04/2021,NW FOSTERING CARE,Redacted Personal Data,Payments to Foster Parents,509.44,Fostering Placement,,
07/04/2021,SW FOSTERING CARE,Redacted Personal Data,Children Act Sec 24 Payments,548.24,CYP Indiv Carers,,
07/04/2021,NW FOSTERING CARE,Redacted Personal Data,Payments to Foster Parents,824.38,CYP Indiv Foster Car,,
07/04/2021,SE FOSTERING CARE,Redacted Personal Data,Payments to Foster Parents,844.38,CYP Indiv Foster Car,,
07/04/2021,SW FOSTERING CARE,Redacted Personal Data,Payments to Foster Parents,844.38,CYP Indiv Foster Car,,
07/04/2021,SE FOSTERING CARE,Redacted Personal Data,Payments to Foster Parents,844.38,Invoicing Plan Req.,,
07/04/2021,NE FOSTERING CARE,Redacted Personal Data,Payments to Foster Parents,280.62,CYP Indiv Foster Car,,
07/04/2021,SE FOSTERING CARE,Redacted Personal Data,Payments to Foster Parents,"1,040.00",CYP Indiv Foster Car,,
07/04/2021,CHILD ARRANGE ORDERS,Redacted Personal Data,Special Guardianship Orders,385.36,Adult direct payment,,
07/04/2021,CHILD ARRANGE ORDERS,Redacted Personal Data,Special Guardianship Orders,342.82,Invoicing Plan Req.,,
07/04/2021,CHILD ARRANGE ORDERS,Redacted Personal Data,Special Guardianship Orders,342.82,Invoicing Plan Req.,,
07/04/2021,CHILD ARRANGE ORDERS,Redacted Personal Data,Special Guardianship Orders,271.10,Invoicing Plan Req.,,
07/04/2021,CHILD ARRANGE ORDERS,Redacted Personal Data,Special Guardianship Orders,334.54,Invoicing Plan Req.,,
07/04/2021,CHILD ARRANGE ORDERS,Redacted Personal Data,Special Guardianship Orders,517.70,CYP Indiv Foster Car,,
07/04/2021,CHILD ARRANGE ORDERS,Redacted Personal Data,Special Guardianship Orders,342.32,CYP Indiv Foster Car,,
07/04/2021,CHILD ARRANGE ORDERS,Redacted Personal Data,Special Guardianship Orders,328.12,Invoicing Plan Req.,,
